Workbook

Sheet Add pupils
A2: Click here to view tracking sheet for your class.
A4: ID | B4: First name | C4: Last name | D4: Full name
B5: Jane | C5: Smith | D5: =IF($C5="","",$B5&CHAR(10)&$C5) -> Jane Smith
D6: =IF($C6="","",$B6&CHAR(10)&$C6) -> 

Sheet Numicon BI detailed tracking
A1: Index | B1: Unit session | C1: Unit colour | D1: Unit title | E1: Big Idea | F1: Unit & Session | G1: Session Title | H1: Session Objective | I1: Curriculum Objective (from England 2014 Year 4 and Year 5 PoS) | J1: Date | K1: Notes | M1: ='Add pupils'!$D5 -> Jane Smith | N1: ='Add pupils'!$D6 ->  | O1: ='Add pupils'!$D7 ->  | P1: ='Add pupils'!$D8 ->  | Q1: ='Add pupils'!$D9 ->  | R1: ='Add pupils'!$D10 ->  | S1: ='Add pupils'!$D11 ->  | T1: ='Add pupils'!$D12 ->  | U1: ='Add pupils'!$D13 ->  | V1: ='Add pupils'!$D14 ->  | X1: ='Add pupils'!$D16 ->  | Y1: ='Add pupils'!$D17 ->  | Z1: ='Add pupils'!$D18 ->  | AA1: ='Add pupils'!$D19 ->  | AB1: ='Add pupils'!$D20 ->  | AC1: ='Add pupils'!$D21 ->  | AD1: ='Add pupils'!$D22 ->  | AE1: ='Add pupils'!$D23 ->  | AF1: ='Add pupils'!$D24 ->  | AG1: ='Add pupils'!$D25 ->  | AI1: ='Add pupils'!$D27 ->  | AJ1: ='Add pupils'!$D28 ->  | AK1: ='Add pupils'!$D29 ->  | AL1: ='Add pupils'!$D30 ->  | AM1: ='Add pupils'!$D31 ->  | AN1: ='Add pupils'!$D32 ->  | AO1: ='Add pupils'!$D33 ->  | AP1: ='Add pupils'!$D34 ->  | AQ1: ='Add pupils'!$D35 ->  | AR1: ='Add pupils'!$D36 ->  | AT1: ='Add pupils'!$D38 ->  | AU1: ='Add pupils'!$D39 ->  | AV1: ='Add pupils'!$D40 ->  | AW1: ='Add pupils'!$D41 ->  | AX1: ='Add pupils'!$D42 ->  | AY1: ='Add pupils'!$D43 ->  | AZ1: ='Add pupils'!$D44 ->  | BA1: ='Add pupils'!$D45 ->  | BB1: ='Add pupils'!$D46 ->  | BC1: ='Add pupils'!$D47 -> 
C2: =IF(B2="",IF(D2="",D3,D2),B2) -> 1 | E2: =IF(D3="",IF($A3="","",VLOOKUP($A3,curriculum_data,2,FALSE)), VLOOKUP($D3,units,2,FALSE) ) -> Familiarization | M2: =IF(COUNTA(OFFSET(M2,2,0,COUNTIF($B:$B,$D3),1))=COUNTIF(OFFSET(M2,2,0,COUNTIF($B:$B,$D3),1),Not_started)," Not started ",IF(COUNTA(OFFSET(M2,2,0,COUNTIF($B:$B,$D3),1))-COUNTIF(OFFSET(M2,2,0,COUNTIF($B:$B,$D3),1),Not_started)<COUNTA(OFFSET(M2,2,0,COUNTIF($B:$B,$D3),1)),"Started",IF(COUNTA(OFFSET(M2,2,0,COUNTIF($B:$B,$D3),1))=COUNTIF(OFFSET(M2,2,0,COUNTIF($B:$B,$D3),1),Green),"Green",IF(COUNTIF(OFFSET(M2,2,0,COUNTIF($B:$B,$D3),1),Red)>0,"Red","Amber") ) ) ) -> Not started | N2: Not started | O2: Not started | P2: Not started | Q2: Not started | R2: Not started | S2: Not started | T2: Not started | U2: Not started | V2: Not started | X2: Not started | Y2: Not started | Z2: Not started | AA2: Not started | AB2: Not started | AC2: Not started | AD2: Not started | AE2: Not started | AF2: Not started | AG2: Not started | AI2: Not started | AJ2: Not started | AK2: Not started | AL2: Not started | AM2: Not started | AN2: Not started | AO2: Not started | AP2: Not started | AQ2: Not started | AR2: Not started | AT2: Not started | AU2: Not started | AV2: Not started | AW2: Not started | AX2: Not started | AY2: Not started | AZ2: Not started | BA2: Not started | BB2: Not started | BC2: Not started
A3: ='Raw Curriculum data'!A3 -> 0 | C3: 1 | D3: =IF(G3="",B4,"") -> 1 | M3: =CONCATENATE(COUNTIF(OFFSET(M2,2,0,COUNTIF($B:$B,$D3),1),Green)," out of ",COUNTA(OFFSET(M2,2,0,COUNTIF($B:$B,$D3),1))) -> 0 out of 10 | N3: 0 out of 10 | O3: 0 out of 10 | P3: 0 out of 10 | Q3: 0 out of 10 | R3: 0 out of 10 | S3: 0 out of 10 | T3: 0 out of 10 | U3: 0 out of 10 | V3: 0 out of 10 | X3: 0 out of 10 | Y3: 0 out of 10 | Z3: 0 out of 10 | AA3: 0 out of 10 | AB3: 0 out of 10 | AC3: 0 out of 10 | AD3: 0 out of 10 | AE3: 0 out of 10 | AF3: =CONCATENATE(COUNTIF(OFFSET(AF2,2,0,COUNTIF($B:$B,$D3),1),Green)," out of ",COUNTA(OFFSET(AF2,2,0,COUNTIF($B:$B,$D3),1))) -> 0 out of 10 | AG3: 0 out of 10 | AI3: 0 out of 10 | AJ3: 0 out of 10 | AK3: 0 out of 10 | AL3: 0 out of 10 | AM3: 0 out of 10 | AN3: 0 out of 10 | AO3: 0 out of 10 | AP3: 0 out of 10 | AQ3: 0 out of 10 | AR3: 0 out of 10 | AT3: 0 out of 10 | AU3: 0 out of 10 | AV3: 0 out of 10 | AW3: 0 out of 10 | AX3: 0 out of 10 | AY3: 0 out of 10 | AZ3: 0 out of 10 | BA3: 0 out of 10 | BB3: =CONCATENATE(COUNTIF(OFFSET(BB2,2,0,COUNTIF($B:$B,$D3),1),Green)," out of ",COUNTA(OFFSET(BB2,2,0,COUNTIF($B:$B,$D3),1))) -> 0 out of 10 | BC3: 0 out of 10
A4: ='Raw Curriculum data'!A6 -> 1 | B4: =IF(F4="","",MID(F4,6,FIND(" S",F4)-6)) -> 1 | C4: 1 | D4: =IF(G4="",B5,"") ->  | E4: =IF(D4="",IF($A4="","",VLOOKUP($A4,curriculum_data,2,FALSE)), VLOOKUP($D4,units,2,FALSE) ) -> Familiarization | F4: =IF($A4="","",VLOOKUP($A4,curriculum_data,3,FALSE)) -> Unit 1 S1 | G4: =IF($A4="","",VLOOKUP($A4,curriculum_data,4,FALSE)) -> Session 1: Becoming familiar with Numicon Shapes | H4: =IF($A4="","",VLOOKUP($A4,curriculum_data,5,FALSE)) -> • To become sufficiently familiar with Numicon Shapes so they can be used as a concrete manipulative in the forthcoming sessions. | I4: =IF($A4="","",VLOOKUP($A4,curriculum_data,6,FALSE)) -> (No curriculum objectives for this Unit, since it is about becoming familiar with the apparatus) | M4: Not started | N4: Not started | O4: Not started | P4: Not started | Q4: Not started | R4: Not started | S4: Not started | T4: Not started | U4: Not started | V4: Not started | X4: Not started | Y4: Not started | Z4: Not started | AA4: Not started | AB4: Not started | AC4: Not started | AD4: Not started | AE4: Not started | AF4: Not started | AG4: Not started | AI4: Not started | AJ4: Not started | AK4: Not started | AL4: Not started | AM4: Not started | AN4: Not started | AO4: Not started | AP4: Not started | AQ4: Not started | AR4: Not started | AT4: Not started | AU4: Not started | AV4: Not started | AW4: Not started | AX4: Not started | AY4: Not started | AZ4: Not started | BA4: Not started | BB4: Not started | BC4: Not started
A5: ='Raw Curriculum data'!A7 -> 2 | B5: =IF(F5="","",MID(F5,6,FIND(" S",F5)-6)) -> 1 | C5: 1 | E5: Familiarization | F5: Unit 1 S2 | G5: Session 2: Getting to know number rods | H5: • To be able to match number rods with numerals. | I5: =IF($A5="","",VLOOKUP($A5,curriculum_data,6,FALSE)) ->  | M5: Not started | N5: Not started | O5: Not started | P5: Not started | Q5: Not started | R5: Not started | S5: Not started | T5: Not started | U5: Not started | V5: Not started | X5: Not started | Y5: Not started | Z5: Not started | AA5: Not started | AB5: Not started | AC5: Not started | AD5: Not started | AE5: Not started | AF5: Not started | AG5: Not started | AI5: Not started | AJ5: Not started | AK5: Not started | AL5: Not started | AM5: Not started | AN5: Not started | AO5: Not started | AP5: Not started | AQ5: Not started | AR5: Not started | AT5: Not started | AU5: Not started | AV5: Not started | AW5: Not started | AX5: Not started | AY5: Not started | AZ5: Not started | BA5: Not started | BB5: Not started | BC5: Not started
A6: ='Raw Curriculum data'!A8 -> 3 | B6: 1 | C6: 1 | E6: Familiarization | F6: Unit 1 S2 | G6: Session 2: Getting to know number rods | H6: • To count forwards and backwards in steps of ones, twos, threes and tens. | M6: Not started | N6: Not started | O6: Not started | P6: Not started | Q6: Not started | R6: Not started | S6: Not started | T6: Not started | U6: Not started | V6: Not started | X6: Not started | Y6: Not started | Z6: Not started | AA6: Not started | AB6: Not started | AC6: Not started | AD6: Not started | AE6: Not started | AF6: Not started | AG6: Not started | AI6: Not started | AJ6: Not started | AK6: Not started | AL6: Not started | AM6: Not started | AN6: Not started | AO6: Not started | AP6: Not started | AQ6: Not started | AR6: Not started | AT6: Not started | AU6: Not started | AV6: Not started | AW6: Not started | AX6: Not started | AY6: Not started | AZ6: Not started | BA6: Not started | BB6: Not started | BC6: Not started
A7: ='Raw Curriculum data'!A9 -> 4 | B7: 1 | C7: 1 | E7: Familiarization | F7: Unit 1 S2 | G7: Session 2: Getting to know number rods | H7: • To become familiar with using number rods for whole numbers, doubles, halves and number bonds to 20, 60 and 100. | M7: Not started | N7: Not started | O7: Not started | P7: Not started | Q7: Not started | R7: Not started | S7: Not started | T7: Not started | U7: Not started | V7: Not started | X7: Not started | Y7: Not started | Z7: Not started | AA7: Not started | AB7: Not started | AC7: Not started | AD7: Not started | AE7: Not started | AF7: Not started | AG7: Not started | AI7: Not started | AJ7: Not started | AK7: Not started | AL7: Not started | AM7: Not started | AN7: Not started | AO7: Not started | AP7: Not started | AQ7: Not started | AR7: Not started | AT7: Not started | AU7: Not started | AV7: Not started | AW7: Not started | AX7: Not started | AY7: Not started | AZ7: Not started | BA7: Not started | BB7: Not started | BC7: Not started
A8: ='Raw Curriculum data'!A10 -> 5 | B8: 1 | C8: 1 | E8: Familiarization | F8: Unit 1 S3 | G8: Session 3: Base ten | H8: • To use regrouping when crossing multiples of ten. | M8: Not started | N8: Not started | O8: Not started | P8: Not started | Q8: Not started | R8: Not started | S8: Not started | T8: Not started | U8: Not started | V8: Not started | X8: Not started | Y8: Not started | Z8: Not started | AA8: Not started | AB8: Not started | AC8: Not started | AD8: Not started | AE8: Not started | AF8: Not started | AG8: Not started | AI8: Not started | AJ8: Not started | AK8: Not started | AL8: Not started | AM8: Not started | AN8: Not started | AO8: Not started | AP8: Not started | AQ8: Not started | AR8: Not started | AT8: Not started | AU8: Not started | AV8: Not started | AW8: Not started | AX8: Not started | AY8: Not started | AZ8: Not started | BA8: Not started | BB8: Not started | BC8: Not started
A9: ='Raw Curriculum data'!A11 -> 6 | B9: 1 | C9: 1 | E9: Familiarization | F9: Unit 1 S3 | G9: Session 3: Base ten | H9: • To represent numbers using base-ten apparatus and arrow cards. | M9: Not started | N9: Not started | O9: Not started | P9: Not started | Q9: Not started | R9: Not started | S9: Not started | T9: Not started | U9: Not started | V9: Not started | X9: Not started | Y9: Not started | Z9: Not started | AA9: Not started | AB9: Not started | AC9: Not started | AD9: Not started | AE9: Not started | AF9: Not started | AG9: Not started | AI9: Not started | AJ9: Not started | AK9: Not started | AL9: Not started | AM9: Not started | AN9: Not started | AO9: Not started | AP9: Not started | AQ9: Not started | AR9: Not started | AT9: Not started | AU9: Not started | AV9: Not started | AW9: Not started | AX9: Not started | AY9: Not started | AZ9: Not started | BA9: Not started | BB9: Not started | BC9: Not started
A10: ='Raw Curriculum data'!A12 -> 7 | B10: 1 | C10: 1 | E10: Familiarization | F10: Unit 1 S4 | G10: Session 4: Properties of number | H10: • To introduce the term ‘commutative’ in context. | M10: Not started | N10: Not started | O10: Not started | P10: Not started | Q10: Not started | R10: Not started | S10: Not started | T10: Not started | U10: Not started | V10: Not started | X10: Not started | Y10: Not started | Z10: Not started | AA10: Not started | AB10: Not started | AC10: Not started | AD10: Not started | AE10: Not started | AF10: Not started | AG10: Not started | AI10: Not started | AJ10: Not started | AK10: Not started | AL10: Not started | AM10: Not started | AN10: Not started | AO10: Not started | AP10: Not started | AQ10: Not started | AR10: Not started | AT10: Not started | AU10: Not started | AV10: Not started | AW10: Not started | AX10: Not started | AY10: Not started | AZ10: Not started | BA10: Not started | BB10: Not started | BC10: Not started
A11: ='Raw Curriculum data'!A13 -> 8 | B11: 1 | C11: 1 | E11: Familiarization | F11: Unit 1 S4 | G11: Session 4: Properties of number | H11: • To work systematically to produce number bonds of 8. | M11: Not started | N11: Not started | O11: Not started | P11: Not started | Q11: Not started | R11: Not started | S11: Not started | T11: Not started | U11: Not started | V11: Not started | X11: Not started | Y11: Not started | Z11: Not started | AA11: Not started | AB11: Not started | AC11: Not started | AD11: Not started | AE11: Not started | AF11: Not started | AG11: Not started | AI11: Not started | AJ11: Not started | AK11: Not started | AL11: Not started | AM11: Not started | AN11: Not started | AO11: Not started | AP11: Not started | AQ11: Not started | AR11: Not started | AT11: Not started | AU11: Not started | AV11: Not started | AW11: Not started | AX11: Not started | AY11: Not started | AZ11: Not started | BA11: Not started | BB11: Not started | BC11: Not started
A12: ='Raw Curriculum data'!A14 -> 9 | B12: 1 | C12: 1 | E12: Familiarization | F12: Unit 1 S4 | G12: Session 4: Properties of number | H12: • To identify odd and even numbers and to use them in context. | M12: Not started | N12: Not started | O12: Not started | P12: Not started | Q12: Not started | R12: Not started | S12: Not started | T12: Not started | U12: Not started | V12: Not started | X12: Not started | Y12: Not started | Z12: Not started | AA12: Not started | AB12: Not started | AC12: Not started | AD12: Not started | AE12: Not started | AF12: Not started | AG12: Not started | AI12: Not started | AJ12: Not started | AK12: Not started | AL12: Not started | AM12: Not started | AN12: Not started | AO12: Not started | AP12: Not started | AQ12: Not started | AR12: Not started | AT12: Not started | AU12: Not started | AV12: Not started | AW12: Not started | AX12: Not started | AY12: Not started | AZ12: Not started | BA12: Not started | BB12: Not started | BC12: Not started
A13: ='Raw Curriculum data'!A15 -> 10 | B13: 1 | C13: 1 | E13: Familiarization | F13: Unit 1 S4 | G13: Session 4: Properties of number | H13: • To look for patterns, predict answers and check them using manipulatives. | M13: Not started | N13: Not started | O13: Not started | P13: Not started | Q13: Not started | R13: Not started | S13: Not started | T13: Not started | U13: Not started | V13: Not started | X13: Not started | Y13: Not started | Z13: Not started | AA13: Not started | AB13: Not started | AC13: Not started | AD13: Not started | AE13: Not started | AF13: Not started | AG13: Not started | AI13: Not started | AJ13: Not started | AK13: Not started | AL13: Not started | AM13: Not started | AN13: Not started | AO13: Not started | AP13: Not started | AQ13: Not started | AR13: Not started | AT13: Not started | AU13: Not started | AV13: Not started | AW13: Not started | AX13: Not started | AY13: Not started | AZ13: Not started | BA13: Not started | BB13: Not started | BC13: Not started
A14: ='Raw Curriculum data'!A16 ->  | C14: =IF(B14="",IF(D14="",D15,D14),B14) -> 2 | E14: =IF(D15="",IF($A15="","",VLOOKUP($A15,curriculum_data,2,FALSE)), VLOOKUP($D15,units,2,FALSE) ) -> Number and place value | M14: =IF(COUNTA(OFFSET(M14,2,0,COUNTIF($B:$B,$D15),1))=COUNTIF(OFFSET(M14,2,0,COUNTIF($B:$B,$D15),1),Not_started)," Not started ",IF(COUNTA(OFFSET(M14,2,0,COUNTIF($B:$B,$D15),1))-COUNTIF(OFFSET(M14,2,0,COUNTIF($B:$B,$D15),1),Not_started)<COUNTA(OFFSET(M14,2,0,COUNTIF($B:$B,$D15),1)),"Started",IF(COUNTA(OFFSET(M14,2,0,COUNTIF($B:$B,$D15),1))=COUNTIF(OFFSET(M14,2,0,COUNTIF($B:$B,$D15),1),Green),"Green",IF(COUNTIF(OFFSET(M14,2,0,COUNTIF($B:$B,$D15),1),Red)>0,"Red","Amber") ) ) ) -> Not started | N14: Not started | O14: Not started | P14: Not started | Q14: Not started | R14: Not started | S14: Not started | T14: Not started | U14: Not started | V14: Not started | X14: Not started | Y14: Not started | Z14: Not started | AA14: Not started | AB14: Not started | AC14: Not started | AD14: Not started | AE14: Not started | AF14: Not started | AG14: Not started | AI14: Not started | AJ14: Not started | AK14: Not started | AL14: Not started | AM14: Not started | AN14: Not started | AO14: Not started | AP14: Not started | AQ14: Not started | AR14: Not started | AT14: Not started | AU14: Not started | AV14: Not started | AW14: Not started | AX14: Not started | AY14: Not started | AZ14: Not started | BA14: Not started | BB14: Not started | BC14: Not started
A15: ='Raw Curriculum data'!A17 ->  | C15: 2 | D15: 2 | M15: =CONCATENATE(COUNTIF(OFFSET(M14,2,0,COUNTIF($B:$B,$D15),1),Green)," out of ",COUNTA(OFFSET(M14,2,0,COUNTIF($B:$B,$D15),1))) -> 0 out of 11 | N15: 0 out of 11 | O15: 0 out of 11 | P15: 0 out of 11 | Q15: 0 out of 11 | R15: 0 out of 11 | S15: 0 out of 11 | T15: 0 out of 11 | U15: 0 out of 11 | V15: 0 out of 11 | X15: 0 out of 11 | Y15: 0 out of 11 | Z15: 0 out of 11 | AA15: 0 out of 11 | AB15: 0 out of 11 | AC15: 0 out of 11 | AD15: 0 out of 11 | AE15: 0 out of 11 | AF15: =CONCATENATE(COUNTIF(OFFSET(AF14,2,0,COUNTIF($B:$B,$D15),1),Green)," out of ",COUNTA(OFFSET(AF14,2,0,COUNTIF($B:$B,$D15),1))) -> 0 out of 11 | AG15: 0 out of 11 | AI15: 0 out of 11 | AJ15: 0 out of 11 | AK15: 0 out of 11 | AL15: 0 out of 11 | AM15: 0 out of 11 | AN15: 0 out of 11 | AO15: 0 out of 11 | AP15: 0 out of 11 | AQ15: 0 out of 11 | AR15: 0 out of 11 | AT15: 0 out of 11 | AU15: 0 out of 11 | AV15: 0 out of 11 | AW15: 0 out of 11 | AX15: 0 out of 11 | AY15: 0 out of 11 | AZ15: 0 out of 11 | BA15: 0 out of 11 | BB15: =CONCATENATE(COUNTIF(OFFSET(BB14,2,0,COUNTIF($B:$B,$D15),1),Green)," out of ",COUNTA(OFFSET(BB14,2,0,COUNTIF($B:$B,$D15),1))) -> 0 out of 11 | BC15: 0 out of 11
A16: ='Raw Curriculum data'!A18 -> 11 | B16: 2 | C16: 2 | E16: =IF(D16="",IF($A16="","",VLOOKUP($A16,curriculum_data,2,FALSE)), VLOOKUP($D16,units,2,FALSE) ) -> Number and place value | F16: Unit 2 S1 | G16: Session 1: Whole numbers with four digits and zero as a place holder | H16: • To visualize, describe or draw 2-, 3- and 4-digit numbers | I16: (4N3a) recognise the place value of each digit in a four-digit number (thousands, hundreds, tens, and ones) | M16: Not started | N16: Not started | O16: Not started | P16: Not started | Q16: Not started | R16: Not started | S16: Not started | T16: Not started | U16: Not started | V16: Not started | X16: Not started | Y16: Not started | Z16: Not started | AA16: Not started | AB16: Not started | AC16: Not started | AD16: Not started | AE16: Not started | AF16: Not started | AG16: Not started | AI16: Not started | AJ16: Not started | AK16: Not started | AL16: Not started | AM16: Not started | AN16: Not started | AO16: Not started | AP16: Not started | AQ16: Not started | AR16: Not started | AT16: Not started | AU16: Not started | AV16: Not started | AW16: Not started | AX16: Not started | AY16: Not started | AZ16: Not started | BA16: Not started | BB16: Not started | BC16: Not started
A17: ='Raw Curriculum data'!A19 -> 12 | B17: 2 | C17: 2 | E17: Number and place value | F17: Unit 2 S1 | G17: Session 1: Whole numbers with four digits and zero as a place holder | H17: • To understand and explain the role of 0 as a placeholder in 2-, 3- and 4-digit numbers. | I17: (4N5) count backwards through zero to include negative numbers | M17: Not started | N17: Not started | O17: Not started | P17: Not started | Q17: Not started | R17: Not started | S17: Not started | T17: Not started | U17: Not started | V17: Not started | X17: Not started | Y17: Not started | Z17: Not started | AA17: Not started | AB17: Not started | AC17: Not started | AD17: Not started | AE17: Not started | AF17: Not started | AG17: Not started | AI17: Not started | AJ17: Not started | AK17: Not started | AL17: Not started | AM17: Not started | AN17: Not started | AO17: Not started | AP17: Not started | AQ17: Not started | AR17: Not started | AT17: Not started | AU17: Not started | AV17: Not started | AW17: Not started | AX17: Not started | AY17: Not started | AZ17: Not started | BA17: Not started | BB17: Not started | BC17: Not started
A18: ='Raw Curriculum data'!A20 -> 13 | B18: 2 | C18: 2 | E18: Number and place value | F18: Unit 2 S2 | G18: Session 2: Ordering and comparing numbers: 4-digit and 5-digit numbers | H18: • To understand the quantity and column value of digits in numbers between 1000 and 100 000 | I18: (4N2a)order and compare numbers beyond 1000 | M18: Not started | N18: Not started | O18: Not started | P18: Not started | Q18: Not started | R18: Not started | S18: Not started | T18: Not started | U18: Not started | V18: Not started | X18: Not started | Y18: Not started | Z18: Not started | AA18: Not started | AB18: Not started | AC18: Not started | AD18: Not started | AE18: Not started | AF18: Not started | AG18: Not started | AI18: Not started | AJ18: Not started | AK18: Not started | AL18: Not started | AM18: Not started | AN18: Not started | AO18: Not started | AP18: Not started | AQ18: Not started | AR18: Not started | AT18: Not started | AU18: Not started | AV18: Not started | AW18: Not started | AX18: Not started | AY18: Not started | AZ18: Not started | BA18: Not started | BB18: Not started | BC18: Not started
A19: ='Raw Curriculum data'!A21 -> 14 | B19: 2 | C19: 2 | E19: Number and place value | F19: Unit 2 S2 | G19: Session 2: Ordering and comparing numbers: 4-digit and 5-digit numbers | H19: • To recognize the place value of each digit in 5-digit numbers | I19: (5N2 & 5N3a) read, write, order and compare numbers to at least 1 000 000 and determine the value of each digit | M19: Not started | N19: Not started | O19: Not started | P19: Not started | Q19: Not started | R19: Not started | S19: Not started | T19: Not started | U19: Not started | V19: Not started | X19: Not started | Y19: Not started | Z19: Not started | AA19: Not started | AB19: Not started | AC19: Not started | AD19: Not started | AE19: Not started | AF19: Not started | AG19: Not started | AI19: Not started | AJ19: Not started | AK19: Not started | AL19: Not started | AM19: Not started | AN19: Not started | AO19: Not started | AP19: Not started | AQ19: Not started | AR19: Not started | AT19: Not started | AU19: Not started | AV19: Not started | AW19: Not started | AX19: Not started | AY19: Not started | AZ19: Not started | BA19: Not started | BB19: Not started | BC19: Not started
A20: ='Raw Curriculum data'!A22 -> 15 | B20: 2 | C20: 2 | E20: Number and place value | F20: Unit 2 S2 | G20: Session 2: Ordering and comparing numbers: 4-digit and 5-digit numbers | H20: • To order and compare numbers up to 100 000 | I20: (4N2a) order and compare numbers beyond 1000 | M20: Not started | N20: Not started | O20: Not started | P20: Not started | Q20: Not started | R20: Not started | S20: Not started | T20: Not started | U20: Not started | V20: Not started | X20: Not started | Y20: Not started | Z20: Not started | AA20: Not started | AB20: Not started | AC20: Not started | AD20: Not started | AE20: Not started | AF20: Not started | AG20: Not started | AI20: Not started | AJ20: Not started | AK20: Not started | AL20: Not started | AM20: Not started | AN20: Not started | AO20: Not started | AP20: Not started | AQ20: Not started | AR20: Not started | AT20: Not started | AU20: Not started | AV20: Not started | AW20: Not started | AX20: Not started | AY20: Not started | AZ20: Not started | BA20: Not started | BB20: Not started | BC20: Not started
A21: ='Raw Curriculum data'!A23 -> 16 | B21: 2 | C21: 2 | E21: Number and place value | F21: Unit 2 S3 | G21: Session 3: Counting forwards and backwards, across boundaries, using multiples of ten | H21: • To order and compare numbers greater than 1000 | I21: =IF($A20="","",VLOOKUP($A20,curriculum_data,6,FALSE)) -> (4N2a) order and compare numbers beyond 1000 | M21: Not started | N21: Not started | O21: Not started | P21: Not started | Q21: Not started | R21: Not started | S21: Not started | T21: Not started | U21: Not started | V21: Not started | X21: Not started | Y21: Not started | Z21: Not started | AA21: Not started | AB21: Not started | AC21: Not started | AD21: Not started | AE21: Not started | AF21: Not started | AG21: Not started | AI21: Not started | AJ21: Not started | AK21: Not started | AL21: Not started | AM21: Not started | AN21: Not started | AO21: Not started | AP21: Not started | AQ21: Not started | AR21: Not started | AT21: Not started | AU21: Not started | AV21: Not started | AW21: Not started | AX21: Not started | AY21: Not started | AZ21: Not started | BA21: Not started | BB21: Not started | BC21: Not started
A22: ='Raw Curriculum data'!A24 -> 17 | B22: 2 | C22: 2 | E22: Number and place value | F22: Unit 2 S3 | G22: Session 3: Counting forwards and backwards, across boundaries, using multiples of ten | H22: • To use place value for addition and subtraction (for up to 7-digit numbers) | I22: (4C2) add and subtract numbers with up to 4 digits using the formal written methods of columnar addition and subtraction where appropriate | M22: Not started | N22: Not started | O22: Not started | P22: Not started | Q22: Not started | R22: Not started | S22: Not started | T22: Not started | U22: Not started | V22: Not started | X22: Not started | Y22: Not started | Z22: Not started | AA22: Not started | AB22: Not started | AC22: Not started | AD22: Not started | AE22: Not started | AF22: Not started | AG22: Not started | AI22: Not started | AJ22: Not started | AK22: Not started | AL22: Not started | AM22: Not started | AN22: Not started | AO22: Not started | AP22: Not started | AQ22: Not started | AR22: Not started | AT22: Not started | AU22: Not started | AV22: Not started | AW22: Not started | AX22: Not started | AY22: Not started | AZ22: Not started | BA22: Not started | BB22: Not started | BC22: Not started
A23: ='Raw Curriculum data'!A25 -> 18 | B23: 2 | C23: 2 | E23: Number and place value | F23: Unit 2 S3 | G23: Session 3: Counting forwards and backwards, across boundaries, using multiples of ten | H23: • To recognize the place value of each digit up to 7-digit numbers (millions, hundred thousands, ten thousands, thousands, hundreds, tens and ones) | I23: (5N2 & 5N3a) read, write, order and compare numbers to at least 1 000 000 and determine the value of each digit | M23: Not started | N23: Not started | O23: Not started | P23: Not started | Q23: Not started | R23: Not started | S23: Not started | T23: Not started | U23: Not started | V23: Not started | X23: Not started | Y23: Not started | Z23: Not started | AA23: Not started | AB23: Not started | AC23: Not started | AD23: Not started | AE23: Not started | AF23: Not started | AG23: Not started | AI23: Not started | AJ23: Not started | AK23: Not started | AL23: Not started | AM23: Not started | AN23: Not started | AO23: Not started | AP23: Not started | AQ23: Not started | AR23: Not started | AT23: Not started | AU23: Not started | AV23: Not started | AW23: Not started | AX23: Not started | AY23: Not started | AZ23: Not started | BA23: Not started | BB23: Not started | BC23: Not started
A24: ='Raw Curriculum data'!A26 -> 19 | B24: 2 | C24: 2 | E24: Number and place value | F24: Unit 2 S4 | G24: Session 4: Rounding numbers to use in calculations | H24: • To round 5-digit numbers to the nearest 10, 100, 1000, 10 000, 100 000 | I24: (4N4b) round any number to the nearest 10, 100 or 1000 | M24: Not started | N24: Not started | O24: Not started | P24: Not started | Q24: Not started | R24: Not started | S24: Not started | T24: Not started | U24: Not started | V24: Not started | X24: Not started | Y24: Not started | Z24: Not started | AA24: Not started | AB24: Not started | AC24: Not started | AD24: Not started | AE24: Not started | AF24: Not started | AG24: Not started | AI24: Not started | AJ24: Not started | AK24: Not started | AL24: Not started | AM24: Not started | AN24: Not started | AO24: Not started | AP24: Not started | AQ24: Not started | AR24: Not started | AT24: Not started | AU24: Not started | AV24: Not started | AW24: Not started | AX24: Not started | AY24: Not started | AZ24: Not started | BA24: Not started | BB24: Not started | BC24: Not started
A25: ='Raw Curriculum data'!A27 -> 20 | B25: 2 | C25: 2 | E25: Number and place value | F25: Unit 2 S4 | G25: Session 4: Rounding numbers to use in calculations | H25: • To compare rounded numbers with unrounded numbers | I25: (5C3) use rounding to check answers to calculations and determine, in the context of a problem, levels of accuracy | M25: Not started | N25: Not started | O25: Not started | P25: Not started | Q25: Not started | R25: Not started | S25: Not started | T25: Not started | U25: Not started | V25: Not started | X25: Not started | Y25: Not started | Z25: Not started | AA25: Not started | AB25: Not started | AC25: Not started | AD25: Not started | AE25: Not started | AF25: Not started | AG25: Not started | AI25: Not started | AJ25: Not started | AK25: Not started | AL25: Not started | AM25: Not started | AN25: Not started | AO25: Not started | AP25: Not started | AQ25: Not started | AR25: Not started | AT25: Not started | AU25: Not started | AV25: Not started | AW25: Not started | AX25: Not started | AY25: Not started | AZ25: Not started | BA25: Not started | BB25: Not started | BC25: Not started
A26: ='Raw Curriculum data'!A28 -> 21 | B26: 2 | C26: 2 | E26: Number and place value | F26: Unit 2 S4 | G26: Session 4: Rounding numbers to use in calculations | H26: • To check that calculations are of the correct magnitude using rounding | I26: (5C3) use rounding to check answers to calculations and determine, in the context of a problem, levels of accuracy | M26: Not started | N26: Not started | O26: Not started | P26: Not started | Q26: Not started | R26: Not started | S26: Not started | T26: Not started | U26: Not started | V26: Not started | X26: Not started | Y26: Not started | Z26: Not started | AA26: Not started | AB26: Not started | AC26: Not started | AD26: Not started | AE26: Not started | AF26: Not started | AG26: Not started | AI26: Not started | AJ26: Not started | AK26: Not started | AL26: Not started | AM26: Not started | AN26: Not started | AO26: Not started | AP26: Not started | AQ26: Not started | AR26: Not started | AT26: Not started | AU26: Not started | AV26: Not started | AW26: Not started | AX26: Not started | AY26: Not started | AZ26: Not started | BA26: Not started | BB26: Not started | BC26: Not started
A27: ='Raw Curriculum data'!A29 ->  | C27: 3 | E27: =IF(D28="",IF($A28="","",VLOOKUP($A28,curriculum_data,2,FALSE)), VLOOKUP($D28,units,2,FALSE) ) -> Adding and subtracting | M27: =IF(COUNTA(OFFSET(M27,2,0,COUNTIF($B:$B,$D28),1))=COUNTIF(OFFSET(M27,2,0,COUNTIF($B:$B,$D28),1),Not_started)," Not started ",IF(COUNTA(OFFSET(M27,2,0,COUNTIF($B:$B,$D28),1))-COUNTIF(OFFSET(M27,2,0,COUNTIF($B:$B,$D28),1),Not_started)<COUNTA(OFFSET(M27,2,0,COUNTIF($B:$B,$D28),1)),"Started",IF(COUNTA(OFFSET(M27,2,0,COUNTIF($B:$B,$D28),1))=COUNTIF(OFFSET(M27,2,0,COUNTIF($B:$B,$D28),1),Green),"Green",IF(COUNTIF(OFFSET(M27,2,0,COUNTIF($B:$B,$D28),1),Red)>0,"Red","Amber") ) ) ) -> Not started | N27: Not started | O27: Not started | P27: Not started | Q27: Not started | R27: Not started | S27: Not started | T27: Not started | U27: Not started | V27: Not started | X27: Not started | Y27: Not started | Z27: Not started | AA27: Not started | AB27: Not started | AC27: Not started | AD27: Not started | AE27: Not started | AF27: Not started | AG27: Not started | AI27: Not started | AJ27: Not started | AK27: Not started | AL27: Not started | AM27: Not started | AN27: Not started | AO27: Not started | AP27: Not started | AQ27: Not started | AR27: Not started | AT27: Not started | AU27: Not started | AV27: Not started | AW27: Not started | AX27: Not started | AY27: Not started | AZ27: Not started | BA27: Not started | BB27: Not started | BC27: Not started
A28: ='Raw Curriculum data'!A30 ->  | C28: 3 | D28: 3 | M28: =CONCATENATE(COUNTIF(OFFSET(M27,2,0,COUNTIF($B:$B,$D28),1),Green)," out of ",COUNTA(OFFSET(M27,2,0,COUNTIF($B:$B,$D28),1))) -> 0 out of 9 | N28: 0 out of 9 | O28: 0 out of 9 | P28: 0 out of 9 | Q28: 0 out of 9 | R28: 0 out of 9 | S28: 0 out of 9 | T28: 0 out of 9 | U28: 0 out of 9 | V28: 0 out of 9 | X28: 0 out of 9 | Y28: 0 out of 9 | Z28: 0 out of 9 | AA28: 0 out of 9 | AB28: 0 out of 9 | AC28: 0 out of 9 | AD28: 0 out of 9 | AE28: 0 out of 9 | AF28: =CONCATENATE(COUNTIF(OFFSET(AF27,2,0,COUNTIF($B:$B,$D28),1),Green)," out of ",COUNTA(OFFSET(AF27,2,0,COUNTIF($B:$B,$D28),1))) -> 0 out of 9 | AG28: 0 out of 9 | AI28: 0 out of 9 | AJ28: 0 out of 9 | AK28: 0 out of 9 | AL28: 0 out of 9 | AM28: 0 out of 9 | AN28: 0 out of 9 | AO28: 0 out of 9 | AP28: 0 out of 9 | AQ28: 0 out of 9 | AR28: 0 out of 9 | AT28: 0 out of 9 | AU28: 0 out of 9 | AV28: 0 out of 9 | AW28: 0 out of 9 | AX28: 0 out of 9 | AY28: 0 out of 9 | AZ28: 0 out of 9 | BA28: 0 out of 9 | BB28: =CONCATENATE(COUNTIF(OFFSET(BB27,2,0,COUNTIF($B:$B,$D28),1),Green)," out of ",COUNTA(OFFSET(BB27,2,0,COUNTIF($B:$B,$D28),1))) -> 0 out of 9 | BC28: 0 out of 9
A29: ='Raw Curriculum data'!A31 -> 22 | B29: 3 | C29: 3 | E29: =IF(D29="",IF($A29="","",VLOOKUP($A29,curriculum_data,2,FALSE)), VLOOKUP($D29,units,2,FALSE) ) -> Adding and subtracting | F29: Unit 3 S1 | G29: Session 1: Estimating | H29: • To know estimates are not exact amounts and are often given as round multiples of 10, 100 or 1000 | I29: (4N4a) identify, represent and estimate numbers using different representations | M29: Not started | N29: Not started | O29: Not started | P29: Not started | Q29: Not started | R29: Not started | S29: Not started | T29: Not started | U29: Not started | V29: Not started | X29: Not started | Y29: Not started | Z29: Not started | AA29: Not started | AB29: Not started | AC29: Not started | AD29: Not started | AE29: Not started | AF29: Not started | AG29: Not started | AI29: Not started | AJ29: Not started | AK29: Not started | AL29: Not started | AM29: Not started | AN29: Not started | AO29: Not started | AP29: Not started | AQ29: Not started | AR29: Not started | AT29: Not started | AU29: Not started | AV29: Not started | AW29: Not started | AX29: Not started | AY29: Not started | AZ29: Not started | BA29: Not started | BB29: Not started | BC29: Not started
A30: ='Raw Curriculum data'!A32 -> 23 | B30: 3 | C30: 3 | E30: Adding and subtracting | F30: Unit 3 S1 | G30: Session 1: Estimating | H30: • To use rounding to estimate answers in calculations involving numbers with up to 4 digits | I30: (4C3) estimate and use inverse operations to check answers to a calculation | M30: Not started | N30: Not started | O30: Not started | P30: Not started | Q30: Not started | R30: Not started | S30: Not started | T30: Not started | U30: Not started | V30: Not started | X30: Not started | Y30: Not started | Z30: Not started | AA30: Not started | AB30: Not started | AC30: Not started | AD30: Not started | AE30: Not started | AF30: Not started | AG30: Not started | AI30: Not started | AJ30: Not started | AK30: Not started | AL30: Not started | AM30: Not started | AN30: Not started | AO30: Not started | AP30: Not started | AQ30: Not started | AR30: Not started | AT30: Not started | AU30: Not started | AV30: Not started | AW30: Not started | AX30: Not started | AY30: Not started | AZ30: Not started | BA30: Not started | BB30: Not started | BC30: Not started
A31: ='Raw Curriculum data'!A33 -> 24 | B31: 3 | C31: 3 | E31: Adding and subtracting | F31: Unit 3 S1 | G31: Session 1: Estimating | H31: • To estimate to check the reasonableness of an answer | I31: (4C3) estimate and use inverse operations to check answers to a calculation | M31: Not started | N31: Not started | O31: Not started | P31: Not started | Q31: Not started | R31: Not started | S31: Not started | T31: Not started | U31: Not started | V31: Not started | X31: Not started | Y31: Not started | Z31: Not started | AA31: Not started | AB31: Not started | AC31: Not started | AD31: Not started | AE31: Not started | AF31: Not started | AG31: Not started | AI31: Not started | AJ31: Not started | AK31: Not started | AL31: Not started | AM31: Not started | AN31: Not started | AO31: Not started | AP31: Not started | AQ31: Not started | AR31: Not started | AT31: Not started | AU31: Not started | AV31: Not started | AW31: Not started | AX31: Not started | AY31: Not started | AZ31: Not started | BA31: Not started | BB31: Not started | BC31: Not started
A32: ='Raw Curriculum data'!A34 -> 25 | B32: 3 | C32: 3 | E32: Adding and subtracting | F32: Unit 3 S2 | G32: Session 2: Column adding | H32: • To add numbers with up to four digits using the formal written method of column adding | I32: (4C2) add and subtract numbers with up to 4 digits using the formal written methods of columnar addition and subtraction where appropriate | M32: Not started | N32: Not started | O32: Not started | P32: Not started | Q32: Not started | R32: Not started | S32: Not started | T32: Not started | U32: Not started | V32: Not started | X32: Not started | Y32: Not started | Z32: Not started | AA32: Not started | AB32: Not started | AC32: Not started | AD32: Not started | AE32: Not started | AF32: Not started | AG32: Not started | AI32: Not started | AJ32: Not started | AK32: Not started | AL32: Not started | AM32: Not started | AN32: Not started | AO32: Not started | AP32: Not started | AQ32: Not started | AR32: Not started | AT32: Not started | AU32: Not started | AV32: Not started | AW32: Not started | AX32: Not started | AY32: Not started | AZ32: Not started | BA32: Not started | BB32: Not started | BC32: Not started
A33: ='Raw Curriculum data'!A35 -> 26 | B33: 3 | C33: 3 | E33: Adding and subtracting | F33: Unit 3 S2 | G33: Session 2: Column adding | H33: • To estimate the answer to an adding calculation before calculating and then to check answers | I33: (4C3) estimate and use inverse operations to check answers to a calculation | M33: Not started | N33: Not started | O33: Not started | P33: Not started | Q33: Not started | R33: Not started | S33: Not started | T33: Not started | U33: Not started | V33: Not started | X33: Not started | Y33: Not started | Z33: Not started | AA33: Not started | AB33: Not started | AC33: Not started | AD33: Not started | AE33: Not started | AF33: Not started | AG33: Not started | AI33: Not started | AJ33: Not started | AK33: Not started | AL33: Not started | AM33: Not started | AN33: Not started | AO33: Not started | AP33: Not started | AQ33: Not started | AR33: Not started | AT33: Not started | AU33: Not started | AV33: Not started | AW33: Not started | AX33: Not started | AY33: Not started | AZ33: Not started | BA33: Not started | BB33: Not started | BC33: Not started
A34: ='Raw Curriculum data'!A36 -> 27 | B34: 3 | C34: 3 | E34: Adding and subtracting | F34: Unit 3 S3 | G34: Session 3: Column subtracting | H34: • To subtract numbers with up to four digits using the formal written method of column subtracting | I34: (4C2) add and subtract numbers with up to 4 digits using the formal written methods of columnar addition and subtraction where appropriate | M34: Not started | N34: Not started | O34: Not started | P34: Not started | Q34: Not started | R34: Not started | S34: Not started | T34: Not started | U34: Not started | V34: Not started | X34: Not started | Y34: Not started | Z34: Not started | AA34: Not started | AB34: Not started | AC34: Not started | AD34: Not started | AE34: Not started | AF34: Not started | AG34: Not started | AI34: Not started | AJ34: Not started | AK34: Not started | AL34: Not started | AM34: Not started | AN34: Not started | AO34: Not started | AP34: Not started | AQ34: Not started | AR34: Not started | AT34: Not started | AU34: Not started | AV34: Not started | AW34: Not started | AX34: Not started | AY34: Not started | AZ34: Not started | BA34: Not started | BB34: Not started | BC34: Not started
A35: ='Raw Curriculum data'!A37 -> 28 | B35: 3 | C35: 3 | E35: Adding and subtracting | F35: Unit 3 S3 | G35: Session 3: Column subtracting | H35: • To estimate the answer to a subtracting calculation before calculating and then to check answers | I35: (4C3) estimate and use inverse operations to check answers to a calculation | M35: Not started | N35: Not started | O35: Not started | P35: Not started | Q35: Not started | R35: Not started | S35: Not started | T35: Not started | U35: Not started | V35: Not started | X35: Not started | Y35: Not started | Z35: Not started | AA35: Not started | AB35: Not started | AC35: Not started | AD35: Not started | AE35: Not started | AF35: Not started | AG35: Not started | AI35: Not started | AJ35: Not started | AK35: Not started | AL35: Not started | AM35: Not started | AN35: Not started | AO35: Not started | AP35: Not started | AQ35: Not started | AR35: Not started | AT35: Not started | AU35: Not started | AV35: Not started | AW35: Not started | AX35: Not started | AY35: Not started | AZ35: Not started | BA35: Not started | BB35: Not started | BC35: Not started
A36: ='Raw Curriculum data'!A38 -> 29 | B36: 3 | C36: 3 | E36: Adding and subtracting | F36: =IF($A36="","",VLOOKUP($A36,curriculum_data,3,FALSE)) -> Unit 3 S4 | G36: =IF($A36="","",VLOOKUP($A36,curriculum_data,4,FALSE)) -> Session 4: Inverse relationships | H36: =IF($A36="","",VLOOKUP($A36,curriculum_data,5,FALSE)) -> • To use the inverse relationship between adding and subtracting to solve a variety of problems | I36: =IF($A36="","",VLOOKUP($A36,curriculum_data,6,FALSE)) -> (4C3) estimate and use inverse operations to check answers to a calculation | M36: Not started | N36: Not started | O36: Not started | P36: Not started | Q36: Not started | R36: Not started | S36: Not started | T36: Not started | U36: Not started | V36: Not started | X36: Not started | Y36: Not started | Z36: Not started | AA36: Not started | AB36: Not started | AC36: Not started | AD36: Not started | AE36: Not started | AF36: Not started | AG36: Not started | AI36: Not started | AJ36: Not started | AK36: Not started | AL36: Not started | AM36: Not started | AN36: Not started | AO36: Not started | AP36: Not started | AQ36: Not started | AR36: Not started | AT36: Not started | AU36: Not started | AV36: Not started | AW36: Not started | AX36: Not started | AY36: Not started | AZ36: Not started | BA36: Not started | BB36: Not started | BC36: Not started
A37: ='Raw Curriculum data'!A39 -> 30 | B37: 3 | C37: 3 | E37: Adding and subtracting | F37: Unit 3 S4 | G37: Session 4: Inverse relationships | H37: • To know that using the inverse relationships can be useful to check calculations | I37: (4C3) estimate and use inverse operations to check answers to a calculation | M37: Not started | N37: Not started | O37: Not started | P37: Not started | Q37: Not started | R37: Not started | S37: Not started | T37: Not started | U37: Not started | V37: Not started | X37: Not started | Y37: Not started | Z37: Not started | AA37: Not started | AB37: Not started | AC37: Not started | AD37: Not started | AE37: Not started | AF37: Not started | AG37: Not started | AI37: Not started | AJ37: Not started | AK37: Not started | AL37: Not started | AM37: Not started | AN37: Not started | AO37: Not started | AP37: Not started | AQ37: Not started | AR37: Not started | AT37: Not started | AU37: Not started | AV37: Not started | AW37: Not started | AX37: Not started | AY37: Not started | AZ37: Not started | BA37: Not started | BB37: Not started | BC37: Not started
A38: ='Raw Curriculum data'!A40 ->  | C38: 4 | E38: =IF(D39="",IF($A39="","",VLOOKUP($A39,curriculum_data,2,FALSE)), VLOOKUP($D39,units,2,FALSE) ) -> Multiplying and dividing | M38: =IF(COUNTA(OFFSET(M38,2,0,COUNTIF($B:$B,$D39),1))=COUNTIF(OFFSET(M38,2,0,COUNTIF($B:$B,$D39),1),Not_started)," Not started ",IF(COUNTA(OFFSET(M38,2,0,COUNTIF($B:$B,$D39),1))-COUNTIF(OFFSET(M38,2,0,COUNTIF($B:$B,$D39),1),Not_started)<COUNTA(OFFSET(M38,2,0,COUNTIF($B:$B,$D39),1)),"Started",IF(COUNTA(OFFSET(M38,2,0,COUNTIF($B:$B,$D39),1))=COUNTIF(OFFSET(M38,2,0,COUNTIF($B:$B,$D39),1),Green),"Green",IF(COUNTIF(OFFSET(M38,2,0,COUNTIF($B:$B,$D39),1),Red)>0,"Red","Amber") ) ) ) -> Not started | N38: Not started | O38: Not started | P38: Not started | Q38: Not started | R38: Not started | S38: Not started | T38: Not started | U38: Not started | V38: Not started | X38: Not started | Y38: Not started | Z38: Not started | AA38: Not started | AB38: Not started | AC38: Not started | AD38: Not started | AE38: Not started | AF38: Not started | AG38: Not started | AI38: Not started | AJ38: Not started | AK38: Not started | AL38: Not started | AM38: Not started | AN38: Not started | AO38: Not started | AP38: Not started | AQ38: Not started | AR38: Not started | AT38: Not started | AU38: Not started | AV38: Not started | AW38: Not started | AX38: Not started | AY38: Not started | AZ38: Not started | BA38: Not started | BB38: Not started | BC38: Not started
A39: ='Raw Curriculum data'!A41 ->  | C39: 4 | D39: 4 | M39: =CONCATENATE(COUNTIF(OFFSET(M38,2,0,COUNTIF($B:$B,$D39),1),Green)," out of ",COUNTA(OFFSET(M38,2,0,COUNTIF($B:$B,$D39),1))) -> 0 out of 11 | N39: 0 out of 11 | O39: 0 out of 11 | P39: 0 out of 11 | Q39: 0 out of 11 | R39: 0 out of 11 | S39: 0 out of 11 | T39: 0 out of 11 | U39: 0 out of 11 | V39: 0 out of 11 | X39: 0 out of 11 | Y39: 0 out of 11 | Z39: 0 out of 11 | AA39: 0 out of 11 | AB39: 0 out of 11 | AC39: 0 out of 11 | AD39: 0 out of 11 | AE39: 0 out of 11 | AF39: =CONCATENATE(COUNTIF(OFFSET(AF38,2,0,COUNTIF($B:$B,$D39),1),Green)," out of ",COUNTA(OFFSET(AF38,2,0,COUNTIF($B:$B,$D39),1))) -> 0 out of 11 | AG39: 0 out of 11 | AI39: 0 out of 11 | AJ39: 0 out of 11 | AK39: 0 out of 11 | AL39: 0 out of 11 | AM39: 0 out of 11 | AN39: 0 out of 11 | AO39: 0 out of 11 | AP39: 0 out of 11 | AQ39: 0 out of 11 | AR39: 0 out of 11 | AT39: 0 out of 11 | AU39: 0 out of 11 | AV39: 0 out of 11 | AW39: 0 out of 11 | AX39: 0 out of 11 | AY39: 0 out of 11 | AZ39: 0 out of 11 | BA39: 0 out of 11 | BB39: =CONCATENATE(COUNTIF(OFFSET(BB38,2,0,COUNTIF($B:$B,$D39),1),Green)," out of ",COUNTA(OFFSET(BB38,2,0,COUNTIF($B:$B,$D39),1))) -> 0 out of 11 | BC39: 0 out of 11
A40: ='Raw Curriculum data'!A42 -> 31 | B40: 4 | C40: 4 | E40: =IF(D40="",IF($A40="","",VLOOKUP($A40,curriculum_data,2,FALSE)), VLOOKUP($D40,units,2,FALSE) ) -> Multiplying and dividing | F40: Unit 4 S1 | G40: Session 1: Multiplying and dividing | H40: • To recognize that multiplying and dividing are inverse operations (e.g. 10 × 5 = 50 and 50 ÷ 5 = 10). | I40: (4C6c) recognise and use factor pairs and commutativity in mental calculations | M40: Not started | N40: Not started | O40: Not started | P40: Not started | Q40: Not started | R40: Not started | S40: Not started | T40: Not started | U40: Not started | V40: Not started | X40: Not started | Y40: Not started | Z40: Not started | AA40: Not started | AB40: Not started | AC40: Not started | AD40: Not started | AE40: Not started | AF40: Not started | AG40: Not started | AI40: Not started | AJ40: Not started | AK40: Not started | AL40: Not started | AM40: Not started | AN40: Not started | AO40: Not started | AP40: Not started | AQ40: Not started | AR40: Not started | AT40: Not started | AU40: Not started | AV40: Not started | AW40: Not started | AX40: Not started | AY40: Not started | AZ40: Not started | BA40: Not started | BB40: Not started | BC40: Not started
A41: ='Raw Curriculum data'!A43 -> 32 | B41: 4 | C41: 4 | E41: Multiplying and dividing | F41: Unit 4 S1 | G41: Session 1: Multiplying and dividing | H41: • To recognize that multiplying is repeated adding of the same number. | I41: (4C6b) use place value, known and derived facts to multiply and divide mentally, including: multiplying by 0 and 1; dividing by 1; multiplying together three numbers | M41: Not started | N41: Not started | O41: Not started | P41: Not started | Q41: Not started | R41: Not started | S41: Not started | T41: Not started | U41: Not started | V41: Not started | X41: Not started | Y41: Not started | Z41: Not started | AA41: Not started | AB41: Not started | AC41: Not started | AD41: Not started | AE41: Not started | AF41: Not started | AG41: Not started | AI41: Not started | AJ41: Not started | AK41: Not started | AL41: Not started | AM41: Not started | AN41: Not started | AO41: Not started | AP41: Not started | AQ41: Not started | AR41: Not started | AT41: Not started | AU41: Not started | AV41: Not started | AW41: Not started | AX41: Not started | AY41: Not started | AZ41: Not started | BA41: Not started | BB41: Not started | BC41: Not started
A42: ='Raw Curriculum data'!A44 -> 33 | B42: 4 | C42: 4 | E42: Multiplying and dividing | F42: Unit 4 S1 | G42: Session 1: Multiplying and dividing | H42: • To recognize that dividing is repeated subtracting of the same number. | I42: (4C6b) use place value, known and derived facts to multiply and divide mentally, including: multiplying by 0 and 1; dividing by 1; multiplying together three numbers | M42: Not started | N42: Not started | O42: Not started | P42: Not started | Q42: Not started | R42: Not started | S42: Not started | T42: Not started | U42: Not started | V42: Not started | X42: Not started | Y42: Not started | Z42: Not started | AA42: Not started | AB42: Not started | AC42: Not started | AD42: Not started | AE42: Not started | AF42: Not started | AG42: Not started | AI42: Not started | AJ42: Not started | AK42: Not started | AL42: Not started | AM42: Not started | AN42: Not started | AO42: Not started | AP42: Not started | AQ42: Not started | AR42: Not started | AT42: Not started | AU42: Not started | AV42: Not started | AW42: Not started | AX42: Not started | AY42: Not started | AZ42: Not started | BA42: Not started | BB42: Not started | BC42: Not started
A43: ='Raw Curriculum data'!A45 -> 34 | B43: 4 | C43: 4 | E43: Multiplying and dividing | F43: Unit 4 S1 | G43: Session 1: Multiplying and dividing | H43: • To understand the role of zeros in multiplying. | I43: (4C6b) use place value, known and derived facts to multiply and divide mentally, including: multiplying by 0 and 1; dividing by 1; multiplying together three numbers | M43: Not started | N43: Not started | O43: Not started | P43: Not started | Q43: Not started | R43: Not started | S43: Not started | T43: Not started | U43: Not started | V43: Not started | X43: Not started | Y43: Not started | Z43: Not started | AA43: Not started | AB43: Not started | AC43: Not started | AD43: Not started | AE43: Not started | AF43: Not started | AG43: Not started | AI43: Not started | AJ43: Not started | AK43: Not started | AL43: Not started | AM43: Not started | AN43: Not started | AO43: Not started | AP43: Not started | AQ43: Not started | AR43: Not started | AT43: Not started | AU43: Not started | AV43: Not started | AW43: Not started | AX43: Not started | AY43: Not started | AZ43: Not started | BA43: Not started | BB43: Not started | BC43: Not started
A44: ='Raw Curriculum data'!A46 -> 35 | B44: 4 | C44: 4 | E44: Multiplying and dividing | F44: Unit 4 S2 | G44: Session 2: Multiplying and dividing by 10, 100, 1000 | H44: • To multiply a single-digit number by 10, 100 or 1000. | I44: (4C6b) use place value, known and derived facts to multiply and divide mentally, including: multiplying by 0 and 1; dividing by 1; multiplying together three numbers | M44: Not started | N44: Not started | O44: Not started | P44: Not started | Q44: Not started | R44: Not started | S44: Not started | T44: Not started | U44: Not started | V44: Not started | X44: Not started | Y44: Not started | Z44: Not started | AA44: Not started | AB44: Not started | AC44: Not started | AD44: Not started | AE44: Not started | AF44: Not started | AG44: Not started | AI44: Not started | AJ44: Not started | AK44: Not started | AL44: Not started | AM44: Not started | AN44: Not started | AO44: Not started | AP44: Not started | AQ44: Not started | AR44: Not started | AT44: Not started | AU44: Not started | AV44: Not started | AW44: Not started | AX44: Not started | AY44: Not started | AZ44: Not started | BA44: Not started | BB44: Not started | BC44: Not started
A45: ='Raw Curriculum data'!A47 -> 36 | B45: 4 | C45: 4 | E45: Multiplying and dividing | F45: Unit 4 S2 | G45: Session 2: Multiplying and dividing by 10, 100, 1001 | H45: • To divide a thousands, hundreds or tens number by 10, 100 or 1000 leaving a whole number. | I45: (4C6b) use place value, known and derived facts to multiply and divide mentally, including: multiplying by 0 and 1; dividing by 1; multiplying together three numbers | M45: Not started | N45: Not started | O45: Not started | P45: Not started | Q45: Not started | R45: Not started | S45: Not started | T45: Not started | U45: Not started | V45: Not started | X45: Not started | Y45: Not started | Z45: Not started | AA45: Not started | AB45: Not started | AC45: Not started | AD45: Not started | AE45: Not started | AF45: Not started | AG45: Not started | AI45: Not started | AJ45: Not started | AK45: Not started | AL45: Not started | AM45: Not started | AN45: Not started | AO45: Not started | AP45: Not started | AQ45: Not started | AR45: Not started | AT45: Not started | AU45: Not started | AV45: Not started | AW45: Not started | AX45: Not started | AY45: Not started | AZ45: Not started | BA45: Not started | BB45: Not started | BC45: Not started
A46: ='Raw Curriculum data'!A48 -> 37 | B46: 4 | C46: 4 | E46: Multiplying and dividing | F46: Unit 4 S3 | G46: Session 3: Multiplying: HTO × O | H46: • To be able to multiply a 3-digit number by a 1-digit number. | I46: (4C7) multiply two-digit and three-digit numbers by a one-digit number using formal written layout | M46: Not started | N46: Not started | O46: Not started | P46: Not started | Q46: Not started | R46: Not started | S46: Not started | T46: Not started | U46: Not started | V46: Not started | X46: Not started | Y46: Not started | Z46: Not started | AA46: Not started | AB46: Not started | AC46: Not started | AD46: Not started | AE46: Not started | AF46: Not started | AG46: Not started | AI46: Not started | AJ46: Not started | AK46: Not started | AL46: Not started | AM46: Not started | AN46: Not started | AO46: Not started | AP46: Not started | AQ46: Not started | AR46: Not started | AT46: Not started | AU46: Not started | AV46: Not started | AW46: Not started | AX46: Not started | AY46: Not started | AZ46: Not started | BA46: Not started | BB46: Not started | BC46: Not started
A47: ='Raw Curriculum data'!A49 -> 38 | B47: 4 | C47: 4 | E47: Multiplying and dividing | F47: Unit 4 S3 | G47: Session 3: Multiplying: HTO × O | H47: • To be able to use the long and short written methods of multiplying. | I47: (4C7) multiply two-digit and three-digit numbers by a one-digit number using formal written layout | M47: Not started | N47: Not started | O47: Not started | P47: Not started | Q47: Not started | R47: Not started | S47: Not started | T47: Not started | U47: Not started | V47: Not started | X47: Not started | Y47: Not started | Z47: Not started | AA47: Not started | AB47: Not started | AC47: Not started | AD47: Not started | AE47: Not started | AF47: Not started | AG47: Not started | AI47: Not started | AJ47: Not started | AK47: Not started | AL47: Not started | AM47: Not started | AN47: Not started | AO47: Not started | AP47: Not started | AQ47: Not started | AR47: Not started | AT47: Not started | AU47: Not started | AV47: Not started | AW47: Not started | AX47: Not started | AY47: Not started | AZ47: Not started | BA47: Not started | BB47: Not started | BC47: Not started
A48: ='Raw Curriculum data'!A50 -> 39 | B48: 4 | C48: 4 | E48: Multiplying and dividing | F48: Unit 4 S4 | G48: Session 4: Dividing with informal methods | H48: • To reinforce the understanding that dividing is the inverse of multiplying. | I48: (4C6b) use place value, known and derived facts to multiply and divide mentally, including: multiplying by 0 and 1; dividing by 1; multiplying together three numbers | M48: Not started | N48: Not started | O48: Not started | P48: Not started | Q48: Not started | R48: Not started | S48: Not started | T48: Not started | U48: Not started | V48: Not started | X48: Not started | Y48: Not started | Z48: Not started | AA48: Not started | AB48: Not started | AC48: Not started | AD48: Not started | AE48: Not started | AF48: Not started | AG48: Not started | AI48: Not started | AJ48: Not started | AK48: Not started | AL48: Not started | AM48: Not started | AN48: Not started | AO48: Not started | AP48: Not started | AQ48: Not started | AR48: Not started | AT48: Not started | AU48: Not started | AV48: Not started | AW48: Not started | AX48: Not started | AY48: Not started | AZ48: Not started | BA48: Not started | BB48: Not started | BC48: Not started
A49: ='Raw Curriculum data'!A51 -> 40 | B49: 4 | C49: 4 | E49: Multiplying and dividing | F49: Unit 4 S4 | G49: Session 4: Dividing with informal methods | H49: • To understand that dividing is repeated subtracting (of the same number). | I49: (4C6b) use place value, known and derived facts to multiply and divide mentally, including: multiplying by 0 and 1; dividing by 1; multiplying together three numbers | M49: Not started | N49: Not started | O49: Not started | P49: Not started | Q49: Not started | R49: Not started | S49: Not started | T49: Not started | U49: Not started | V49: Not started | X49: Not started | Y49: Not started | Z49: Not started | AA49: Not started | AB49: Not started | AC49: Not started | AD49: Not started | AE49: Not started | AF49: Not started | AG49: Not started | AI49: Not started | AJ49: Not started | AK49: Not started | AL49: Not started | AM49: Not started | AN49: Not started | AO49: Not started | AP49: Not started | AQ49: Not started | AR49: Not started | AT49: Not started | AU49: Not started | AV49: Not started | AW49: Not started | AX49: Not started | AY49: Not started | AZ49: Not started | BA49: Not started | BB49: Not started | BC49: Not started
A50: ='Raw Curriculum data'!A52 -> 41 | B50: 4 | C50: 4 | E50: Multiplying and dividing | F50: Unit 4 S4 | G50: Session 4: Dividing with informal methods | H50: • To recognize that dividing results in equal parts. | I50: (4C6b) use place value, known and derived facts to multiply and divide mentally, including: multiplying by 0 and 1; dividing by 1; multiplying together three numbers | M50: Not started | N50: Not started | O50: Not started | P50: Not started | Q50: Not started | R50: Not started | S50: Not started | T50: Not started | U50: Not started | V50: Not started | X50: Not started | Y50: Not started | Z50: Not started | AA50: Not started | AB50: Not started | AC50: Not started | AD50: Not started | AE50: Not started | AF50: Not started | AG50: Not started | AI50: Not started | AJ50: Not started | AK50: Not started | AL50: Not started | AM50: Not started | AN50: Not started | AO50: Not started | AP50: Not started | AQ50: Not started | AR50: Not started | AT50: Not started | AU50: Not started | AV50: Not started | AW50: Not started | AX50: Not started | AY50: Not started | AZ50: Not started | BA50: Not started | BB50: Not started | BC50: Not started
A51: ='Raw Curriculum data'!A53 ->  | C51: 5 | E51: =IF(D52="",IF($A52="","",VLOOKUP($A52,curriculum_data,2,FALSE)), VLOOKUP($D52,units,2,FALSE) ) -> Fractions | M51: =IF(COUNTA(OFFSET(M51,2,0,COUNTIF($B:$B,$D52),1))=COUNTIF(OFFSET(M51,2,0,COUNTIF($B:$B,$D52),1),Not_started)," Not started ",IF(COUNTA(OFFSET(M51,2,0,COUNTIF($B:$B,$D52),1))-COUNTIF(OFFSET(M51,2,0,COUNTIF($B:$B,$D52),1),Not_started)<COUNTA(OFFSET(M51,2,0,COUNTIF($B:$B,$D52),1)),"Started",IF(COUNTA(OFFSET(M51,2,0,COUNTIF($B:$B,$D52),1))=COUNTIF(OFFSET(M51,2,0,COUNTIF($B:$B,$D52),1),Green),"Green",IF(COUNTIF(OFFSET(M51,2,0,COUNTIF($B:$B,$D52),1),Red)>0,"Red","Amber") ) ) ) -> Not started | N51: Not started | O51: Not started | P51: Not started | Q51: Not started | R51: Not started | S51: Not started | T51: Not started | U51: Not started | V51: Not started | X51: Not started | Y51: Not started | Z51: Not started | AA51: Not started | AB51: Not started | AC51: Not started | AD51: Not started | AE51: Not started | AF51: Not started | AG51: Not started | AI51: Not started | AJ51: Not started | AK51: Not started | AL51: Not started | AM51: Not started | AN51: Not started | AO51: Not started | AP51: Not started | AQ51: Not started | AR51: Not started | AT51: Not started | AU51: Not started | AV51: Not started | AW51: Not started | AX51: Not started | AY51: Not started | AZ51: Not started | BA51: Not started | BB51: Not started | BC51: Not started
A52: ='Raw Curriculum data'!A54 ->  | C52: 5 | D52: 5 | M52: =CONCATENATE(COUNTIF(OFFSET(M51,2,0,COUNTIF($B:$B,$D52),1),Green)," out of ",COUNTA(OFFSET(M51,2,0,COUNTIF($B:$B,$D52),1))) -> 0 out of 12 | N52: 0 out of 12 | O52: 0 out of 12 | P52: 0 out of 12 | Q52: 0 out of 12 | R52: 0 out of 12 | S52: 0 out of 12 | T52: 0 out of 12 | U52: 0 out of 12 | V52: 0 out of 12 | X52: 0 out of 12 | Y52: 0 out of 12 | Z52: 0 out of 12 | AA52: 0 out of 12 | AB52: 0 out of 12 | AC52: 0 out of 12 | AD52: 0 out of 12 | AE52: 0 out of 12 | AF52: =CONCATENATE(COUNTIF(OFFSET(AF51,2,0,COUNTIF($B:$B,$D52),1),Green)," out of ",COUNTA(OFFSET(AF51,2,0,COUNTIF($B:$B,$D52),1))) -> 0 out of 12 | AG52: 0 out of 12 | AI52: 0 out of 12 | AJ52: 0 out of 12 | AK52: 0 out of 12 | AL52: 0 out of 12 | AM52: 0 out of 12 | AN52: 0 out of 12 | AO52: 0 out of 12 | AP52: 0 out of 12 | AQ52: 0 out of 12 | AR52: 0 out of 12 | AT52: 0 out of 12 | AU52: 0 out of 12 | AV52: 0 out of 12 | AW52: 0 out of 12 | AX52: 0 out of 12 | AY52: 0 out of 12 | AZ52: 0 out of 12 | BA52: 0 out of 12 | BB52: =CONCATENATE(COUNTIF(OFFSET(BB51,2,0,COUNTIF($B:$B,$D52),1),Green)," out of ",COUNTA(OFFSET(BB51,2,0,COUNTIF($B:$B,$D52),1))) -> 0 out of 12 | BC52: 0 out of 12
A53: ='Raw Curriculum data'!A55 -> 42 | B53: 5 | C53: 5 | E53: =IF(D53="",IF($A53="","",VLOOKUP($A53,curriculum_data,2,FALSE)), VLOOKUP($D53,units,2,FALSE) ) -> Fractions | F53: Unit 5 S1 | G53: Session 1: Unit fractions | H53: • To be able to show basic fractions on a number line. | I53: (4F1) count up and down in hundredths; recognise that hundredths arise when dividing an object by one hundred and dividing tenths by ten. | M53: Not started | N53: Not started | O53: Not started | P53: Not started | Q53: Not started | R53: Not started | S53: Not started | T53: Not started | U53: Not started | V53: Not started | X53: Not started | Y53: Not started | Z53: Not started | AA53: Not started | AB53: Not started | AC53: Not started | AD53: Not started | AE53: Not started | AF53: Not started | AG53: Not started | AI53: Not started | AJ53: Not started | AK53: Not started | AL53: Not started | AM53: Not started | AN53: Not started | AO53: Not started | AP53: Not started | AQ53: Not started | AR53: Not started | AT53: Not started | AU53: Not started | AV53: Not started | AW53: Not started | AX53: Not started | AY53: Not started | AZ53: Not started | BA53: Not started | BB53: Not started | BC53: Not started
A54: ='Raw Curriculum data'!A56 -> 43 | B54: 5 | C54: 5 | E54: Fractions | F54: Unit 5 S1 | G54: Session 1: Unit fractions | H54: • To understand that fractions involve dividing. | I54: (4F9) find the effect of dividing a one- or two-digit number by 10 and 100, identifying the value of the digits in the answer as ones, tenths and hundredths | M54: Not started | N54: Not started | O54: Not started | P54: Not started | Q54: Not started | R54: Not started | S54: Not started | T54: Not started | U54: Not started | V54: Not started | X54: Not started | Y54: Not started | Z54: Not started | AA54: Not started | AB54: Not started | AC54: Not started | AD54: Not started | AE54: Not started | AF54: Not started | AG54: Not started | AI54: Not started | AJ54: Not started | AK54: Not started | AL54: Not started | AM54: Not started | AN54: Not started | AO54: Not started | AP54: Not started | AQ54: Not started | AR54: Not started | AT54: Not started | AU54: Not started | AV54: Not started | AW54: Not started | AX54: Not started | AY54: Not started | AZ54: Not started | BA54: Not started | BB54: Not started | BC54: Not started
A55: ='Raw Curriculum data'!A57 -> 44 | B55: 5 | C55: 5 | E55: Fractions | F55: Unit 5 S1 | G55: Session 1: Unit fractions | H55: • To know that in unit fractions of the type 1/d as d gets bigger the fraction gets smaller. | I55: (4F9) find the effect of dividing a one- or two-digit number by 10 and 100, identifying the value of the digits in the answer as ones, tenths and hundredths | M55: Not started | N55: Not started | O55: Not started | P55: Not started | Q55: Not started | R55: Not started | S55: Not started | T55: Not started | U55: Not started | V55: Not started | X55: Not started | Y55: Not started | Z55: Not started | AA55: Not started | AB55: Not started | AC55: Not started | AD55: Not started | AE55: Not started | AF55: Not started | AG55: Not started | AI55: Not started | AJ55: Not started | AK55: Not started | AL55: Not started | AM55: Not started | AN55: Not started | AO55: Not started | AP55: Not started | AQ55: Not started | AR55: Not started | AT55: Not started | AU55: Not started | AV55: Not started | AW55: Not started | AX55: Not started | AY55: Not started | AZ55: Not started | BA55: Not started | BB55: Not started | BC55: Not started
A56: ='Raw Curriculum data'!A58 -> 45 | B56: 5 | C56: 5 | E56: Fractions | F56: Unit 5 S2 | G56: Session 2: Non-unit fractions | H56: • To be able to show basic non-unit fractions on a number line. | I56: (4F1) count up and down in hundredths; recognise that hundredths arise when dividing an object by one hundred and dividing tenths by ten. | M56: Not started | N56: Not started | O56: Not started | P56: Not started | Q56: Not started | R56: Not started | S56: Not started | T56: Not started | U56: Not started | V56: Not started | X56: Not started | Y56: Not started | Z56: Not started | AA56: Not started | AB56: Not started | AC56: Not started | AD56: Not started | AE56: Not started | AF56: Not started | AG56: Not started | AI56: Not started | AJ56: Not started | AK56: Not started | AL56: Not started | AM56: Not started | AN56: Not started | AO56: Not started | AP56: Not started | AQ56: Not started | AR56: Not started | AT56: Not started | AU56: Not started | AV56: Not started | AW56: Not started | AX56: Not started | AY56: Not started | AZ56: Not started | BA56: Not started | BB56: Not started | BC56: Not started
A57: ='Raw Curriculum data'!A59 -> 46 | B57: 5 | C57: 5 | E57: Fractions | F57: Unit 5 S2 | G57: Session 2: Non-unit fractions | H57: • To understand that non-unit fractions involve dividing and multiplying. | I57: (4F10a) solve problems involving increasingly harder fractions to calculate quantities, and fractions to divide quantities, including non-unit fractions where the answer is a whole number | M57: Not started | N57: Not started | O57: Not started | P57: Not started | Q57: Not started | R57: Not started | S57: Not started | T57: Not started | U57: Not started | V57: Not started | X57: Not started | Y57: Not started | Z57: Not started | AA57: Not started | AB57: Not started | AC57: Not started | AD57: Not started | AE57: Not started | AF57: Not started | AG57: Not started | AI57: Not started | AJ57: Not started | AK57: Not started | AL57: Not started | AM57: Not started | AN57: Not started | AO57: Not started | AP57: Not started | AQ57: Not started | AR57: Not started | AT57: Not started | AU57: Not started | AV57: Not started | AW57: Not started | AX57: Not started | AY57: Not started | AZ57: Not started | BA57: Not started | BB57: Not started | BC57: Not started
A58: ='Raw Curriculum data'!A60 -> 47 | B58: 5 | C58: 5 | E58: Fractions | F58: Unit 5 S2 | G58: Session 2: Non-unit fractions | H58: • To know that fractions of the type n/d are n times bigger than the unit fraction 1/d | I58: (4F10a) solve problems involving increasingly harder fractions to calculate quantities, and fractions to divide quantities, including non-unit fractions where the answer is a whole number | M58: Not started | N58: Not started | O58: Not started | P58: Not started | Q58: Not started | R58: Not started | S58: Not started | T58: Not started | U58: Not started | V58: Not started | X58: Not started | Y58: Not started | Z58: Not started | AA58: Not started | AB58: Not started | AC58: Not started | AD58: Not started | AE58: Not started | AF58: Not started | AG58: Not started | AI58: Not started | AJ58: Not started | AK58: Not started | AL58: Not started | AM58: Not started | AN58: Not started | AO58: Not started | AP58: Not started | AQ58: Not started | AR58: Not started | AT58: Not started | AU58: Not started | AV58: Not started | AW58: Not started | AX58: Not started | AY58: Not started | AZ58: Not started | BA58: Not started | BB58: Not started | BC58: Not started
A59: ='Raw Curriculum data'!A61 -> 48 | B59: 5 | C59: 5 | E59: Fractions | F59: Unit 5 S3 | G59: Session 3: Fractions of amounts | H59: • To be able to calculate a non-unit fraction of an amount, e.g. 4/5 of 20. | I59: (4F10a) solve problems involving increasingly harder fractions to calculate quantities, and fractions to divide quantities, including non-unit fractions where the answer is a whole number | M59: Not started | N59: Not started | O59: Not started | P59: Not started | Q59: Not started | R59: Not started | S59: Not started | T59: Not started | U59: Not started | V59: Not started | X59: Not started | Y59: Not started | Z59: Not started | AA59: Not started | AB59: Not started | AC59: Not started | AD59: Not started | AE59: Not started | AF59: Not started | AG59: Not started | AI59: Not started | AJ59: Not started | AK59: Not started | AL59: Not started | AM59: Not started | AN59: Not started | AO59: Not started | AP59: Not started | AQ59: Not started | AR59: Not started | AT59: Not started | AU59: Not started | AV59: Not started | AW59: Not started | AX59: Not started | AY59: Not started | AZ59: Not started | BA59: Not started | BB59: Not started | BC59: Not started
A60: ='Raw Curriculum data'!A62 -> 49 | B60: 5 | C60: 5 | E60: Fractions | F60: Unit 5 S3 | G60: Session 3: Fractions of amounts | H60: • To use a number line for tenths accurately. | I60: (4F6b) recognise and write decimal equivalents of any number of tenths or hundredths | M60: Not started | N60: Not started | O60: Not started | P60: Not started | Q60: Not started | R60: Not started | S60: Not started | T60: Not started | U60: Not started | V60: Not started | X60: Not started | Y60: Not started | Z60: Not started | AA60: Not started | AB60: Not started | AC60: Not started | AD60: Not started | AE60: Not started | AF60: Not started | AG60: Not started | AI60: Not started | AJ60: Not started | AK60: Not started | AL60: Not started | AM60: Not started | AN60: Not started | AO60: Not started | AP60: Not started | AQ60: Not started | AR60: Not started | AT60: Not started | AU60: Not started | AV60: Not started | AW60: Not started | AX60: Not started | AY60: Not started | AZ60: Not started | BA60: Not started | BB60: Not started | BC60: Not started
A61: ='Raw Curriculum data'!A63 -> 50 | B61: 5 | C61: 5 | E61: Fractions | F61: Unit 5 S4 | G61: Session 4: Equivalent fractions | H61: • To recognize equivalent fractions. | I61: (4F2) recognise and show, using diagrams, families of common equivalent fractions | M61: Not started | N61: Not started | O61: Not started | P61: Not started | Q61: Not started | R61: Not started | S61: Not started | T61: Not started | U61: Not started | V61: Not started | X61: Not started | Y61: Not started | Z61: Not started | AA61: Not started | AB61: Not started | AC61: Not started | AD61: Not started | AE61: Not started | AF61: Not started | AG61: Not started | AI61: Not started | AJ61: Not started | AK61: Not started | AL61: Not started | AM61: Not started | AN61: Not started | AO61: Not started | AP61: Not started | AQ61: Not started | AR61: Not started | AT61: Not started | AU61: Not started | AV61: Not started | AW61: Not started | AX61: Not started | AY61: Not started | AZ61: Not started | BA61: Not started | BB61: Not started | BC61: Not started
A62: ='Raw Curriculum data'!A64 -> 51 | B62: 5 | C62: 5 | E62: Fractions | F62: Unit 5 S4 | G62: Session 4: Equivalent fractions | H62: • To understand that equivalent fractions have the same value. | I62: (4F2) recognise and show, using diagrams, families of common equivalent fractions | M62: Not started | N62: Not started | O62: Not started | P62: Not started | Q62: Not started | R62: Not started | S62: Not started | T62: Not started | U62: Not started | V62: Not started | X62: Not started | Y62: Not started | Z62: Not started | AA62: Not started | AB62: Not started | AC62: Not started | AD62: Not started | AE62: Not started | AF62: Not started | AG62: Not started | AI62: Not started | AJ62: Not started | AK62: Not started | AL62: Not started | AM62: Not started | AN62: Not started | AO62: Not started | AP62: Not started | AQ62: Not started | AR62: Not started | AT62: Not started | AU62: Not started | AV62: Not started | AW62: Not started | AX62: Not started | AY62: Not started | AZ62: Not started | BA62: Not started | BB62: Not started | BC62: Not started
A63: ='Raw Curriculum data'!A65 -> 52 | B63: 5 | C63: 5 | E63: Fractions | F63: Unit 5 S4 | G63: Session 4: Equivalent fractions | H63: • To be able to generate equivalent fractions. | I63: (4F2) recognise and show, using diagrams, families of common equivalent fractions | M63: Not started | N63: Not started | O63: Not started | P63: Not started | Q63: Not started | R63: Not started | S63: Not started | T63: Not started | U63: Not started | V63: Not started | X63: Not started | Y63: Not started | Z63: Not started | AA63: Not started | AB63: Not started | AC63: Not started | AD63: Not started | AE63: Not started | AF63: Not started | AG63: Not started | AI63: Not started | AJ63: Not started | AK63: Not started | AL63: Not started | AM63: Not started | AN63: Not started | AO63: Not started | AP63: Not started | AQ63: Not started | AR63: Not started | AT63: Not started | AU63: Not started | AV63: Not started | AW63: Not started | AX63: Not started | AY63: Not started | AZ63: Not started | BA63: Not started | BB63: Not started | BC63: Not started
A64: ='Raw Curriculum data'!A66 -> 53 | B64: 5 | C64: 5 | E64: Fractions | F64: Unit 5 S4 | G64: Session 4: Equivalent fractions | H64: • To recognize and use b/b as the equivalent fraction convertor. | I64: (5F2b) identify, name and write equivalent fractions of a given fraction, represented visually, including tenths and hundredths | M64: Not started | N64: Not started | O64: Not started | P64: Not started | Q64: Not started | R64: Not started | S64: Not started | T64: Not started | U64: Not started | V64: Not started | X64: Not started | Y64: Not started | Z64: Not started | AA64: Not started | AB64: Not started | AC64: Not started | AD64: Not started | AE64: Not started | AF64: Not started | AG64: Not started | AI64: Not started | AJ64: Not started | AK64: Not started | AL64: Not started | AM64: Not started | AN64: Not started | AO64: Not started | AP64: Not started | AQ64: Not started | AR64: Not started | AT64: Not started | AU64: Not started | AV64: Not started | AW64: Not started | AX64: Not started | AY64: Not started | AZ64: Not started | BA64: Not started | BB64: Not started | BC64: Not started
A65: ='Raw Curriculum data'!A67 ->  | C65: 6 | E65: =IF(D66="",IF($A66="","",VLOOKUP($A66,curriculum_data,2,FALSE)), VLOOKUP($D66,units,2,FALSE) ) -> Working with fractions, decimals and percentages | M65: =IF(COUNTA(OFFSET(M65,2,0,COUNTIF($B:$B,$D66),1))=COUNTIF(OFFSET(M65,2,0,COUNTIF($B:$B,$D66),1),Not_started)," Not started ",IF(COUNTA(OFFSET(M65,2,0,COUNTIF($B:$B,$D66),1))-COUNTIF(OFFSET(M65,2,0,COUNTIF($B:$B,$D66),1),Not_started)<COUNTA(OFFSET(M65,2,0,COUNTIF($B:$B,$D66),1)),"Started",IF(COUNTA(OFFSET(M65,2,0,COUNTIF($B:$B,$D66),1))=COUNTIF(OFFSET(M65,2,0,COUNTIF($B:$B,$D66),1),Green),"Green",IF(COUNTIF(OFFSET(M65,2,0,COUNTIF($B:$B,$D66),1),Red)>0,"Red","Amber") ) ) ) -> Not started | N65: Not started | O65: Not started | P65: Not started | Q65: Not started | R65: Not started | S65: Not started | T65: Not started | U65: Not started | V65: Not started | X65: Not started | Y65: Not started | Z65: Not started | AA65: Not started | AB65: Not started | AC65: Not started | AD65: Not started | AE65: Not started | AF65: Not started | AG65: Not started | AI65: Not started | AJ65: Not started | AK65: Not started | AL65: Not started | AM65: Not started | AN65: Not started | AO65: Not started | AP65: Not started | AQ65: Not started | AR65: Not started | AT65: Not started | AU65: Not started | AV65: Not started | AW65: Not started | AX65: Not started | AY65: Not started | AZ65: Not started | BA65: Not started | BB65: Not started | BC65: Not started
A66: ='Raw Curriculum data'!A68 ->  | C66: 6 | D66: 6 | M66: =CONCATENATE(COUNTIF(OFFSET(M65,2,0,COUNTIF($B:$B,$D66),1),Green)," out of ",COUNTA(OFFSET(M65,2,0,COUNTIF($B:$B,$D66),1))) -> 0 out of 10 | N66: 0 out of 10 | O66: 0 out of 10 | P66: 0 out of 10 | Q66: 0 out of 10 | R66: 0 out of 10 | S66: 0 out of 10 | T66: 0 out of 10 | U66: 0 out of 10 | V66: 0 out of 10 | X66: 0 out of 10 | Y66: 0 out of 10 | Z66: 0 out of 10 | AA66: 0 out of 10 | AB66: 0 out of 10 | AC66: 0 out of 10 | AD66: 0 out of 10 | AE66: 0 out of 10 | AF66: =CONCATENATE(COUNTIF(OFFSET(AF65,2,0,COUNTIF($B:$B,$D66),1),Green)," out of ",COUNTA(OFFSET(AF65,2,0,COUNTIF($B:$B,$D66),1))) -> 0 out of 10 | AG66: 0 out of 10 | AI66: 0 out of 10 | AJ66: 0 out of 10 | AK66: 0 out of 10 | AL66: 0 out of 10 | AM66: 0 out of 10 | AN66: 0 out of 10 | AO66: 0 out of 10 | AP66: 0 out of 10 | AQ66: 0 out of 10 | AR66: 0 out of 10 | AT66: 0 out of 10 | AU66: 0 out of 10 | AV66: 0 out of 10 | AW66: 0 out of 10 | AX66: 0 out of 10 | AY66: 0 out of 10 | AZ66: 0 out of 10 | BA66: 0 out of 10 | BB66: =CONCATENATE(COUNTIF(OFFSET(BB65,2,0,COUNTIF($B:$B,$D66),1),Green)," out of ",COUNTA(OFFSET(BB65,2,0,COUNTIF($B:$B,$D66),1))) -> 0 out of 10 | BC66: 0 out of 10
A67: ='Raw Curriculum data'!A69 -> 54 | B67: 6 | C67: =IF(B67="",IF(D67="",D68,D67),B67) -> 6 | E67: =IF(D67="",IF($A67="","",VLOOKUP($A67,curriculum_data,2,FALSE)), VLOOKUP($D67,units,2,FALSE) ) -> Working with fractions, decimals and percentages | F67: Unit 6 S1 | G67: Session 1: Adding and subtracting fractions (same denominator) | H67: • To be able to add and subtract two (or more) fractions with the same denominator. | I67: (4F4) add and subtract fractions with the same denominator | M67: Not started | N67: Not started | O67: Not started | P67: Not started | Q67: Not started | R67: Not started | S67: Not started | T67: Not started | U67: Not started | V67: Not started | X67: Not started | Y67: Not started | Z67: Not started | AA67: Not started | AB67: Not started | AC67: Not started | AD67: Not started | AE67: Not started | AF67: Not started | AG67: Not started | AI67: Not started | AJ67: Not started | AK67: Not started | AL67: Not started | AM67: Not started | AN67: Not started | AO67: Not started | AP67: Not started | AQ67: Not started | AR67: Not started | AT67: Not started | AU67: Not started | AV67: Not started | AW67: Not started | AX67: Not started | AY67: Not started | AZ67: Not started | BA67: Not started | BB67: Not started | BC67: Not started
A68: ='Raw Curriculum data'!A70 -> 55 | B68: 6 | C68: 6 | D68: =IF(G68="",B69,"") ->  | E68: Working with fractions, decimals and percentages | F68: =IF($A68="","",VLOOKUP($A68,curriculum_data,3,FALSE)) -> Unit 6 S1 | G68: =IF($A68="","",VLOOKUP($A68,curriculum_data,4,FALSE)) -> Session 1: Adding and subtracting fractions (same denominator) | H68: =IF($A68="","",VLOOKUP($A68,curriculum_data,5,FALSE)) -> • To understand how denominators and numerators are manipulated in these calculations. | I68: =IF($A68="","",VLOOKUP($A68,curriculum_data,6,FALSE)) -> (5F4) add and subtract fractions with the same denominator and denominators that are multiples of the same number | M68: Not started | N68: Not started | O68: Not started | P68: Not started | Q68: Not started | R68: Not started | S68: Not started | T68: Not started | U68: Not started | V68: Not started | X68: Not started | Y68: Not started | Z68: Not started | AA68: Not started | AB68: Not started | AC68: Not started | AD68: Not started | AE68: Not started | AF68: Not started | AG68: Not started | AI68: Not started | AJ68: Not started | AK68: Not started | AL68: Not started | AM68: Not started | AN68: Not started | AO68: Not started | AP68: Not started | AQ68: Not started | AR68: Not started | AT68: Not started | AU68: Not started | AV68: Not started | AW68: Not started | AX68: Not started | AY68: Not started | AZ68: Not started | BA68: Not started | BB68: Not started | BC68: Not started
A69: ='Raw Curriculum data'!A71 -> 56 | B69: =IF(F69="","",MID(F69,6,FIND(" S",F69)-6)) -> 6 | C69: 6 | E69: Working with fractions, decimals and percentages | F69: Unit 6 S2 | G69: Session 2: Fractions and decimal equivalents | H69: • To recognize common fractions and their decimal fractions equivalents (e.g. 1/2 = 0·5, 1/4 = 0·25, 4/10 = 0·4). | I69: (4F6a) recognise and write decimal equivalents to 1/4, 1/2, 3/4 | M69: Not started | N69: Not started | O69: Not started | P69: Not started | Q69: Not started | R69: Not started | S69: Not started | T69: Not started | U69: Not started | V69: Not started | X69: Not started | Y69: Not started | Z69: Not started | AA69: Not started | AB69: Not started | AC69: Not started | AD69: Not started | AE69: Not started | AF69: Not started | AG69: Not started | AI69: Not started | AJ69: Not started | AK69: Not started | AL69: Not started | AM69: Not started | AN69: Not started | AO69: Not started | AP69: Not started | AQ69: Not started | AR69: Not started | AT69: Not started | AU69: Not started | AV69: Not started | AW69: Not started | AX69: Not started | AY69: Not started | AZ69: Not started | BA69: Not started | BB69: Not started | BC69: Not started
A70: ='Raw Curriculum data'!A72 -> 57 | B70: 6 | C70: 6 | E70: Working with fractions, decimals and percentages | F70: Unit 6 S2 | G70: Session 2: Fractions and decimal equivalents | H70: • To compare and order decimal fractions (e.g. 0·1 is 10 times bigger than 0·01). | I70: (4F8) compare numbers with the same number of decimal places up to two decimal places | M70: Not started | N70: Not started | O70: Not started | P70: Not started | Q70: Not started | R70: Not started | S70: Not started | T70: Not started | U70: Not started | V70: Not started | X70: Not started | Y70: Not started | Z70: Not started | AA70: Not started | AB70: Not started | AC70: Not started | AD70: Not started | AE70: Not started | AF70: Not started | AG70: Not started | AI70: Not started | AJ70: Not started | AK70: Not started | AL70: Not started | AM70: Not started | AN70: Not started | AO70: Not started | AP70: Not started | AQ70: Not started | AR70: Not started | AT70: Not started | AU70: Not started | AV70: Not started | AW70: Not started | AX70: Not started | AY70: Not started | AZ70: Not started | BA70: Not started | BB70: Not started | BC70: Not started
A71: ='Raw Curriculum data'!A73 -> 58 | B71: 6 | C71: 6 | E71: Working with fractions, decimals and percentages | F71: Unit 6 S3 | G71: Session 3: Percentages | H71: • To know that percentages are a way of expressing hundredths. | I71: (5F11) recognise the per cent symbol (%) and understand that per cent relates to ‘number of parts per hundred’, and write percentages as a fraction with denominator 100, and as a decimal | M71: Not started | N71: Not started | O71: Not started | P71: Not started | Q71: Not started | R71: Not started | S71: Not started | T71: Not started | U71: Not started | V71: Not started | X71: Not started | Y71: Not started | Z71: Not started | AA71: Not started | AB71: Not started | AC71: Not started | AD71: Not started | AE71: Not started | AF71: Not started | AG71: Not started | AI71: Not started | AJ71: Not started | AK71: Not started | AL71: Not started | AM71: Not started | AN71: Not started | AO71: Not started | AP71: Not started | AQ71: Not started | AR71: Not started | AT71: Not started | AU71: Not started | AV71: Not started | AW71: Not started | AX71: Not started | AY71: Not started | AZ71: Not started | BA71: Not started | BB71: Not started | BC71: Not started
A72: ='Raw Curriculum data'!A74 -> 59 | B72: 6 | C72: 6 | E72: Working with fractions, decimals and percentages | F72: Unit 6 S3 | G72: Session 3: Percentages | H72: • To be able to work out simple percentages of amounts (e.g. 25% of 200, 1% of 400). | I72: (5F11) recognise the per cent symbol (%) and understand that per cent relates to ‘number of parts per hundred’, and write percentages as a fraction with denominator 100, and as a decimal | M72: Not started | N72: Not started | O72: Not started | P72: Not started | Q72: Not started | R72: Not started | S72: Not started | T72: Not started | U72: Not started | V72: Not started | X72: Not started | Y72: Not started | Z72: Not started | AA72: Not started | AB72: Not started | AC72: Not started | AD72: Not started | AE72: Not started | AF72: Not started | AG72: Not started | AI72: Not started | AJ72: Not started | AK72: Not started | AL72: Not started | AM72: Not started | AN72: Not started | AO72: Not started | AP72: Not started | AQ72: Not started | AR72: Not started | AT72: Not started | AU72: Not started | AV72: Not started | AW72: Not started | AX72: Not started | AY72: Not started | AZ72: Not started | BA72: Not started | BB72: Not started | BC72: Not started
A73: ='Raw Curriculum data'!A75 -> 60 | B73: 6 | C73: 6 | E73: Working with fractions, decimals and percentages | F73: Unit 6 S3 | G73: Session 3: Percentages | H73: • To know the fraction equivalents of 1%, 50% and 10%. | I73: (5F12) solve problems which require knowing percentage and decimal equivalents of 1/2, 1/4, 1/5, 2/5, 4/5 and those fractions with a denominator of a multiple of 10 or 25. | M73: Not started | N73: Not started | O73: Not started | P73: Not started | Q73: Not started | R73: Not started | S73: Not started | T73: Not started | U73: Not started | V73: Not started | X73: Not started | Y73: Not started | Z73: Not started | AA73: Not started | AB73: Not started | AC73: Not started | AD73: Not started | AE73: Not started | AF73: Not started | AG73: Not started | AI73: Not started | AJ73: Not started | AK73: Not started | AL73: Not started | AM73: Not started | AN73: Not started | AO73: Not started | AP73: Not started | AQ73: Not started | AR73: Not started | AT73: Not started | AU73: Not started | AV73: Not started | AW73: Not started | AX73: Not started | AY73: Not started | AZ73: Not started | BA73: Not started | BB73: Not started | BC73: Not started
A74: ='Raw Curriculum data'!A76 -> 61 | B74: 6 | C74: 6 | E74: Working with fractions, decimals and percentages | F74: Unit 6 S3 | G74: Session 3: Percentages | H74: • To understand that, e.g. 5% is half of 10% when the total amount is the same. | I74: (5F12) solve problems which require knowing percentage and decimal equivalents of 1/2, 1/4, 1/5, 2/5, 4/5 and those fractions with a denominator of a multiple of 10 or 25. | M74: Not started | N74: Not started | O74: Not started | P74: Not started | Q74: Not started | R74: Not started | S74: Not started | T74: Not started | U74: Not started | V74: Not started | X74: Not started | Y74: Not started | Z74: Not started | AA74: Not started | AB74: Not started | AC74: Not started | AD74: Not started | AE74: Not started | AF74: Not started | AG74: Not started | AI74: Not started | AJ74: Not started | AK74: Not started | AL74: Not started | AM74: Not started | AN74: Not started | AO74: Not started | AP74: Not started | AQ74: Not started | AR74: Not started | AT74: Not started | AU74: Not started | AV74: Not started | AW74: Not started | AX74: Not started | AY74: Not started | AZ74: Not started | BA74: Not started | BB74: Not started | BC74: Not started
A75: ='Raw Curriculum data'!A77 -> 62 | B75: 6 | C75: 6 | E75: Working with fractions, decimals and percentages | F75: Unit 6 S4 | G75: Session 4: Multiplying a fraction by a whole number | H75: • To multiply a whole number by unit and non-unit fractions (e.g. 1/5 × 200 and 3/5 × 200). | I75: (5F5) multiply proper fractions and mixed numbers by whole numbers, supported by materials and diagrams | M75: Not started | N75: Not started | O75: Not started | P75: Not started | Q75: Not started | R75: Not started | S75: Not started | T75: Not started | U75: Not started | V75: Not started | X75: Not started | Y75: Not started | Z75: Not started | AA75: Not started | AB75: Not started | AC75: Not started | AD75: Not started | AE75: Not started | AF75: Not started | AG75: Not started | AI75: Not started | AJ75: Not started | AK75: Not started | AL75: Not started | AM75: Not started | AN75: Not started | AO75: Not started | AP75: Not started | AQ75: Not started | AR75: Not started | AT75: Not started | AU75: Not started | AV75: Not started | AW75: Not started | AX75: Not started | AY75: Not started | AZ75: Not started | BA75: Not started | BB75: Not started | BC75: Not started
A76: ='Raw Curriculum data'!A78 -> 63 | B76: 6 | C76: 6 | E76: Working with fractions, decimals and percentages | F76: Unit 6 S4 | G76: Session 4: Multiplying a fraction by a whole number | H76: • To represent fraction calculations on a number line. | I76: (4F9) find the effect of dividing a one- or two-digit number by 10 and 100, identifying the value of the digits in the answer as ones, tenths and hundredths | M76: Not started | N76: Not started | O76: Not started | P76: Not started | Q76: Not started | R76: Not started | S76: Not started | T76: Not started | U76: Not started | V76: Not started | X76: Not started | Y76: Not started | Z76: Not started | AA76: Not started | AB76: Not started | AC76: Not started | AD76: Not started | AE76: Not started | AF76: Not started | AG76: Not started | AI76: Not started | AJ76: Not started | AK76: Not started | AL76: Not started | AM76: Not started | AN76: Not started | AO76: Not started | AP76: Not started | AQ76: Not started | AR76: Not started | AT76: Not started | AU76: Not started | AV76: Not started | AW76: Not started | AX76: Not started | AY76: Not started | AZ76: Not started | BA76: Not started | BB76: Not started | BC76: Not started
A77: ='Raw Curriculum data'!A79 ->  | C77: 7 | E77: =IF(D78="",IF($A78="","",VLOOKUP($A78,curriculum_data,2,FALSE)), VLOOKUP($D78,units,2,FALSE) ) -> Number and place value | M77: =IF(COUNTA(OFFSET(M77,2,0,COUNTIF($B:$B,$D78),1))=COUNTIF(OFFSET(M77,2,0,COUNTIF($B:$B,$D78),1),Not_started)," Not started ",IF(COUNTA(OFFSET(M77,2,0,COUNTIF($B:$B,$D78),1))-COUNTIF(OFFSET(M77,2,0,COUNTIF($B:$B,$D78),1),Not_started)<COUNTA(OFFSET(M77,2,0,COUNTIF($B:$B,$D78),1)),"Started",IF(COUNTA(OFFSET(M77,2,0,COUNTIF($B:$B,$D78),1))=COUNTIF(OFFSET(M77,2,0,COUNTIF($B:$B,$D78),1),Green),"Green",IF(COUNTIF(OFFSET(M77,2,0,COUNTIF($B:$B,$D78),1),Red)>0,"Red","Amber") ) ) ) -> Not started | N77: Not started | O77: Not started | P77: Not started | Q77: Not started | R77: Not started | S77: Not started | T77: Not started | U77: Not started | V77: Not started | X77: Not started | Y77: Not started | Z77: Not started | AA77: Not started | AB77: Not started | AC77: Not started | AD77: Not started | AE77: Not started | AF77: Not started | AG77: Not started | AI77: Not started | AJ77: Not started | AK77: Not started | AL77: Not started | AM77: Not started | AN77: Not started | AO77: Not started | AP77: Not started | AQ77: Not started | AR77: Not started | AT77: Not started | AU77: Not started | AV77: Not started | AW77: Not started | AX77: Not started | AY77: Not started | AZ77: Not started | BA77: Not started | BB77: Not started | BC77: Not started
A78: ='Raw Curriculum data'!A80 ->  | C78: 7 | D78: 7 | M78: =CONCATENATE(COUNTIF(OFFSET(M77,2,0,COUNTIF($B:$B,$D78),1),Green)," out of ",COUNTA(OFFSET(M77,2,0,COUNTIF($B:$B,$D78),1))) -> 0 out of 9 | N78: 0 out of 9 | O78: 0 out of 9 | P78: 0 out of 9 | Q78: 0 out of 9 | R78: 0 out of 9 | S78: 0 out of 9 | T78: 0 out of 9 | U78: 0 out of 9 | V78: 0 out of 9 | X78: 0 out of 9 | Y78: 0 out of 9 | Z78: 0 out of 9 | AA78: 0 out of 9 | AB78: 0 out of 9 | AC78: 0 out of 9 | AD78: 0 out of 9 | AE78: 0 out of 9 | AF78: =CONCATENATE(COUNTIF(OFFSET(AF77,2,0,COUNTIF($B:$B,$D78),1),Green)," out of ",COUNTA(OFFSET(AF77,2,0,COUNTIF($B:$B,$D78),1))) -> 0 out of 9 | AG78: 0 out of 9 | AI78: 0 out of 9 | AJ78: 0 out of 9 | AK78: 0 out of 9 | AL78: 0 out of 9 | AM78: 0 out of 9 | AN78: 0 out of 9 | AO78: 0 out of 9 | AP78: 0 out of 9 | AQ78: 0 out of 9 | AR78: 0 out of 9 | AT78: 0 out of 9 | AU78: 0 out of 9 | AV78: 0 out of 9 | AW78: 0 out of 9 | AX78: 0 out of 9 | AY78: 0 out of 9 | AZ78: 0 out of 9 | BA78: 0 out of 9 | BB78: =CONCATENATE(COUNTIF(OFFSET(BB77,2,0,COUNTIF($B:$B,$D78),1),Green)," out of ",COUNTA(OFFSET(BB77,2,0,COUNTIF($B:$B,$D78),1))) -> 0 out of 9 | BC78: 0 out of 9
A79: ='Raw Curriculum data'!A81 -> 64 | B79: 7 | C79: 7 | E79: =IF(D79="",IF($A79="","",VLOOKUP($A79,curriculum_data,2,FALSE)), VLOOKUP($D79,units,2,FALSE) ) -> Number and place value | F79: Unit 7 S1 | G79: Session 1: Place value extended to tenths and hundredths | H79: • To link decimals with tenths and hundredths fluently and understand their position in the base-ten system. | I79: (5F6a) read and write decimal numbers as fractions [for example, 0.71 = 71/100] | M79: Not started | N79: Not started | O79: Not started | P79: Not started | Q79: Not started | R79: Not started | S79: Not started | T79: Not started | U79: Not started | V79: Not started | X79: Not started | Y79: Not started | Z79: Not started | AA79: Not started | AB79: Not started | AC79: Not started | AD79: Not started | AE79: Not started | AF79: Not started | AG79: Not started | AI79: Not started | AJ79: Not started | AK79: Not started | AL79: Not started | AM79: Not started | AN79: Not started | AO79: Not started | AP79: Not started | AQ79: Not started | AR79: Not started | AT79: Not started | AU79: Not started | AV79: Not started | AW79: Not started | AX79: Not started | AY79: Not started | AZ79: Not started | BA79: Not started | BB79: Not started | BC79: Not started
A80: ='Raw Curriculum data'!A82 -> 65 | B80: 7 | C80: 7 | E80: Number and place value | F80: Unit 7 S1 | G80: Session 1: Place value extended to tenths and hundredths | H80: • To order decimals with two decimal places. | I80: (4F8) compare numbers with the same number of decimal places up to two decimal places | M80: Not started | N80: Not started | O80: Not started | P80: Not started | Q80: Not started | R80: Not started | S80: Not started | T80: Not started | U80: Not started | V80: Not started | X80: Not started | Y80: Not started | Z80: Not started | AA80: Not started | AB80: Not started | AC80: Not started | AD80: Not started | AE80: Not started | AF80: Not started | AG80: Not started | AI80: Not started | AJ80: Not started | AK80: Not started | AL80: Not started | AM80: Not started | AN80: Not started | AO80: Not started | AP80: Not started | AQ80: Not started | AR80: Not started | AT80: Not started | AU80: Not started | AV80: Not started | AW80: Not started | AX80: Not started | AY80: Not started | AZ80: Not started | BA80: Not started | BB80: Not started | BC80: Not started
A81: ='Raw Curriculum data'!A83 -> 66 | B81: 7 | C81: 7 | E81: Number and place value | F81: Unit 7 S2 | G81: Session 2: Money, money, money | H81: • To compare and order decimals to two decimal places in the context of money. | I81: (4F10b) solve simple measure and money problems involving fractions and decimals to two decimal places. | M81: Not started | N81: Not started | O81: Not started | P81: Not started | Q81: Not started | R81: Not started | S81: Not started | T81: Not started | U81: Not started | V81: Not started | X81: Not started | Y81: Not started | Z81: Not started | AA81: Not started | AB81: Not started | AC81: Not started | AD81: Not started | AE81: Not started | AF81: Not started | AG81: Not started | AI81: Not started | AJ81: Not started | AK81: Not started | AL81: Not started | AM81: Not started | AN81: Not started | AO81: Not started | AP81: Not started | AQ81: Not started | AR81: Not started | AT81: Not started | AU81: Not started | AV81: Not started | AW81: Not started | AX81: Not started | AY81: Not started | AZ81: Not started | BA81: Not started | BB81: Not started | BC81: Not started
A82: ='Raw Curriculum data'!A84 -> 67 | B82: 7 | C82: 7 | E82: Number and place value | F82: Unit 7 S2 | G82: Session 2: Money, money, money | H82: • To understand the use of zero as a place holder in the context of money. | I82: (4F8) compare numbers with the same number of decimal places up to two decimal places | M82: Not started | N82: Not started | O82: Not started | P82: Not started | Q82: Not started | R82: Not started | S82: Not started | T82: Not started | U82: Not started | V82: Not started | X82: Not started | Y82: Not started | Z82: Not started | AA82: Not started | AB82: Not started | AC82: Not started | AD82: Not started | AE82: Not started | AF82: Not started | AG82: Not started | AI82: Not started | AJ82: Not started | AK82: Not started | AL82: Not started | AM82: Not started | AN82: Not started | AO82: Not started | AP82: Not started | AQ82: Not started | AR82: Not started | AT82: Not started | AU82: Not started | AV82: Not started | AW82: Not started | AX82: Not started | AY82: Not started | AZ82: Not started | BA82: Not started | BB82: Not started | BC82: Not started
A83: ='Raw Curriculum data'!A85 -> 68 | B83: 7 | C83: 7 | E83: Number and place value | F83: Unit 7 S3 | G83: Session 3: Numbers to three decimal places | H83: • To read, write, order and compare numbers with up to three decimal places. | I83: (5F8) read, write, order and compare numbers with up to three decimal places | M83: Not started | N83: Not started | O83: Not started | P83: Not started | Q83: Not started | R83: Not started | S83: Not started | T83: Not started | U83: Not started | V83: Not started | X83: Not started | Y83: Not started | Z83: Not started | AA83: Not started | AB83: Not started | AC83: Not started | AD83: Not started | AE83: Not started | AF83: Not started | AG83: Not started | AI83: Not started | AJ83: Not started | AK83: Not started | AL83: Not started | AM83: Not started | AN83: Not started | AO83: Not started | AP83: Not started | AQ83: Not started | AR83: Not started | AT83: Not started | AU83: Not started | AV83: Not started | AW83: Not started | AX83: Not started | AY83: Not started | AZ83: Not started | BA83: Not started | BB83: Not started | BC83: Not started
A84: ='Raw Curriculum data'!A86 -> 69 | B84: 7 | C84: 7 | E84: Number and place value | F84: Unit 7 S3 | G84: Session 3: Numbers to three decimal places | H84: • To use a number line to represent numbers with up to three decimal places. | I84: (5F8) read, write, order and compare numbers with up to three decimal places | M84: Not started | N84: Not started | O84: Not started | P84: Not started | Q84: Not started | R84: Not started | S84: Not started | T84: Not started | U84: Not started | V84: Not started | X84: Not started | Y84: Not started | Z84: Not started | AA84: Not started | AB84: Not started | AC84: Not started | AD84: Not started | AE84: Not started | AF84: Not started | AG84: Not started | AI84: Not started | AJ84: Not started | AK84: Not started | AL84: Not started | AM84: Not started | AN84: Not started | AO84: Not started | AP84: Not started | AQ84: Not started | AR84: Not started | AT84: Not started | AU84: Not started | AV84: Not started | AW84: Not started | AX84: Not started | AY84: Not started | AZ84: Not started | BA84: Not started | BB84: Not started | BC84: Not started
A85: ='Raw Curriculum data'!A87 -> 70 | B85: 7 | C85: 7 | E85: Number and place value | F85: Unit 7 S4 | G85: Session 4: Ordering and rounding decimals | H85: • To compare numbers with the same number of decimal places (with three decimal places). | I85: (5F8) read, write, order and compare numbers with up to three decimal places | M85: Not started | N85: Not started | O85: Not started | P85: Not started | Q85: Not started | R85: Not started | S85: Not started | T85: Not started | U85: Not started | V85: Not started | X85: Not started | Y85: Not started | Z85: Not started | AA85: Not started | AB85: Not started | AC85: Not started | AD85: Not started | AE85: Not started | AF85: Not started | AG85: Not started | AI85: Not started | AJ85: Not started | AK85: Not started | AL85: Not started | AM85: Not started | AN85: Not started | AO85: Not started | AP85: Not started | AQ85: Not started | AR85: Not started | AT85: Not started | AU85: Not started | AV85: Not started | AW85: Not started | AX85: Not started | AY85: Not started | AZ85: Not started | BA85: Not started | BB85: Not started | BC85: Not started
A86: ='Raw Curriculum data'!A88 -> 71 | B86: 7 | C86: 7 | E86: Number and place value | F86: Unit 7 S4 | G86: Session 4: Ordering and rounding decimals | H86: • To round numbers with up to two decimal places to the nearest whole number. | I86: (5F7) round decimals with two decimal places to the nearest whole number and to one decimal place | M86: Not started | N86: Not started | O86: Not started | P86: Not started | Q86: Not started | R86: Not started | S86: Not started | T86: Not started | U86: Not started | V86: Not started | X86: Not started | Y86: Not started | Z86: Not started | AA86: Not started | AB86: Not started | AC86: Not started | AD86: Not started | AE86: Not started | AF86: Not started | AG86: Not started | AI86: Not started | AJ86: Not started | AK86: Not started | AL86: Not started | AM86: Not started | AN86: Not started | AO86: Not started | AP86: Not started | AQ86: Not started | AR86: Not started | AT86: Not started | AU86: Not started | AV86: Not started | AW86: Not started | AX86: Not started | AY86: Not started | AZ86: Not started | BA86: Not started | BB86: Not started | BC86: Not started
A87: ='Raw Curriculum data'!A89 -> 72 | B87: 7 | C87: 7 | E87: Number and place value | F87: Unit 7 S4 | G87: Session 4: Ordering and rounding decimals | H87: • To round numbers with two decimal places to the nearest tenth. | I87: (5F7) round decimals with two decimal places to the nearest whole number and to one decimal place | M87: Not started | N87: Not started | O87: Not started | P87: Not started | Q87: Not started | R87: Not started | S87: Not started | T87: Not started | U87: Not started | V87: Not started | X87: Not started | Y87: Not started | Z87: Not started | AA87: Not started | AB87: Not started | AC87: Not started | AD87: Not started | AE87: Not started | AF87: Not started | AG87: Not started | AI87: Not started | AJ87: Not started | AK87: Not started | AL87: Not started | AM87: Not started | AN87: Not started | AO87: Not started | AP87: Not started | AQ87: Not started | AR87: Not started | AT87: Not started | AU87: Not started | AV87: Not started | AW87: Not started | AX87: Not started | AY87: Not started | AZ87: Not started | BA87: Not started | BB87: Not started | BC87: Not started
A88: ='Raw Curriculum data'!A90 ->  | C88: 8 | E88: =IF(D89="",IF($A89="","",VLOOKUP($A89,curriculum_data,2,FALSE)), VLOOKUP($D89,units,2,FALSE) ) -> Adding and subtracting | M88: =IF(COUNTA(OFFSET(M88,2,0,COUNTIF($B:$B,$D89),1))=COUNTIF(OFFSET(M88,2,0,COUNTIF($B:$B,$D89),1),Not_started)," Not started ",IF(COUNTA(OFFSET(M88,2,0,COUNTIF($B:$B,$D89),1))-COUNTIF(OFFSET(M88,2,0,COUNTIF($B:$B,$D89),1),Not_started)<COUNTA(OFFSET(M88,2,0,COUNTIF($B:$B,$D89),1)),"Started",IF(COUNTA(OFFSET(M88,2,0,COUNTIF($B:$B,$D89),1))=COUNTIF(OFFSET(M88,2,0,COUNTIF($B:$B,$D89),1),Green),"Green",IF(COUNTIF(OFFSET(M88,2,0,COUNTIF($B:$B,$D89),1),Red)>0,"Red","Amber") ) ) ) -> Not started | N88: Not started | O88: Not started | P88: Not started | Q88: Not started | R88: Not started | S88: Not started | T88: Not started | U88: Not started | V88: Not started | X88: Not started | Y88: Not started | Z88: Not started | AA88: Not started | AB88: Not started | AC88: Not started | AD88: Not started | AE88: Not started | AF88: Not started | AG88: Not started | AI88: Not started | AJ88: Not started | AK88: Not started | AL88: Not started | AM88: Not started | AN88: Not started | AO88: Not started | AP88: Not started | AQ88: Not started | AR88: Not started | AT88: Not started | AU88: Not started | AV88: Not started | AW88: Not started | AX88: Not started | AY88: Not started | AZ88: Not started | BA88: Not started | BB88: Not started | BC88: Not started
A89: ='Raw Curriculum data'!A91 ->  | C89: 8 | D89: 8 | M89: =CONCATENATE(COUNTIF(OFFSET(M88,2,0,COUNTIF($B:$B,$D89),1),Green)," out of ",COUNTA(OFFSET(M88,2,0,COUNTIF($B:$B,$D89),1))) -> 0 out of 9 | N89: 0 out of 9 | O89: 0 out of 9 | P89: 0 out of 9 | Q89: 0 out of 9 | R89: 0 out of 9 | S89: 0 out of 9 | T89: 0 out of 9 | U89: 0 out of 9 | V89: 0 out of 9 | X89: 0 out of 9 | Y89: 0 out of 9 | Z89: 0 out of 9 | AA89: 0 out of 9 | AB89: 0 out of 9 | AC89: 0 out of 9 | AD89: 0 out of 9 | AE89: 0 out of 9 | AF89: =CONCATENATE(COUNTIF(OFFSET(AF88,2,0,COUNTIF($B:$B,$D89),1),Green)," out of ",COUNTA(OFFSET(AF88,2,0,COUNTIF($B:$B,$D89),1))) -> 0 out of 9 | AG89: 0 out of 9 | AI89: 0 out of 9 | AJ89: 0 out of 9 | AK89: 0 out of 9 | AL89: 0 out of 9 | AM89: 0 out of 9 | AN89: 0 out of 9 | AO89: 0 out of 9 | AP89: 0 out of 9 | AQ89: 0 out of 9 | AR89: 0 out of 9 | AT89: 0 out of 9 | AU89: 0 out of 9 | AV89: 0 out of 9 | AW89: 0 out of 9 | AX89: 0 out of 9 | AY89: 0 out of 9 | AZ89: 0 out of 9 | BA89: 0 out of 9 | BB89: =CONCATENATE(COUNTIF(OFFSET(BB88,2,0,COUNTIF($B:$B,$D89),1),Green)," out of ",COUNTA(OFFSET(BB88,2,0,COUNTIF($B:$B,$D89),1))) -> 0 out of 9 | BC89: 0 out of 9
A90: ='Raw Curriculum data'!A92 -> 73 | B90: 8 | C90: 8 | E90: =IF(D90="",IF($A90="","",VLOOKUP($A90,curriculum_data,2,FALSE)), VLOOKUP($D90,units,2,FALSE) ) -> Adding and subtracting | F90: Unit 8 S1 | G90: Session 1: Using the column method with larger numbers | H90: • To use the written column method for adding and subtracting (up to 5-digit numbers). | I90: (4C2) add and subtract numbers with up to 4 digits using the formal written methods of columnar addition and subtraction where appropriate | M90: Not started | N90: Not started | O90: Not started | P90: Not started | Q90: Not started | R90: Not started | S90: Not started | T90: Not started | U90: Not started | V90: Not started | X90: Not started | Y90: Not started | Z90: Not started | AA90: Not started | AB90: Not started | AC90: Not started | AD90: Not started | AE90: Not started | AF90: Not started | AG90: Not started | AI90: Not started | AJ90: Not started | AK90: Not started | AL90: Not started | AM90: Not started | AN90: Not started | AO90: Not started | AP90: Not started | AQ90: Not started | AR90: Not started | AT90: Not started | AU90: Not started | AV90: Not started | AW90: Not started | AX90: Not started | AY90: Not started | AZ90: Not started | BA90: Not started | BB90: Not started | BC90: Not started
A91: ='Raw Curriculum data'!A93 -> 74 | B91: 8 | C91: 8 | E91: Adding and subtracting | F91: Unit 8 S1 | G91: Session 1: Using the column method with larger numbers | H91: • To use estimation and the inverse relationship between adding and subtracting to check answers. | I91: (4C3)estimate and use inverse operations to check answers to a calculation | M91: Not started | N91: Not started | O91: Not started | P91: Not started | Q91: Not started | R91: Not started | S91: Not started | T91: Not started | U91: Not started | V91: Not started | X91: Not started | Y91: Not started | Z91: Not started | AA91: Not started | AB91: Not started | AC91: Not started | AD91: Not started | AE91: Not started | AF91: Not started | AG91: Not started | AI91: Not started | AJ91: Not started | AK91: Not started | AL91: Not started | AM91: Not started | AN91: Not started | AO91: Not started | AP91: Not started | AQ91: Not started | AR91: Not started | AT91: Not started | AU91: Not started | AV91: Not started | AW91: Not started | AX91: Not started | AY91: Not started | AZ91: Not started | BA91: Not started | BB91: Not started | BC91: Not started
A92: ='Raw Curriculum data'!A94 -> 75 | B92: 8 | C92: 8 | E92: Adding and subtracting | F92: Unit 8 S2 | G92: Session 2: Adding and subtracting money | H92: • To know that the decimal point separates the whole and fractional parts in decimal notation. | I92: (4F9) find the effect of dividing a one- or two-digit number by 10 and 100, identifying the value of the digits in the answer as ones, tenths and hundredths | M92: Not started | N92: Not started | O92: Not started | P92: Not started | Q92: Not started | R92: Not started | S92: Not started | T92: Not started | U92: Not started | V92: Not started | X92: Not started | Y92: Not started | Z92: Not started | AA92: Not started | AB92: Not started | AC92: Not started | AD92: Not started | AE92: Not started | AF92: Not started | AG92: Not started | AI92: Not started | AJ92: Not started | AK92: Not started | AL92: Not started | AM92: Not started | AN92: Not started | AO92: Not started | AP92: Not started | AQ92: Not started | AR92: Not started | AT92: Not started | AU92: Not started | AV92: Not started | AW92: Not started | AX92: Not started | AY92: Not started | AZ92: Not started | BA92: Not started | BB92: Not started | BC92: Not started
A93: ='Raw Curriculum data'!A95 -> 76 | B93: 8 | C93: 8 | E93: Adding and subtracting | F93: Unit 8 S2 | G93: Session 2: Adding and subtracting money | H93: • To add and subtract numbers up to two decimal places using the column method. | I93: (4C2) add and subtract numbers with up to 4 digits using the formal written methods of columnar addition and subtraction where appropriate | M93: Not started | N93: Not started | O93: Not started | P93: Not started | Q93: Not started | R93: Not started | S93: Not started | T93: Not started | U93: Not started | V93: Not started | X93: Not started | Y93: Not started | Z93: Not started | AA93: Not started | AB93: Not started | AC93: Not started | AD93: Not started | AE93: Not started | AF93: Not started | AG93: Not started | AI93: Not started | AJ93: Not started | AK93: Not started | AL93: Not started | AM93: Not started | AN93: Not started | AO93: Not started | AP93: Not started | AQ93: Not started | AR93: Not started | AT93: Not started | AU93: Not started | AV93: Not started | AW93: Not started | AX93: Not started | AY93: Not started | AZ93: Not started | BA93: Not started | BB93: Not started | BC93: Not started
A94: ='Raw Curriculum data'!A96 -> 77 | B94: 8 | C94: 8 | E94: Adding and subtracting | F94: Unit 8 S2 | G94: Session 2: Adding and subtracting money | H94: • To solve simple money problems involving numbers to two decimal places. | I94: (4F10b) solve simple measure and money problems involving fractions and decimals to two decimal places. | M94: Not started | N94: Not started | O94: Not started | P94: Not started | Q94: Not started | R94: Not started | S94: Not started | T94: Not started | U94: Not started | V94: Not started | X94: Not started | Y94: Not started | Z94: Not started | AA94: Not started | AB94: Not started | AC94: Not started | AD94: Not started | AE94: Not started | AF94: Not started | AG94: Not started | AI94: Not started | AJ94: Not started | AK94: Not started | AL94: Not started | AM94: Not started | AN94: Not started | AO94: Not started | AP94: Not started | AQ94: Not started | AR94: Not started | AT94: Not started | AU94: Not started | AV94: Not started | AW94: Not started | AX94: Not started | AY94: Not started | AZ94: Not started | BA94: Not started | BB94: Not started | BC94: Not started
A95: ='Raw Curriculum data'!A97 -> 78 | B95: 8 | C95: 8 | E95: Adding and subtracting | F95: Unit 8 S3 | G95: Session 3: Column methods for adding and subtracting decimals | H95: • To know that the decimal point separates the whole and fractional parts in decimal notation. | I95: (4F9) find the effect of dividing a one- or two-digit number by 10 and 100, identifying the value of the digits in the answer as ones, tenths and hundredths | M95: Not started | N95: Not started | O95: Not started | P95: Not started | Q95: Not started | R95: Not started | S95: Not started | T95: Not started | U95: Not started | V95: Not started | X95: Not started | Y95: Not started | Z95: Not started | AA95: Not started | AB95: Not started | AC95: Not started | AD95: Not started | AE95: Not started | AF95: Not started | AG95: Not started | AI95: Not started | AJ95: Not started | AK95: Not started | AL95: Not started | AM95: Not started | AN95: Not started | AO95: Not started | AP95: Not started | AQ95: Not started | AR95: Not started | AT95: Not started | AU95: Not started | AV95: Not started | AW95: Not started | AX95: Not started | AY95: Not started | AZ95: Not started | BA95: Not started | BB95: Not started | BC95: Not started
A96: ='Raw Curriculum data'!A98 -> 79 | B96: 8 | C96: 8 | E96: Adding and subtracting | F96: Unit 8 S3 | G96: Session 3: Column methods for adding and subtracting decimals | H96: • To add and subtract numbers with up to three decimal places using the column method. | I96: (4C2) add and subtract numbers with up to 4 digits using the formal written methods of columnar addition and subtraction where appropriate | M96: Not started | N96: Not started | O96: Not started | P96: Not started | Q96: Not started | R96: Not started | S96: Not started | T96: Not started | U96: Not started | V96: Not started | X96: Not started | Y96: Not started | Z96: Not started | AA96: Not started | AB96: Not started | AC96: Not started | AD96: Not started | AE96: Not started | AF96: Not started | AG96: Not started | AI96: Not started | AJ96: Not started | AK96: Not started | AL96: Not started | AM96: Not started | AN96: Not started | AO96: Not started | AP96: Not started | AQ96: Not started | AR96: Not started | AT96: Not started | AU96: Not started | AV96: Not started | AW96: Not started | AX96: Not started | AY96: Not started | AZ96: Not started | BA96: Not started | BB96: Not started | BC96: Not started
A97: ='Raw Curriculum data'!A99 -> 80 | B97: 8 | C97: 8 | E97: Adding and subtracting | F97: Unit 8 S4 | G97: Session 4: Using inverse relationships when adding and subtracting decimals | H97: • To use the inverse relationship between adding and subtracting to solve a variety of problems. | I97: (4C4/ 5C4) solve addition and subtraction two-step problems in contexts, deciding which operations and methods to use and why. | M97: Not started | N97: Not started | O97: Not started | P97: Not started | Q97: Not started | R97: Not started | S97: Not started | T97: Not started | U97: Not started | V97: Not started | X97: Not started | Y97: Not started | Z97: Not started | AA97: Not started | AB97: Not started | AC97: Not started | AD97: Not started | AE97: Not started | AF97: Not started | AG97: Not started | AI97: Not started | AJ97: Not started | AK97: Not started | AL97: Not started | AM97: Not started | AN97: Not started | AO97: Not started | AP97: Not started | AQ97: Not started | AR97: Not started | AT97: Not started | AU97: Not started | AV97: Not started | AW97: Not started | AX97: Not started | AY97: Not started | AZ97: Not started | BA97: Not started | BB97: Not started | BC97: Not started
A98: ='Raw Curriculum data'!A100 -> 81 | B98: 8 | C98: 8 | E98: Adding and subtracting | F98: Unit 8 S4 | G98: Session 4: Using inverse relationships when adding and subtracting decimals | H98: • To add and subtract decimals up to two decimal places. | I98: (4F10b) solve simple measure and money problems involving fractions and decimals to two decimal places. | M98: Not started | N98: Not started | O98: Not started | P98: Not started | Q98: Not started | R98: Not started | S98: Not started | T98: Not started | U98: Not started | V98: Not started | X98: Not started | Y98: Not started | Z98: Not started | AA98: Not started | AB98: Not started | AC98: Not started | AD98: Not started | AE98: Not started | AF98: Not started | AG98: Not started | AI98: Not started | AJ98: Not started | AK98: Not started | AL98: Not started | AM98: Not started | AN98: Not started | AO98: Not started | AP98: Not started | AQ98: Not started | AR98: Not started | AT98: Not started | AU98: Not started | AV98: Not started | AW98: Not started | AX98: Not started | AY98: Not started | AZ98: Not started | BA98: Not started | BB98: Not started | BC98: Not started
A99: ='Raw Curriculum data'!A101 ->  | C99: 9 | E99: =IF(D100="",IF($A100="","",VLOOKUP($A100,curriculum_data,2,FALSE)), VLOOKUP($D100,units,2,FALSE) ) -> Multiplying and dividing | M99: =IF(COUNTA(OFFSET(M99,2,0,COUNTIF($B:$B,$D100),1))=COUNTIF(OFFSET(M99,2,0,COUNTIF($B:$B,$D100),1),Not_started)," Not started ",IF(COUNTA(OFFSET(M99,2,0,COUNTIF($B:$B,$D100),1))-COUNTIF(OFFSET(M99,2,0,COUNTIF($B:$B,$D100),1),Not_started)<COUNTA(OFFSET(M99,2,0,COUNTIF($B:$B,$D100),1)),"Started",IF(COUNTA(OFFSET(M99,2,0,COUNTIF($B:$B,$D100),1))=COUNTIF(OFFSET(M99,2,0,COUNTIF($B:$B,$D100),1),Green),"Green",IF(COUNTIF(OFFSET(M99,2,0,COUNTIF($B:$B,$D100),1),Red)>0,"Red","Amber") ) ) ) -> Not started | N99: Not started | O99: Not started | P99: Not started | Q99: Not started | R99: Not started | S99: Not started | T99: Not started | U99: Not started | V99: Not started | X99: Not started | Y99: Not started | Z99: Not started | AA99: Not started | AB99: Not started | AC99: Not started | AD99: Not started | AE99: Not started | AF99: Not started | AG99: Not started | AI99: Not started | AJ99: Not started | AK99: Not started | AL99: Not started | AM99: Not started | AN99: Not started | AO99: Not started | AP99: Not started | AQ99: Not started | AR99: Not started | AT99: Not started | AU99: Not started | AV99: Not started | AW99: Not started | AX99: Not started | AY99: Not started | AZ99: Not started | BA99: Not started | BB99: Not started | BC99: Not started
A100: ='Raw Curriculum data'!A102 ->  | C100: 9 | D100: 9 | F100: =IF($A100="","",VLOOKUP($A100,curriculum_data,3,FALSE)) ->  | G100: =IF($A100="","",VLOOKUP($A100,curriculum_data,4,FALSE)) ->  | H100: =IF($A100="","",VLOOKUP($A100,curriculum_data,5,FALSE)) ->  | I100: =IF($A100="","",VLOOKUP($A100,curriculum_data,6,FALSE)) ->  | M100: =CONCATENATE(COUNTIF(OFFSET(M99,2,0,COUNTIF($B:$B,$D100),1),Green)," out of ",COUNTA(OFFSET(M99,2,0,COUNTIF($B:$B,$D100),1))) -> 0 out of 12 | N100: 0 out of 12 | O100: 0 out of 12 | P100: 0 out of 12 | Q100: 0 out of 12 | R100: 0 out of 12 | S100: 0 out of 12 | T100: 0 out of 12 | U100: 0 out of 12 | V100: 0 out of 12 | X100: 0 out of 12 | Y100: 0 out of 12 | Z100: 0 out of 12 | AA100: 0 out of 12 | AB100: 0 out of 12 | AC100: 0 out of 12 | AD100: 0 out of 12 | AE100: 0 out of 12 | AF100: =CONCATENATE(COUNTIF(OFFSET(AF99,2,0,COUNTIF($B:$B,$D100),1),Green)," out of ",COUNTA(OFFSET(AF99,2,0,COUNTIF($B:$B,$D100),1))) -> 0 out of 12 | AG100: 0 out of 12 | AI100: 0 out of 12 | AJ100: 0 out of 12 | AK100: 0 out of 12 | AL100: 0 out of 12 | AM100: 0 out of 12 | AN100: 0 out of 12 | AO100: 0 out of 12 | AP100: 0 out of 12 | AQ100: 0 out of 12 | AR100: 0 out of 12 | AT100: 0 out of 12 | AU100: 0 out of 12 | AV100: 0 out of 12 | AW100: 0 out of 12 | AX100: 0 out of 12 | AY100: 0 out of 12 | AZ100: 0 out of 12 | BA100: 0 out of 12 | BB100: =CONCATENATE(COUNTIF(OFFSET(BB99,2,0,COUNTIF($B:$B,$D100),1),Green)," out of ",COUNTA(OFFSET(BB99,2,0,COUNTIF($B:$B,$D100),1))) -> 0 out of 12 | BC100: 0 out of 12
A101: ='Raw Curriculum data'!A103 -> 82 | B101: 9 | C101: 9 | E101: =IF(D101="",IF($A101="","",VLOOKUP($A101,curriculum_data,2,FALSE)), VLOOKUP($D101,units,2,FALSE) ) -> Multiplying and dividing | F101: Unit 9 S1 | G101: Session 1: Multiplying and dividing by 10, 100 and 1000 including decimals | H101: • To multiply and divide numbers, including decimals, by 10, 100 and 1000. | I101: (5C6b) multiply and divide whole numbers and those involving decimals by 10, 100 and 1000 | M101: Not started | N101: Not started | O101: Not started | P101: Not started | Q101: Not started | R101: Not started | S101: Not started | T101: Not started | U101: Not started | V101: Not started | X101: Not started | Y101: Not started | Z101: Not started | AA101: Not started | AB101: Not started | AC101: Not started | AD101: Not started | AE101: Not started | AF101: Not started | AG101: Not started | AI101: Not started | AJ101: Not started | AK101: Not started | AL101: Not started | AM101: Not started | AN101: Not started | AO101: Not started | AP101: Not started | AQ101: Not started | AR101: Not started | AT101: Not started | AU101: Not started | AV101: Not started | AW101: Not started | AX101: Not started | AY101: Not started | AZ101: Not started | BA101: Not started | BB101: Not started | BC101: Not started
A102: ='Raw Curriculum data'!A104 -> 83 | B102: 9 | C102: 9 | E102: Multiplying and dividing | F102: Unit 9 S1 | G102: Session 1: Multiplying and dividing by 10, 100 and 1000 including decimals | H102: • To understand and demonstrate the new place values of digits resulting from these operations. | I102: (5N1) count forwards or backwards in steps of powers of 10 for any given number up to 1 000 000 | M102: Not started | N102: Not started | O102: Not started | P102: Not started | Q102: Not started | R102: Not started | S102: Not started | T102: Not started | U102: Not started | V102: Not started | X102: Not started | Y102: Not started | Z102: Not started | AA102: Not started | AB102: Not started | AC102: Not started | AD102: Not started | AE102: Not started | AF102: Not started | AG102: Not started | AI102: Not started | AJ102: Not started | AK102: Not started | AL102: Not started | AM102: Not started | AN102: Not started | AO102: Not started | AP102: Not started | AQ102: Not started | AR102: Not started | AT102: Not started | AU102: Not started | AV102: Not started | AW102: Not started | AX102: Not started | AY102: Not started | AZ102: Not started | BA102: Not started | BB102: Not started | BC102: Not started
A103: ='Raw Curriculum data'!A105 -> 84 | B103: 9 | C103: 9 | E103: Multiplying and dividing | F103: Unit 9 S1 | G103: Session 1: Multiplying and dividing by 10, 100 and 1000 including decimals | H103: • To understand the role of zero as a place holder in decimal numbers. | I103: (4F6b) recognise and write decimal equivalents of any number of tenths or hundredths | M103: Not started | N103: Not started | O103: Not started | P103: Not started | Q103: Not started | R103: Not started | S103: Not started | T103: Not started | U103: Not started | V103: Not started | X103: Not started | Y103: Not started | Z103: Not started | AA103: Not started | AB103: Not started | AC103: Not started | AD103: Not started | AE103: Not started | AF103: Not started | AG103: Not started | AI103: Not started | AJ103: Not started | AK103: Not started | AL103: Not started | AM103: Not started | AN103: Not started | AO103: Not started | AP103: Not started | AQ103: Not started | AR103: Not started | AT103: Not started | AU103: Not started | AV103: Not started | AW103: Not started | AX103: Not started | AY103: Not started | AZ103: Not started | BA103: Not started | BB103: Not started | BC103: Not started
A104: ='Raw Curriculum data'!A106 -> 85 | B104: 9 | C104: 9 | E104: Multiplying and dividing | F104: Unit 9 S2 | G104: Session 2: Multiplying 2- and 3-digit numbers | H104: • To develop an understanding of multiplying TO × TO and HTO × TO. | I104: (5C7a) multiply numbers up to 4 digits by a one- or two-digit number using a formal written method, including long multiplication for two-digit numbers | M104: Not started | N104: Not started | O104: Not started | P104: Not started | Q104: Not started | R104: Not started | S104: Not started | T104: Not started | U104: Not started | V104: Not started | X104: Not started | Y104: Not started | Z104: Not started | AA104: Not started | AB104: Not started | AC104: Not started | AD104: Not started | AE104: Not started | AF104: Not started | AG104: Not started | AI104: Not started | AJ104: Not started | AK104: Not started | AL104: Not started | AM104: Not started | AN104: Not started | AO104: Not started | AP104: Not started | AQ104: Not started | AR104: Not started | AT104: Not started | AU104: Not started | AV104: Not started | AW104: Not started | AX104: Not started | AY104: Not started | AZ104: Not started | BA104: Not started | BB104: Not started | BC104: Not started
A105: ='Raw Curriculum data'!A107 -> 86 | B105: 9 | C105: 9 | E105: Multiplying and dividing | F105: Unit 9 S2 | G105: Session 2: Multiplying 2- and 3-digit numbers | H105: • To understand that multiplying can be done as repeated adding of parts. | I105: (4C6b) use place value, known and derived facts to multiply and divide mentally, including: multiplying by 0 and 1; dividing by 1; multiplying together three numbers | M105: Not started | N105: Not started | O105: Not started | P105: Not started | Q105: Not started | R105: Not started | S105: Not started | T105: Not started | U105: Not started | V105: Not started | X105: Not started | Y105: Not started | Z105: Not started | AA105: Not started | AB105: Not started | AC105: Not started | AD105: Not started | AE105: Not started | AF105: Not started | AG105: Not started | AI105: Not started | AJ105: Not started | AK105: Not started | AL105: Not started | AM105: Not started | AN105: Not started | AO105: Not started | AP105: Not started | AQ105: Not started | AR105: Not started | AT105: Not started | AU105: Not started | AV105: Not started | AW105: Not started | AX105: Not started | AY105: Not started | AZ105: Not started | BA105: Not started | BB105: Not started | BC105: Not started
A106: ='Raw Curriculum data'!A108 -> 87 | B106: 9 | C106: 9 | E106: Multiplying and dividing | F106: Unit 9 S3 | G106: Session 3: The short written method of dividing: ThHTO ÷ O | H106: • To link dividing to multiplying as the inverse operation. | I106: (4C6b) use place value, known and derived facts to multiply and divide mentally, including: multiplying by 0 and 1; dividing by 1; multiplying together three numbers | M106: Not started | N106: Not started | O106: Not started | P106: Not started | Q106: Not started | R106: Not started | S106: Not started | T106: Not started | U106: Not started | V106: Not started | X106: Not started | Y106: Not started | Z106: Not started | AA106: Not started | AB106: Not started | AC106: Not started | AD106: Not started | AE106: Not started | AF106: Not started | AG106: Not started | AI106: Not started | AJ106: Not started | AK106: Not started | AL106: Not started | AM106: Not started | AN106: Not started | AO106: Not started | AP106: Not started | AQ106: Not started | AR106: Not started | AT106: Not started | AU106: Not started | AV106: Not started | AW106: Not started | AX106: Not started | AY106: Not started | AZ106: Not started | BA106: Not started | BB106: Not started | BC106: Not started
A107: ='Raw Curriculum data'!A109 -> 88 | B107: 9 | C107: 9 | E107: Multiplying and dividing | F107: Unit 9 S3 | G107: Session 3: The short written method of dividing: ThHTO ÷ O | H107: • To be able to estimate an answer. | I107: (4C3) estimate and use inverse operations to check answers to a calculation | M107: Not started | N107: Not started | O107: Not started | P107: Not started | Q107: Not started | R107: Not started | S107: Not started | T107: Not started | U107: Not started | V107: Not started | X107: Not started | Y107: Not started | Z107: Not started | AA107: Not started | AB107: Not started | AC107: Not started | AD107: Not started | AE107: Not started | AF107: Not started | AG107: Not started | AI107: Not started | AJ107: Not started | AK107: Not started | AL107: Not started | AM107: Not started | AN107: Not started | AO107: Not started | AP107: Not started | AQ107: Not started | AR107: Not started | AT107: Not started | AU107: Not started | AV107: Not started | AW107: Not started | AX107: Not started | AY107: Not started | AZ107: Not started | BA107: Not started | BB107: Not started | BC107: Not started
A108: ='Raw Curriculum data'!A110 -> 89 | B108: 9 | C108: 9 | E108: Multiplying and dividing | F108: Unit 9 S3 | G108: Session 3: The short written method of dividing: ThHTO ÷ O | H108: • To understand that dividing involves repeated subtracting of parts. | I108: (5C7b) divide numbers up to 4 digits by a one-digit number using the formal written method of short division and interpret remainders appropriately for the context | M108: Not started | N108: Not started | O108: Not started | P108: Not started | Q108: Not started | R108: Not started | S108: Not started | T108: Not started | U108: Not started | V108: Not started | X108: Not started | Y108: Not started | Z108: Not started | AA108: Not started | AB108: Not started | AC108: Not started | AD108: Not started | AE108: Not started | AF108: Not started | AG108: Not started | AI108: Not started | AJ108: Not started | AK108: Not started | AL108: Not started | AM108: Not started | AN108: Not started | AO108: Not started | AP108: Not started | AQ108: Not started | AR108: Not started | AT108: Not started | AU108: Not started | AV108: Not started | AW108: Not started | AX108: Not started | AY108: Not started | AZ108: Not started | BA108: Not started | BB108: Not started | BC108: Not started
A109: ='Raw Curriculum data'!A111 -> 90 | B109: 9 | C109: 9 | E109: Multiplying and dividing | F109: Unit 9 S4 | G109: Session 4: Interpreting remainders | H109: • To recognize a remainder. | I109: (5C7b) divide numbers up to 4 digits by a one-digit number using the formal written method of short division and interpret remainders appropriately for the context | M109: Not started | N109: Not started | O109: Not started | P109: Not started | Q109: Not started | R109: Not started | S109: Not started | T109: Not started | U109: Not started | V109: Not started | X109: Not started | Y109: Not started | Z109: Not started | AA109: Not started | AB109: Not started | AC109: Not started | AD109: Not started | AE109: Not started | AF109: Not started | AG109: Not started | AI109: Not started | AJ109: Not started | AK109: Not started | AL109: Not started | AM109: Not started | AN109: Not started | AO109: Not started | AP109: Not started | AQ109: Not started | AR109: Not started | AT109: Not started | AU109: Not started | AV109: Not started | AW109: Not started | AX109: Not started | AY109: Not started | AZ109: Not started | BA109: Not started | BB109: Not started | BC109: Not started
A110: ='Raw Curriculum data'!A112 -> 91 | B110: 9 | C110: 9 | E110: Multiplying and dividing | F110: Unit 9 S4 | G110: Session 4: Interpreting remainders | H110: • To convert remainders to fractions and decimals. | I110: (5C7b) divide numbers up to 4 digits by a one-digit number using the formal written method of short division and interpret remainders appropriately for the context | M110: Not started | N110: Not started | O110: Not started | P110: Not started | Q110: Not started | R110: Not started | S110: Not started | T110: Not started | U110: Not started | V110: Not started | X110: Not started | Y110: Not started | Z110: Not started | AA110: Not started | AB110: Not started | AC110: Not started | AD110: Not started | AE110: Not started | AF110: Not started | AG110: Not started | AI110: Not started | AJ110: Not started | AK110: Not started | AL110: Not started | AM110: Not started | AN110: Not started | AO110: Not started | AP110: Not started | AQ110: Not started | AR110: Not started | AT110: Not started | AU110: Not started | AV110: Not started | AW110: Not started | AX110: Not started | AY110: Not started | AZ110: Not started | BA110: Not started | BB110: Not started | BC110: Not started
A111: ='Raw Curriculum data'!A113 -> 92 | B111: 9 | C111: 9 | E111: Multiplying and dividing | F111: Unit 9 S4 | G111: Session 4: Interpreting remainders | H111: • To write a remainder as a number, fraction or decimal. | I111: (5C7b) divide numbers up to 4 digits by a one-digit number using the formal written method of short division and interpret remainders appropriately for the context | M111: Not started | N111: Not started | O111: Not started | P111: Not started | Q111: Not started | R111: Not started | S111: Not started | T111: Not started | U111: Not started | V111: Not started | X111: Not started | Y111: Not started | Z111: Not started | AA111: Not started | AB111: Not started | AC111: Not started | AD111: Not started | AE111: Not started | AF111: Not started | AG111: Not started | AI111: Not started | AJ111: Not started | AK111: Not started | AL111: Not started | AM111: Not started | AN111: Not started | AO111: Not started | AP111: Not started | AQ111: Not started | AR111: Not started | AT111: Not started | AU111: Not started | AV111: Not started | AW111: Not started | AX111: Not started | AY111: Not started | AZ111: Not started | BA111: Not started | BB111: Not started | BC111: Not started
A112: ='Raw Curriculum data'!A114 -> 93 | B112: 9 | C112: 9 | E112: Multiplying and dividing | F112: Unit 9 S4 | G112: Session 4: Interpreting remainders | H112: • To write the quotient as a mixed number. | I112: (5F2a) recognise mixed numbers and improper fractions and convert from one form to the other and write mathematical statements > 1 as a mixed number [for example, 2/5 + 4/5 = 6/5 = 1 1/5] | M112: Not started | N112: Not started | O112: Not started | P112: Not started | Q112: Not started | R112: Not started | S112: Not started | T112: Not started | U112: Not started | V112: Not started | X112: Not started | Y112: Not started | Z112: Not started | AA112: Not started | AB112: Not started | AC112: Not started | AD112: Not started | AE112: Not started | AF112: Not started | AG112: Not started | AI112: Not started | AJ112: Not started | AK112: Not started | AL112: Not started | AM112: Not started | AN112: Not started | AO112: Not started | AP112: Not started | AQ112: Not started | AR112: Not started | AT112: Not started | AU112: Not started | AV112: Not started | AW112: Not started | AX112: Not started | AY112: Not started | AZ112: Not started | BA112: Not started | BB112: Not started | BC112: Not started
A113: ='Raw Curriculum data'!A115 ->  | C113: 10 | E113: =IF(D114="",IF($A114="","",VLOOKUP($A114,curriculum_data,2,FALSE)), VLOOKUP($D114,units,2,FALSE) ) -> Fractions | M113: =IF(COUNTA(OFFSET(M113,2,0,COUNTIF($B:$B,$D114),1))=COUNTIF(OFFSET(M113,2,0,COUNTIF($B:$B,$D114),1),Not_started)," Not started ",IF(COUNTA(OFFSET(M113,2,0,COUNTIF($B:$B,$D114),1))-COUNTIF(OFFSET(M113,2,0,COUNTIF($B:$B,$D114),1),Not_started)<COUNTA(OFFSET(M113,2,0,COUNTIF($B:$B,$D114),1)),"Started",IF(COUNTA(OFFSET(M113,2,0,COUNTIF($B:$B,$D114),1))=COUNTIF(OFFSET(M113,2,0,COUNTIF($B:$B,$D114),1),Green),"Green",IF(COUNTIF(OFFSET(M113,2,0,COUNTIF($B:$B,$D114),1),Red)>0,"Red","Amber") ) ) ) -> Not started | N113: Not started | O113: Not started | P113: Not started | Q113: Not started | R113: Not started | S113: Not started | T113: Not started | U113: Not started | V113: Not started | X113: Not started | Y113: Not started | Z113: Not started | AA113: Not started | AB113: Not started | AC113: Not started | AD113: Not started | AE113: Not started | AF113: Not started | AG113: Not started | AI113: Not started | AJ113: Not started | AK113: Not started | AL113: Not started | AM113: Not started | AN113: Not started | AO113: Not started | AP113: Not started | AQ113: Not started | AR113: Not started | AT113: Not started | AU113: Not started | AV113: Not started | AW113: Not started | AX113: Not started | AY113: Not started | AZ113: Not started | BA113: Not started | BB113: Not started | BC113: Not started
A114: ='Raw Curriculum data'!A116 ->  | C114: 10 | D114: 10 | M114: =CONCATENATE(COUNTIF(OFFSET(M113,2,0,COUNTIF($B:$B,$D114),1),Green)," out of ",COUNTA(OFFSET(M113,2,0,COUNTIF($B:$B,$D114),1))) -> 0 out of 10 | N114: 0 out of 10 | O114: 0 out of 10 | P114: 0 out of 10 | Q114: 0 out of 10 | R114: 0 out of 10 | S114: 0 out of 10 | T114: 0 out of 10 | U114: 0 out of 10 | V114: 0 out of 10 | X114: 0 out of 10 | Y114: 0 out of 10 | Z114: 0 out of 10 | AA114: 0 out of 10 | AB114: 0 out of 10 | AC114: 0 out of 10 | AD114: 0 out of 10 | AE114: 0 out of 10 | AF114: =CONCATENATE(COUNTIF(OFFSET(AF113,2,0,COUNTIF($B:$B,$D114),1),Green)," out of ",COUNTA(OFFSET(AF113,2,0,COUNTIF($B:$B,$D114),1))) -> 0 out of 10 | AG114: 0 out of 10 | AI114: 0 out of 10 | AJ114: 0 out of 10 | AK114: 0 out of 10 | AL114: 0 out of 10 | AM114: 0 out of 10 | AN114: 0 out of 10 | AO114: 0 out of 10 | AP114: 0 out of 10 | AQ114: 0 out of 10 | AR114: 0 out of 10 | AT114: 0 out of 10 | AU114: 0 out of 10 | AV114: 0 out of 10 | AW114: 0 out of 10 | AX114: 0 out of 10 | AY114: 0 out of 10 | AZ114: 0 out of 10 | BA114: 0 out of 10 | BB114: =CONCATENATE(COUNTIF(OFFSET(BB113,2,0,COUNTIF($B:$B,$D114),1),Green)," out of ",COUNTA(OFFSET(BB113,2,0,COUNTIF($B:$B,$D114),1))) -> 0 out of 10 | BC114: 0 out of 10
A115: ='Raw Curriculum data'!A117 -> 94 | B115: 10 | C115: 10 | E115: =IF(D115="",IF($A115="","",VLOOKUP($A115,curriculum_data,2,FALSE)), VLOOKUP($D115,units,2,FALSE) ) -> Fractions | F115: Unit 10 S1 | G115: Session 1: Mixed numbers | H115: • To identify proper and improper fractions. | I115: (5F2a) recognise mixed numbers and improper fractions and convert from one form to the other and write mathematical statements > 1 as a mixed number [for example, 2/5 + 4/5 = 6/5 = 1 1/5 ] | M115: Not started | N115: Not started | O115: Not started | P115: Not started | Q115: Not started | R115: Not started | S115: Not started | T115: Not started | U115: Not started | V115: Not started | X115: Not started | Y115: Not started | Z115: Not started | AA115: Not started | AB115: Not started | AC115: Not started | AD115: Not started | AE115: Not started | AF115: Not started | AG115: Not started | AI115: Not started | AJ115: Not started | AK115: Not started | AL115: Not started | AM115: Not started | AN115: Not started | AO115: Not started | AP115: Not started | AQ115: Not started | AR115: Not started | AT115: Not started | AU115: Not started | AV115: Not started | AW115: Not started | AX115: Not started | AY115: Not started | AZ115: Not started | BA115: Not started | BB115: Not started | BC115: Not started
A116: ='Raw Curriculum data'!A118 -> 95 | B116: 10 | C116: 10 | E116: Fractions | F116: Unit 10 S1 | G116: Session 1: Mixed numbers | H116: • To understand how mixed numbers are written. | I116: (5F2a) recognise mixed numbers and improper fractions and convert from one form to the other and write mathematical statements > 1 as a mixed number [for example, 2/5 + 4/5 = 6/5 = 1 1/5 ] | M116: Not started | N116: Not started | O116: Not started | P116: Not started | Q116: Not started | R116: Not started | S116: Not started | T116: Not started | U116: Not started | V116: Not started | X116: Not started | Y116: Not started | Z116: Not started | AA116: Not started | AB116: Not started | AC116: Not started | AD116: Not started | AE116: Not started | AF116: Not started | AG116: Not started | AI116: Not started | AJ116: Not started | AK116: Not started | AL116: Not started | AM116: Not started | AN116: Not started | AO116: Not started | AP116: Not started | AQ116: Not started | AR116: Not started | AT116: Not started | AU116: Not started | AV116: Not started | AW116: Not started | AX116: Not started | AY116: Not started | AZ116: Not started | BA116: Not started | BB116: Not started | BC116: Not started
A117: ='Raw Curriculum data'!A119 -> 96 | B117: 10 | C117: 10 | E117: Fractions | F117: Unit 10 S2 | G117: Session 2: Mixed numbers and the number line | H117: • To locate a mixed number on a fraction number line. | I117: (5F2a) recognise mixed numbers and improper fractions and convert from one form to the other and write mathematical statements > 1 as a mixed number [for example, 2/5 + 4/5 = 6/5 = 1 1/5 ] | M117: Not started | N117: Not started | O117: Not started | P117: Not started | Q117: Not started | R117: Not started | S117: Not started | T117: Not started | U117: Not started | V117: Not started | X117: Not started | Y117: Not started | Z117: Not started | AA117: Not started | AB117: Not started | AC117: Not started | AD117: Not started | AE117: Not started | AF117: Not started | AG117: Not started | AI117: Not started | AJ117: Not started | AK117: Not started | AL117: Not started | AM117: Not started | AN117: Not started | AO117: Not started | AP117: Not started | AQ117: Not started | AR117: Not started | AT117: Not started | AU117: Not started | AV117: Not started | AW117: Not started | AX117: Not started | AY117: Not started | AZ117: Not started | BA117: Not started | BB117: Not started | BC117: Not started
A118: ='Raw Curriculum data'!A120 -> 97 | B118: 10 | C118: 10 | E118: Fractions | F118: Unit 10 S2 | G118: Session 2: Mixed numbers and the number line | H118: • To count on and back with mixed numbers. | I118: (5F2a) recognise mixed numbers and improper fractions and convert from one form to the other and write mathematical statements > 1 as a mixed number [for example, 2/5 + 4/5 = 6/5 = 1 1/5 ] | M118: Not started | N118: Not started | O118: Not started | P118: Not started | Q118: Not started | R118: Not started | S118: Not started | T118: Not started | U118: Not started | V118: Not started | X118: Not started | Y118: Not started | Z118: Not started | AA118: Not started | AB118: Not started | AC118: Not started | AD118: Not started | AE118: Not started | AF118: Not started | AG118: Not started | AI118: Not started | AJ118: Not started | AK118: Not started | AL118: Not started | AM118: Not started | AN118: Not started | AO118: Not started | AP118: Not started | AQ118: Not started | AR118: Not started | AT118: Not started | AU118: Not started | AV118: Not started | AW118: Not started | AX118: Not started | AY118: Not started | AZ118: Not started | BA118: Not started | BB118: Not started | BC118: Not started
A119: ='Raw Curriculum data'!A121 -> 98 | B119: 10 | C119: 10 | E119: Fractions | F119: Unit 10 S3 | G119: Session 3: Finding equivalent fractions | H119: • To recognize and calculate equivalent fractions. | I119: (5F2b) identify, name and write equivalent fractions of a given fraction, represented visually, including tenths and hundredths | M119: Not started | N119: Not started | O119: Not started | P119: Not started | Q119: Not started | R119: Not started | S119: Not started | T119: Not started | U119: Not started | V119: Not started | X119: Not started | Y119: Not started | Z119: Not started | AA119: Not started | AB119: Not started | AC119: Not started | AD119: Not started | AE119: Not started | AF119: Not started | AG119: Not started | AI119: Not started | AJ119: Not started | AK119: Not started | AL119: Not started | AM119: Not started | AN119: Not started | AO119: Not started | AP119: Not started | AQ119: Not started | AR119: Not started | AT119: Not started | AU119: Not started | AV119: Not started | AW119: Not started | AX119: Not started | AY119: Not started | AZ119: Not started | BA119: Not started | BB119: Not started | BC119: Not started
A120: ='Raw Curriculum data'!A122 -> 99 | B120: 10 | C120: 10 | E120: Fractions | F120: Unit 10 S3 | G120: Session 3: Finding equivalent fractions | H120: • To recognize that 1 can be represented as 2/2 or 7/7 or b/b. | I120: (4N4a) identify, represent and estimate numbers using different representations | M120: Not started | N120: Not started | O120: Not started | P120: Not started | Q120: Not started | R120: Not started | S120: Not started | T120: Not started | U120: Not started | V120: Not started | X120: Not started | Y120: Not started | Z120: Not started | AA120: Not started | AB120: Not started | AC120: Not started | AD120: Not started | AE120: Not started | AF120: Not started | AG120: Not started | AI120: Not started | AJ120: Not started | AK120: Not started | AL120: Not started | AM120: Not started | AN120: Not started | AO120: Not started | AP120: Not started | AQ120: Not started | AR120: Not started | AT120: Not started | AU120: Not started | AV120: Not started | AW120: Not started | AX120: Not started | AY120: Not started | AZ120: Not started | BA120: Not started | BB120: Not started | BC120: Not started
A121: ='Raw Curriculum data'!A123 -> 100 | B121: 10 | C121: 10 | E121: Fractions | F121: Unit 10 S3 | G121: Session 3: Finding equivalent fractions | H121: • To understand the effect of multiplying a fraction by 1. | I121: (4C6b) use place value, known and derived facts to multiply and divide mentally, including: multiplying by 0 and 1; dividing by 1; multiplying together three numbers | M121: Not started | N121: Not started | O121: Not started | P121: Not started | Q121: Not started | R121: Not started | S121: Not started | T121: Not started | U121: Not started | V121: Not started | X121: Not started | Y121: Not started | Z121: Not started | AA121: Not started | AB121: Not started | AC121: Not started | AD121: Not started | AE121: Not started | AF121: Not started | AG121: Not started | AI121: Not started | AJ121: Not started | AK121: Not started | AL121: Not started | AM121: Not started | AN121: Not started | AO121: Not started | AP121: Not started | AQ121: Not started | AR121: Not started | AT121: Not started | AU121: Not started | AV121: Not started | AW121: Not started | AX121: Not started | AY121: Not started | AZ121: Not started | BA121: Not started | BB121: Not started | BC121: Not started
A122: ='Raw Curriculum data'!A124 -> 101 | B122: 10 | C122: 10 | E122: Fractions | F122: Unit 10 S3 | G122: Session 3: Finding equivalent fractions | H122: • To know that an equivalent fraction will result from multiplying the numerator and the denominator by the same number. | I122: (4F2) recognise and show, using diagrams, families of common equivalent fractions | M122: Not started | N122: Not started | O122: Not started | P122: Not started | Q122: Not started | R122: Not started | S122: Not started | T122: Not started | U122: Not started | V122: Not started | X122: Not started | Y122: Not started | Z122: Not started | AA122: Not started | AB122: Not started | AC122: Not started | AD122: Not started | AE122: Not started | AF122: Not started | AG122: Not started | AI122: Not started | AJ122: Not started | AK122: Not started | AL122: Not started | AM122: Not started | AN122: Not started | AO122: Not started | AP122: Not started | AQ122: Not started | AR122: Not started | AT122: Not started | AU122: Not started | AV122: Not started | AW122: Not started | AX122: Not started | AY122: Not started | AZ122: Not started | BA122: Not started | BB122: Not started | BC122: Not started
A123: ='Raw Curriculum data'!A125 -> 102 | B123: 10 | C123: 10 | E123: Fractions | F123: Unit 10 S4 | G123: Session 4: Comparing and ordering fractions | H123: • To compare and order fractions with the same denominator and different numerators. | I123: (5F3) compare and order fractions whose denominators are all multiples of the same number | M123: Not started | N123: Not started | O123: Not started | P123: Not started | Q123: Not started | R123: Not started | S123: Not started | T123: Not started | U123: Not started | V123: Not started | X123: Not started | Y123: Not started | Z123: Not started | AA123: Not started | AB123: Not started | AC123: Not started | AD123: Not started | AE123: Not started | AF123: Not started | AG123: Not started | AI123: Not started | AJ123: Not started | AK123: Not started | AL123: Not started | AM123: Not started | AN123: Not started | AO123: Not started | AP123: Not started | AQ123: Not started | AR123: Not started | AT123: Not started | AU123: Not started | AV123: Not started | AW123: Not started | AX123: Not started | AY123: Not started | AZ123: Not started | BA123: Not started | BB123: Not started | BC123: Not started
A124: ='Raw Curriculum data'!A126 -> 103 | B124: 10 | C124: 10 | E124: Fractions | F124: Unit 10 S4 | G124: Session 4: Comparing and ordering fractions | H124: • To compare and order fractions with the same numerator and different denominators. | I124: (5F3) compare and order fractions whose denominators are all multiples of the same number | M124: Not started | N124: Not started | O124: Not started | P124: Not started | Q124: Not started | R124: Not started | S124: Not started | T124: Not started | U124: Not started | V124: Not started | X124: Not started | Y124: Not started | Z124: Not started | AA124: Not started | AB124: Not started | AC124: Not started | AD124: Not started | AE124: Not started | AF124: Not started | AG124: Not started | AI124: Not started | AJ124: Not started | AK124: Not started | AL124: Not started | AM124: Not started | AN124: Not started | AO124: Not started | AP124: Not started | AQ124: Not started | AR124: Not started | AT124: Not started | AU124: Not started | AV124: Not started | AW124: Not started | AX124: Not started | AY124: Not started | AZ124: Not started | BA124: Not started | BB124: Not started | BC124: Not started
A125: ='Raw Curriculum data'!A127 ->  | C125: 11 | E125: =IF(D126="",IF($A126="","",VLOOKUP($A126,curriculum_data,2,FALSE)), VLOOKUP($D126,units,2,FALSE) ) -> Working with fractions, decimals and percentages | M125: =IF(COUNTA(OFFSET(M125,2,0,COUNTIF($B:$B,$D126),1))=COUNTIF(OFFSET(M125,2,0,COUNTIF($B:$B,$D126),1),Not_started)," Not started ",IF(COUNTA(OFFSET(M125,2,0,COUNTIF($B:$B,$D126),1))-COUNTIF(OFFSET(M125,2,0,COUNTIF($B:$B,$D126),1),Not_started)<COUNTA(OFFSET(M125,2,0,COUNTIF($B:$B,$D126),1)),"Started",IF(COUNTA(OFFSET(M125,2,0,COUNTIF($B:$B,$D126),1))=COUNTIF(OFFSET(M125,2,0,COUNTIF($B:$B,$D126),1),Green),"Green",IF(COUNTIF(OFFSET(M125,2,0,COUNTIF($B:$B,$D126),1),Red)>0,"Red","Amber") ) ) ) -> Not started | N125: Not started | O125: Not started | P125: Not started | Q125: Not started | R125: Not started | S125: Not started | T125: Not started | U125: Not started | V125: Not started | X125: Not started | Y125: Not started | Z125: Not started | AA125: Not started | AB125: Not started | AC125: Not started | AD125: Not started | AE125: Not started | AF125: Not started | AG125: Not started | AI125: Not started | AJ125: Not started | AK125: Not started | AL125: Not started | AM125: Not started | AN125: Not started | AO125: Not started | AP125: Not started | AQ125: Not started | AR125: Not started | AT125: Not started | AU125: Not started | AV125: Not started | AW125: Not started | AX125: Not started | AY125: Not started | AZ125: Not started | BA125: Not started | BB125: Not started | BC125: Not started
A126: ='Raw Curriculum data'!A128 ->  | C126: 11 | D126: 11 | M126: =CONCATENATE(COUNTIF(OFFSET(M125,2,0,COUNTIF($B:$B,$D126),1),Green)," out of ",COUNTA(OFFSET(M125,2,0,COUNTIF($B:$B,$D126),1))) -> 0 out of 9 | N126: 0 out of 9 | O126: 0 out of 9 | P126: 0 out of 9 | Q126: 0 out of 9 | R126: 0 out of 9 | S126: 0 out of 9 | T126: 0 out of 9 | U126: 0 out of 9 | V126: 0 out of 9 | X126: 0 out of 9 | Y126: 0 out of 9 | Z126: 0 out of 9 | AA126: 0 out of 9 | AB126: 0 out of 9 | AC126: 0 out of 9 | AD126: 0 out of 9 | AE126: 0 out of 9 | AF126: =CONCATENATE(COUNTIF(OFFSET(AF125,2,0,COUNTIF($B:$B,$D126),1),Green)," out of ",COUNTA(OFFSET(AF125,2,0,COUNTIF($B:$B,$D126),1))) -> 0 out of 9 | AG126: 0 out of 9 | AI126: 0 out of 9 | AJ126: 0 out of 9 | AK126: 0 out of 9 | AL126: 0 out of 9 | AM126: 0 out of 9 | AN126: 0 out of 9 | AO126: 0 out of 9 | AP126: 0 out of 9 | AQ126: 0 out of 9 | AR126: 0 out of 9 | AT126: 0 out of 9 | AU126: 0 out of 9 | AV126: 0 out of 9 | AW126: 0 out of 9 | AX126: 0 out of 9 | AY126: 0 out of 9 | AZ126: 0 out of 9 | BA126: 0 out of 9 | BB126: =CONCATENATE(COUNTIF(OFFSET(BB125,2,0,COUNTIF($B:$B,$D126),1),Green)," out of ",COUNTA(OFFSET(BB125,2,0,COUNTIF($B:$B,$D126),1))) -> 0 out of 9 | BC126: 0 out of 9
A127: ='Raw Curriculum data'!A129 -> 104 | B127: 11 | C127: 11 | E127: =IF(D127="",IF($A127="","",VLOOKUP($A127,curriculum_data,2,FALSE)), VLOOKUP($D127,units,2,FALSE) ) -> Working with fractions, decimals and percentages | F127: Unit 11 S1 | G127: Session 1: Adding and subtracting fractions with different denominators | H127: • To add and subtract fractions with different denominators (e.g. 11/12 − 1/4). | I127: (5F4) add and subtract fractions with the same denominator and denominators that are multiples of the same number | M127: Not started | N127: Not started | O127: Not started | P127: Not started | Q127: Not started | R127: Not started | S127: Not started | T127: Not started | U127: Not started | V127: Not started | X127: Not started | Y127: Not started | Z127: Not started | AA127: Not started | AB127: Not started | AC127: Not started | AD127: Not started | AE127: Not started | AF127: Not started | AG127: Not started | AI127: Not started | AJ127: Not started | AK127: Not started | AL127: Not started | AM127: Not started | AN127: Not started | AO127: Not started | AP127: Not started | AQ127: Not started | AR127: Not started | AT127: Not started | AU127: Not started | AV127: Not started | AW127: Not started | AX127: Not started | AY127: Not started | AZ127: Not started | BA127: Not started | BB127: Not started | BC127: Not started
A128: ='Raw Curriculum data'!A130 -> 105 | B128: 11 | C128: 11 | E128: Working with fractions, decimals and percentages | F128: Unit 11 S1 | G128: Session 1: Adding and subtracting fractions with different denominators | H128: • To add and subtract fractions to 1 (e.g. 10/10 − 7/10). | I128: (4C6b) use place value, known and derived facts to multiply and divide mentally, including: multiplying by 0 and 1; dividing by 1; multiplying together three numbers | M128: Not started | N128: Not started | O128: Not started | P128: Not started | Q128: Not started | R128: Not started | S128: Not started | T128: Not started | U128: Not started | V128: Not started | X128: Not started | Y128: Not started | Z128: Not started | AA128: Not started | AB128: Not started | AC128: Not started | AD128: Not started | AE128: Not started | AF128: Not started | AG128: Not started | AI128: Not started | AJ128: Not started | AK128: Not started | AL128: Not started | AM128: Not started | AN128: Not started | AO128: Not started | AP128: Not started | AQ128: Not started | AR128: Not started | AT128: Not started | AU128: Not started | AV128: Not started | AW128: Not started | AX128: Not started | AY128: Not started | AZ128: Not started | BA128: Not started | BB128: Not started | BC128: Not started
A129: ='Raw Curriculum data'!A131 -> 106 | B129: 11 | C129: 11 | E129: Working with fractions, decimals and percentages | F129: Unit 11 S2 | G129: Session 2: Calculating with fractions and mixed numbers | H129: • To add and subtract mixed numbers (e.g. 5 1/2 + 4 3/10 ). | I129: (5F4) add and subtract fractions with the same denominator and denominators that are multiples of the same number | M129: Not started | N129: Not started | O129: Not started | P129: Not started | Q129: Not started | R129: Not started | S129: Not started | T129: Not started | U129: Not started | V129: Not started | X129: Not started | Y129: Not started | Z129: Not started | AA129: Not started | AB129: Not started | AC129: Not started | AD129: Not started | AE129: Not started | AF129: Not started | AG129: Not started | AI129: Not started | AJ129: Not started | AK129: Not started | AL129: Not started | AM129: Not started | AN129: Not started | AO129: Not started | AP129: Not started | AQ129: Not started | AR129: Not started | AT129: Not started | AU129: Not started | AV129: Not started | AW129: Not started | AX129: Not started | AY129: Not started | AZ129: Not started | BA129: Not started | BB129: Not started | BC129: Not started
A130: ='Raw Curriculum data'!A132 -> 107 | B130: 11 | C130: 11 | E130: Working with fractions, decimals and percentages | F130: Unit 11 S2 | G130: Session 2: Calculating with fractions and mixed numbers | H130: • To multiply a mixed number (e.g. 1 3/4 × 4). | I130: (5F5) multiply proper fractions and mixed numbers by whole numbers, supported by materials and diagrams | M130: Not started | N130: Not started | O130: Not started | P130: Not started | Q130: Not started | R130: Not started | S130: Not started | T130: Not started | U130: Not started | V130: Not started | X130: Not started | Y130: Not started | Z130: Not started | AA130: Not started | AB130: Not started | AC130: Not started | AD130: Not started | AE130: Not started | AF130: Not started | AG130: Not started | AI130: Not started | AJ130: Not started | AK130: Not started | AL130: Not started | AM130: Not started | AN130: Not started | AO130: Not started | AP130: Not started | AQ130: Not started | AR130: Not started | AT130: Not started | AU130: Not started | AV130: Not started | AW130: Not started | AX130: Not started | AY130: Not started | AZ130: Not started | BA130: Not started | BB130: Not started | BC130: Not started
A131: ='Raw Curriculum data'!A133 -> 108 | B131: 11 | C131: =IF(B131="",IF(D131="",D132,D131),B131) -> 11 | E131: Working with fractions, decimals and percentages | F131: Unit 11 S2 | G131: Session 2: Calculating with fractions and mixed numbers | H131: • To recognize improper fractions (e.g. 12/4 as 12 quarters, equal to 3). | I131: (5F2a) recognise mixed numbers and improper fractions and convert from one form to the other and write mathematical statements > 1 as a mixed number [for example, 2/5 + 4/5 = 6/5 = 1 1/5 ] | M131: Not started | N131: Not started | O131: Not started | P131: Not started | Q131: Not started | R131: Not started | S131: Not started | T131: Not started | U131: Not started | V131: Not started | X131: Not started | Y131: Not started | Z131: Not started | AA131: Not started | AB131: Not started | AC131: Not started | AD131: Not started | AE131: Not started | AF131: Not started | AG131: Not started | AI131: Not started | AJ131: Not started | AK131: Not started | AL131: Not started | AM131: Not started | AN131: Not started | AO131: Not started | AP131: Not started | AQ131: Not started | AR131: Not started | AT131: Not started | AU131: Not started | AV131: Not started | AW131: Not started | AX131: Not started | AY131: Not started | AZ131: Not started | BA131: Not started | BB131: Not started | BC131: Not started
A132: ='Raw Curriculum data'!A134 -> 109 | B132: 11 | C132: 11 | D132: =IF(G132="",B133,"") ->  | E132: Working with fractions, decimals and percentages | F132: =IF($A132="","",VLOOKUP($A132,curriculum_data,3,FALSE)) -> Unit 11 S3 | G132: =IF($A132="","",VLOOKUP($A132,curriculum_data,4,FALSE)) -> Session 3: Fraction, percentage and decimal equivalents | H132: =IF($A132="","",VLOOKUP($A132,curriculum_data,5,FALSE)) -> • To recognize the percentage and decimal equivalents of 1/2, 1/4, 1/5 and 1/10. | I132: =IF($A132="","",VLOOKUP($A132,curriculum_data,6,FALSE)) -> (5F12) solve problems which require knowing percentage and decimal equivalents of 1/2, 1/4, 1/5, 2/5, 4/5 and those fractions with a denominator of a multiple of 10 or 25. | M132: Not started | N132: Not started | O132: Not started | P132: Not started | Q132: Not started | R132: Not started | S132: Not started | T132: Not started | U132: Not started | V132: Not started | X132: Not started | Y132: Not started | Z132: Not started | AA132: Not started | AB132: Not started | AC132: Not started | AD132: Not started | AE132: Not started | AF132: Not started | AG132: Not started | AI132: Not started | AJ132: Not started | AK132: Not started | AL132: Not started | AM132: Not started | AN132: Not started | AO132: Not started | AP132: Not started | AQ132: Not started | AR132: Not started | AT132: Not started | AU132: Not started | AV132: Not started | AW132: Not started | AX132: Not started | AY132: Not started | AZ132: Not started | BA132: Not started | BB132: Not started | BC132: Not started
A133: ='Raw Curriculum data'!A135 -> 110 | B133: =IF(F133="","",MID(F133,6,FIND(" S",F133)-6)) -> 11 | C133: 11 | E133: Working with fractions, decimals and percentages | F133: Unit 11 S4 | G133: Session 4: Multiplying fractions, decimals and percentages | H133: • To calculate percentage/fraction/decimal × whole number (e.g. 40%, 4 10, 0·4 × 80). | I133: (5F12) solve problems which require knowing percentage and decimal equivalents of 1/2, 1/4, 1/5, 2/5, 4/5 and those fractions with a denominator of a multiple of 10 or 25. | M133: Not started | N133: Not started | O133: Not started | P133: Not started | Q133: Not started | R133: Not started | S133: Not started | T133: Not started | U133: Not started | V133: Not started | X133: Not started | Y133: Not started | Z133: Not started | AA133: Not started | AB133: Not started | AC133: Not started | AD133: Not started | AE133: Not started | AF133: Not started | AG133: Not started | AI133: Not started | AJ133: Not started | AK133: Not started | AL133: Not started | AM133: Not started | AN133: Not started | AO133: Not started | AP133: Not started | AQ133: Not started | AR133: Not started | AT133: Not started | AU133: Not started | AV133: Not started | AW133: Not started | AX133: Not started | AY133: Not started | AZ133: Not started | BA133: Not started | BB133: Not started | BC133: Not started
A134: ='Raw Curriculum data'!A136 -> 111 | B134: 11 | C134: 11 | E134: Working with fractions, decimals and percentages | F134: Unit 11 S4 | G134: Session 4: Multiplying fractions, decimals and percentages | H134: • To understand and compare the similarities and differences of the three procedures. | I134: (5F12) solve problems which require knowing percentage and decimal equivalents of 1/2, 1/4, 1/5, 2/5, 4/5 and those fractions with a denominator of a multiple of 10 or 25. | M134: Not started | N134: Not started | O134: Not started | P134: Not started | Q134: Not started | R134: Not started | S134: Not started | T134: Not started | U134: Not started | V134: Not started | X134: Not started | Y134: Not started | Z134: Not started | AA134: Not started | AB134: Not started | AC134: Not started | AD134: Not started | AE134: Not started | AF134: Not started | AG134: Not started | AI134: Not started | AJ134: Not started | AK134: Not started | AL134: Not started | AM134: Not started | AN134: Not started | AO134: Not started | AP134: Not started | AQ134: Not started | AR134: Not started | AT134: Not started | AU134: Not started | AV134: Not started | AW134: Not started | AX134: Not started | AY134: Not started | AZ134: Not started | BA134: Not started | BB134: Not started | BC134: Not started
A135: ='Raw Curriculum data'!A137 -> 112 | B135: 11 | C135: 11 | E135: Working with fractions, decimals and percentages | F135: Unit 11 S4 | G135: Session 4: Multiplying fractions, decimals and percentages | H135: • To be able to appraise answers for accuracy (e.g. 40% should be less than half). | I135: (5C3) use rounding to check answers to calculations and determine, in the context of a problem, levels of accuracy | M135: Not started | N135: Not started | O135: Not started | P135: Not started | Q135: Not started | R135: Not started | S135: Not started | T135: Not started | U135: Not started | V135: Not started | X135: Not started | Y135: Not started | Z135: Not started | AA135: Not started | AB135: Not started | AC135: Not started | AD135: Not started | AE135: Not started | AF135: Not started | AG135: Not started | AI135: Not started | AJ135: Not started | AK135: Not started | AL135: Not started | AM135: Not started | AN135: Not started | AO135: Not started | AP135: Not started | AQ135: Not started | AR135: Not started | AT135: Not started | AU135: Not started | AV135: Not started | AW135: Not started | AX135: Not started | AY135: Not started | AZ135: Not started | BA135: Not started | BB135: Not started | BC135: Not started
A136: ='Raw Curriculum data'!A138 ->  | C136: 12 | E136: =IF(D137="",IF($A137="","",VLOOKUP($A137,curriculum_data,2,FALSE)), VLOOKUP($D137,units,2,FALSE) ) -> Securing the learning | M136: =IF(COUNTA(OFFSET(M136,2,0,COUNTIF($B:$B,$D137),1))=COUNTIF(OFFSET(M136,2,0,COUNTIF($B:$B,$D137),1),Not_started)," Not started ",IF(COUNTA(OFFSET(M136,2,0,COUNTIF($B:$B,$D137),1))-COUNTIF(OFFSET(M136,2,0,COUNTIF($B:$B,$D137),1),Not_started)<COUNTA(OFFSET(M136,2,0,COUNTIF($B:$B,$D137),1)),"Started",IF(COUNTA(OFFSET(M136,2,0,COUNTIF($B:$B,$D137),1))=COUNTIF(OFFSET(M136,2,0,COUNTIF($B:$B,$D137),1),Green),"Green",IF(COUNTIF(OFFSET(M136,2,0,COUNTIF($B:$B,$D137),1),Red)>0,"Red","Amber") ) ) ) -> Not started | N136: Not started | O136: Not started | P136: Not started | Q136: Not started | R136: Not started | S136: Not started | T136: Not started | U136: Not started | V136: Not started | X136: Not started | Y136: Not started | Z136: Not started | AA136: Not started | AB136: Not started | AC136: Not started | AD136: Not started | AE136: Not started | AF136: Not started | AG136: Not started | AI136: Not started | AJ136: Not started | AK136: Not started | AL136: Not started | AM136: Not started | AN136: Not started | AO136: Not started | AP136: Not started | AQ136: Not started | AR136: Not started | AT136: Not started | AU136: Not started | AV136: Not started | AW136: Not started | AX136: Not started | AY136: Not started | AZ136: Not started | BA136: Not started | BB136: Not started | BC136: Not started
A137: ='Raw Curriculum data'!A139 ->  | C137: 12 | D137: 12 | M137: =CONCATENATE(COUNTIF(OFFSET(M136,2,0,COUNTIF($B:$B,$D137),1),Green)," out of ",COUNTA(OFFSET(M136,2,0,COUNTIF($B:$B,$D137),1))) -> 0 out of 8 | N137: 0 out of 8 | O137: 0 out of 8 | P137: 0 out of 8 | Q137: 0 out of 8 | R137: 0 out of 8 | S137: 0 out of 8 | T137: 0 out of 8 | U137: 0 out of 8 | V137: 0 out of 8 | X137: 0 out of 8 | Y137: 0 out of 8 | Z137: 0 out of 8 | AA137: 0 out of 8 | AB137: 0 out of 8 | AC137: 0 out of 8 | AD137: 0 out of 8 | AE137: 0 out of 8 | AF137: =CONCATENATE(COUNTIF(OFFSET(AF136,2,0,COUNTIF($B:$B,$D137),1),Green)," out of ",COUNTA(OFFSET(AF136,2,0,COUNTIF($B:$B,$D137),1))) -> 0 out of 8 | AG137: 0 out of 8 | AI137: 0 out of 8 | AJ137: 0 out of 8 | AK137: 0 out of 8 | AL137: 0 out of 8 | AM137: 0 out of 8 | AN137: 0 out of 8 | AO137: 0 out of 8 | AP137: 0 out of 8 | AQ137: 0 out of 8 | AR137: 0 out of 8 | AT137: 0 out of 8 | AU137: 0 out of 8 | AV137: 0 out of 8 | AW137: 0 out of 8 | AX137: 0 out of 8 | AY137: 0 out of 8 | AZ137: 0 out of 8 | BA137: 0 out of 8 | BB137: =CONCATENATE(COUNTIF(OFFSET(BB136,2,0,COUNTIF($B:$B,$D137),1),Green)," out of ",COUNTA(OFFSET(BB136,2,0,COUNTIF($B:$B,$D137),1))) -> 0 out of 8 | BC137: 0 out of 8
A138: ='Raw Curriculum data'!A140 -> 113 | B138: 12 | C138: 12 | E138: =IF(D138="",IF($A138="","",VLOOKUP($A138,curriculum_data,2,FALSE)), VLOOKUP($D138,units,2,FALSE) ) -> Securing the learning | F138: Unit 12 S1 | G138: Session 1: Using place value | H138: • To review understanding of place value from thousands to thousandths. | I138: (5N1) count forwards or backwards in steps of powers of 10 for any given number up to 1 000 000 | M138: Not started | N138: Not started | O138: Not started | P138: Not started | Q138: Not started | R138: Not started | S138: Not started | T138: Not started | U138: Not started | V138: Not started | X138: Not started | Y138: Not started | Z138: Not started | AA138: Not started | AB138: Not started | AC138: Not started | AD138: Not started | AE138: Not started | AF138: Not started | AG138: Not started | AI138: Not started | AJ138: Not started | AK138: Not started | AL138: Not started | AM138: Not started | AN138: Not started | AO138: Not started | AP138: Not started | AQ138: Not started | AR138: Not started | AT138: Not started | AU138: Not started | AV138: Not started | AW138: Not started | AX138: Not started | AY138: Not started | AZ138: Not started | BA138: Not started | BB138: Not started | BC138: Not started
A139: ='Raw Curriculum data'!A141 -> 114 | B139: 12 | C139: 12 | E139: Securing the learning | F139: Unit 12 S1 | G139: Session 1: Using place value | H139: • To multiply and divide numbers by 10, 100, 100. | I139: (5C6b) multiply and divide whole numbers and those involving decimals by 10, 100 and 1000 | M139: Not started | N139: Not started | O139: Not started | P139: Not started | Q139: Not started | R139: Not started | S139: Not started | T139: Not started | U139: Not started | V139: Not started | X139: Not started | Y139: Not started | Z139: Not started | AA139: Not started | AB139: Not started | AC139: Not started | AD139: Not started | AE139: Not started | AF139: Not started | AG139: Not started | AI139: Not started | AJ139: Not started | AK139: Not started | AL139: Not started | AM139: Not started | AN139: Not started | AO139: Not started | AP139: Not started | AQ139: Not started | AR139: Not started | AT139: Not started | AU139: Not started | AV139: Not started | AW139: Not started | AX139: Not started | AY139: Not started | AZ139: Not started | BA139: Not started | BB139: Not started | BC139: Not started
A140: ='Raw Curriculum data'!A142 -> 115 | B140: 12 | C140: 12 | E140: Securing the learning | F140: Unit 12 S2 | G140: Session 2: Adding and subtracting | H140: • To review understanding and accuracy in adding and subtracting problems, with both whole numbers and decimal numbers. | I140: (5C3) use rounding to check answers to calculations and determine, in the context of a problem, levels of accuracy | M140: Not started | N140: Not started | O140: Not started | P140: Not started | Q140: Not started | R140: Not started | S140: Not started | T140: Not started | U140: Not started | V140: Not started | X140: Not started | Y140: Not started | Z140: Not started | AA140: Not started | AB140: Not started | AC140: Not started | AD140: Not started | AE140: Not started | AF140: Not started | AG140: Not started | AI140: Not started | AJ140: Not started | AK140: Not started | AL140: Not started | AM140: Not started | AN140: Not started | AO140: Not started | AP140: Not started | AQ140: Not started | AR140: Not started | AT140: Not started | AU140: Not started | AV140: Not started | AW140: Not started | AX140: Not started | AY140: Not started | AZ140: Not started | BA140: Not started | BB140: Not started | BC140: Not started
A141: ='Raw Curriculum data'!A143 -> 116 | B141: 12 | C141: 12 | E141: Securing the learning | F141: Unit 12 S2 | G141: Session 2: Adding and subtracting | H141: • To use and understand the procedure for exchanging in both adding and subtracting. | I141: (5C2) add and subtract whole numbers with more than 4 digits, including using formal written methods (columnar addition and subtraction) | M141: Not started | N141: Not started | O141: Not started | P141: Not started | Q141: Not started | R141: Not started | S141: Not started | T141: Not started | U141: Not started | V141: Not started | X141: Not started | Y141: Not started | Z141: Not started | AA141: Not started | AB141: Not started | AC141: Not started | AD141: Not started | AE141: Not started | AF141: Not started | AG141: Not started | AI141: Not started | AJ141: Not started | AK141: Not started | AL141: Not started | AM141: Not started | AN141: Not started | AO141: Not started | AP141: Not started | AQ141: Not started | AR141: Not started | AT141: Not started | AU141: Not started | AV141: Not started | AW141: Not started | AX141: Not started | AY141: Not started | AZ141: Not started | BA141: Not started | BB141: Not started | BC141: Not started
A142: ='Raw Curriculum data'!A144 -> 117 | B142: 12 | C142: 12 | E142: Securing the learning | F142: Unit 12 S3 | G142: Session 3: Multiplying and dividing | H142: • To calculate the answer to problems, including 2-digit × 1-digit, 3-digit × 1-digit, 3-digit × 2-digit (including decimals), 3-digit ÷ 1-digit, 3-digit ÷ 1-digit and 4-digit ÷ 1-digit. | I142: (5C2) add and subtract whole numbers with more than 4 digits, including using formal written methods (columnar addition and subtraction) | M142: Not started | N142: Not started | O142: Not started | P142: Not started | Q142: Not started | R142: Not started | S142: Not started | T142: Not started | U142: Not started | V142: Not started | X142: Not started | Y142: Not started | Z142: Not started | AA142: Not started | AB142: Not started | AC142: Not started | AD142: Not started | AE142: Not started | AF142: Not started | AG142: Not started | AI142: Not started | AJ142: Not started | AK142: Not started | AL142: Not started | AM142: Not started | AN142: Not started | AO142: Not started | AP142: Not started | AQ142: Not started | AR142: Not started | AT142: Not started | AU142: Not started | AV142: Not started | AW142: Not started | AX142: Not started | AY142: Not started | AZ142: Not started | BA142: Not started | BB142: Not started | BC142: Not started
A143: ='Raw Curriculum data'!A145 -> 118 | B143: 12 | C143: 12 | E143: Securing the learning | F143: Unit 12 S4 | G143: Session 4: Fractions, decimals, percentages | H143: • To secure an understanding of the equivalence of fractions, decimals and percentages. | I143: (5F8) read, write, order and compare numbers with up to three decimal places | M143: Not started | N143: Not started | O143: Not started | P143: Not started | Q143: Not started | R143: Not started | S143: Not started | T143: Not started | U143: Not started | V143: Not started | X143: Not started | Y143: Not started | Z143: Not started | AA143: Not started | AB143: Not started | AC143: Not started | AD143: Not started | AE143: Not started | AF143: Not started | AG143: Not started | AI143: Not started | AJ143: Not started | AK143: Not started | AL143: Not started | AM143: Not started | AN143: Not started | AO143: Not started | AP143: Not started | AQ143: Not started | AR143: Not started | AT143: Not started | AU143: Not started | AV143: Not started | AW143: Not started | AX143: Not started | AY143: Not started | AZ143: Not started | BA143: Not started | BB143: Not started | BC143: Not started
A144: ='Raw Curriculum data'!A146 -> 119 | B144: 12 | C144: 12 | E144: Securing the learning | F144: Unit 12 S4 | G144: Session 4: Fractions, decimals, percentages | H144: • To be able to convert between the three ways of writing numbers that are less than one (and equal to and more than one.) | I144: (5F10) solve problems involving number up to three decimal places | M144: Not started | N144: Not started | O144: Not started | P144: Not started | Q144: Not started | R144: Not started | S144: Not started | T144: Not started | U144: Not started | V144: Not started | X144: Not started | Y144: Not started | Z144: Not started | AA144: Not started | AB144: Not started | AC144: Not started | AD144: Not started | AE144: Not started | AF144: Not started | AG144: Not started | AI144: Not started | AJ144: Not started | AK144: Not started | AL144: Not started | AM144: Not started | AN144: Not started | AO144: Not started | AP144: Not started | AQ144: Not started | AR144: Not started | AT144: Not started | AU144: Not started | AV144: Not started | AW144: Not started | AX144: Not started | AY144: Not started | AZ144: Not started | BA144: Not started | BB144: Not started | BC144: Not started
A145: ='Raw Curriculum data'!A147 -> 120 | B145: 12 | C145: 12 | D145: =IF(G145="",#REF!,"") ->  | E145: Securing the learning | F145: Unit 12 S4 | G145: Session 4: Fractions, decimals, percentages | H145: • To work out: percentage of a quantity, decimal × quantity and fraction × quantity. | I145: (5F10) solve problems involving number up to three decimal places | M145: Not started | N145: Not started | O145: Not started | P145: Not started | Q145: Not started | R145: Not started | S145: Not started | T145: Not started | U145: Not started | V145: Not started | X145: Not started | Y145: Not started | Z145: Not started | AA145: Not started | AB145: Not started | AC145: Not started | AD145: Not started | AE145: Not started | AF145: Not started | AG145: Not started | AI145: Not started | AJ145: Not started | AK145: Not started | AL145: Not started | AM145: Not started | AN145: Not started | AO145: Not started | AP145: Not started | AQ145: Not started | AR145: Not started | AT145: Not started | AU145: Not started | AV145: Not started | AW145: Not started | AX145: Not started | AY145: Not started | AZ145: Not started | BA145: Not started | BB145: Not started | BC145: Not started

Sheet Numicon BI overall
E3: 1 | F3: 2 | G3: 3 | H3: 4 | I3: 5 | J3: 6 | K3: 7 | L3: 8 | M3: 9 | N3: 10 | O3: 11 | P3: 12
A4: ID | B4: First name | C4: Last name | D4: Full name | E4: =VLOOKUP(E$3,units,2,FALSE) -> Familiarization | F4: Number and place value | G4: Adding and subtracting | H4: Multiplying and dividing | I4: Fractions | J4: Working with fractions, decimals and percentages | K4: Number and place value | L4: Adding and subtracting | M4: Multiplying and dividing | N4: Fractions | O4: Working with fractions, decimals and percentages | P4: Securing the learning
A5: ='Add pupils'!A5 -> 0 | B5: ='Add pupils'!B5 -> Jane | C5: ='Add pupils'!C5 -> Smith | D5: ='Add pupils'!D5 -> Jane Smith | E5: =INDEX(detailed_data,MATCH(E$3,det_data_unit,0)-1,MATCH($D5,det_data_name,0)) -> Not started | F5: Not started | G5: Not started | H5: Not started | I5: Not started | J5: Not started | K5: Not started | L5: Not started | M5: Not started | N5: Not started | O5: Not started | P5: Not started
A6: ='Add pupils'!A6 -> 0 | B6: ='Add pupils'!B6 -> 0 | C6: ='Add pupils'!C6 -> 0 | D6: ='Add pupils'!D6 ->  | E6: Not started | F6: Not started | G6: Not started | H6: Not started | I6: Not started | J6: Not started | K6: Not started | L6: Not started | M6: Not started | N6: Not started | O6: Not started | P6: Not started
A7: ='Add pupils'!A7 -> 0 | B7: ='Add pupils'!B7 -> 0 | C7: ='Add pupils'!C7 -> 0 | D7: ='Add pupils'!D7 ->  | E7: Not started | F7: Not started | G7: Not started | H7: Not started | I7: Not started | J7: Not started | K7: Not started | L7: Not started | M7: Not started | N7: Not started | O7: Not started | P7: Not started
A8: ='Add pupils'!A8 -> 0 | B8: ='Add pupils'!B8 -> 0 | C8: ='Add pupils'!C8 -> 0 | D8: ='Add pupils'!D8 ->  | E8: Not started | F8: Not started | G8: Not started | H8: Not started | I8: Not started | J8: Not started | K8: Not started | L8: Not started | M8: Not started | N8: Not started | O8: Not started | P8: Not started
A9: ='Add pupils'!A9 -> 0 | B9: ='Add pupils'!B9 -> 0 | C9: ='Add pupils'!C9 -> 0 | D9: ='Add pupils'!D9 ->  | E9: Not started | F9: Not started | G9: Not started | H9: Not started | I9: Not started | J9: Not started | K9: Not started | L9: Not started | M9: Not started | N9: Not started | O9: Not started | P9: Not started
A10: ='Add pupils'!A10 -> 0 | B10: ='Add pupils'!B10 -> 0 | C10: ='Add pupils'!C10 -> 0 | D10: ='Add pupils'!D10 ->  | E10: Not started | F10: Not started | G10: Not started | H10: Not started | I10: Not started | J10: Not started | K10: Not started | L10: Not started | M10: Not started | N10: Not started | O10: Not started | P10: Not started
A11: ='Add pupils'!A11 -> 0 | B11: ='Add pupils'!B11 -> 0 | C11: ='Add pupils'!C11 -> 0 | D11: ='Add pupils'!D11 ->  | E11: Not started | F11: Not started | G11: Not started | H11: Not started | I11: Not started | J11: Not started | K11: Not started | L11: Not started | M11: Not started | N11: Not started | O11: Not started | P11: Not started
A12: ='Add pupils'!A12 -> 0 | B12: ='Add pupils'!B12 -> 0 | C12: ='Add pupils'!C12 -> 0 | D12: ='Add pupils'!D12 ->  | E12: Not started | F12: Not started | G12: Not started | H12: Not started | I12: Not started | J12: Not started | K12: Not started | L12: Not started | M12: Not started | N12: Not started | O12: Not started | P12: Not started
A13: ='Add pupils'!A13 -> 0 | B13: ='Add pupils'!B13 -> 0 | C13: ='Add pupils'!C13 -> 0 | D13: ='Add pupils'!D13 ->  | E13: Not started | F13: Not started | G13: Not started | H13: Not started | I13: Not started | J13: Not started | K13: Not started | L13: Not started | M13: Not started | N13: Not started | O13: Not started | P13: Not started
A14: ='Add pupils'!A14 -> 0 | B14: ='Add pupils'!B14 -> 0 | C14: ='Add pupils'!C14 -> 0 | D14: ='Add pupils'!D14 ->  | E14: Not started | F14: Not started | G14: Not started | H14: Not started | I14: Not started | J14: Not started | K14: Not started | L14: Not started | M14: Not started | N14: Not started | O14: Not started | P14: Not started
A16: ='Add pupils'!A16 -> 0 | B16: ='Add pupils'!B16 -> 0 | C16: ='Add pupils'!C16 -> 0 | D16: ='Add pupils'!D16 ->  | E16: =INDEX(detailed_data,MATCH(E$3,det_data_unit,0)-1,MATCH($D16,det_data_name,0)) -> Not started | F16: Not started | G16: Not started | H16: Not started | I16: Not started | J16: Not started | K16: Not started | L16: Not started | M16: Not started | N16: Not started | O16: Not started | P16: Not started
A17: ='Add pupils'!A17 -> 0 | B17: ='Add pupils'!B17 -> 0 | C17: ='Add pupils'!C17 -> 0 | D17: ='Add pupils'!D17 ->  | E17: Not started | F17: Not started | G17: Not started | H17: Not started | I17: Not started | J17: Not started | K17: Not started | L17: Not started | M17: Not started | N17: Not started | O17: Not started | P17: Not started
A18: ='Add pupils'!A18 -> 0 | B18: ='Add pupils'!B18 -> 0 | C18: ='Add pupils'!C18 -> 0 | D18: ='Add pupils'!D18 ->  | E18: Not started | F18: Not started | G18: Not started | H18: Not started | I18: Not started | J18: Not started | K18: Not started | L18: Not started | M18: Not started | N18: Not started | O18: Not started | P18: Not started
A19: ='Add pupils'!A19 -> 0 | B19: ='Add pupils'!B19 -> 0 | C19: ='Add pupils'!C19 -> 0 | D19: ='Add pupils'!D19 ->  | E19: Not started | F19: Not started | G19: Not started | H19: Not started | I19: Not started | J19: Not started | K19: Not started | L19: Not started | M19: Not started | N19: Not started | O19: Not started | P19: Not started
A20: ='Add pupils'!A20 -> 0 | B20: ='Add pupils'!B20 -> 0 | C20: ='Add pupils'!C20 -> 0 | D20: ='Add pupils'!D20 ->  | E20: Not started | F20: Not started | G20: Not started | H20: Not started | I20: Not started | J20: Not started | K20: Not started | L20: Not started | M20: Not started | N20: Not started | O20: Not started | P20: Not started
A21: ='Add pupils'!A21 -> 0 | B21: ='Add pupils'!B21 -> 0 | C21: ='Add pupils'!C21 -> 0 | D21: ='Add pupils'!D21 ->  | E21: Not started | F21: Not started | G21: Not started | H21: Not started | I21: Not started | J21: Not started | K21: Not started | L21: Not started | M21: Not started | N21: Not started | O21: Not started | P21: Not started
A22: ='Add pupils'!A22 -> 0 | B22: ='Add pupils'!B22 -> 0 | C22: ='Add pupils'!C22 -> 0 | D22: ='Add pupils'!D22 ->  | E22: Not started | F22: Not started | G22: Not started | H22: Not started | I22: Not started | J22: Not started | K22: Not started | L22: Not started | M22: Not started | N22: Not started | O22: Not started | P22: Not started
A23: ='Add pupils'!A23 -> 0 | B23: ='Add pupils'!B23 -> 0 | C23: ='Add pupils'!C23 -> 0 | D23: ='Add pupils'!D23 ->  | E23: Not started | F23: Not started | G23: Not started | H23: Not started | I23: Not started | J23: Not started | K23: Not started | L23: Not started | M23: Not started | N23: Not started | O23: Not started | P23: Not started
A24: ='Add pupils'!A24 -> 0 | B24: ='Add pupils'!B24 -> 0 | C24: ='Add pupils'!C24 -> 0 | D24: ='Add pupils'!D24 ->  | E24: Not started | F24: Not started | G24: Not started | H24: Not started | I24: Not started | J24: Not started | K24: Not started | L24: Not started | M24: Not started | N24: Not started | O24: Not started | P24: Not started
A25: ='Add pupils'!A25 -> 0 | B25: ='Add pupils'!B25 -> 0 | C25: ='Add pupils'!C25 -> 0 | D25: ='Add pupils'!D25 ->  | E25: Not started | F25: Not started | G25: Not started | H25: Not started | I25: Not started | J25: Not started | K25: Not started | L25: Not started | M25: Not started | N25: Not started | O25: Not started | P25: Not started
A27: ='Add pupils'!A27 -> 0 | B27: ='Add pupils'!B27 -> 0 | C27: ='Add pupils'!C27 -> 0 | D27: ='Add pupils'!D27 ->  | E27: =INDEX(detailed_data,MATCH(E$3,det_data_unit,0)-1,MATCH($D27,det_data_name,0)) -> Not started | F27: Not started | G27: Not started | H27: Not started | I27: Not started | J27: Not started | K27: Not started | L27: Not started | M27: Not started | N27: Not started | O27: Not started | P27: Not started
A28: ='Add pupils'!A28 -> 0 | B28: ='Add pupils'!B28 -> 0 | C28: ='Add pupils'!C28 -> 0 | D28: ='Add pupils'!D28 ->  | E28: Not started | F28: Not started | G28: Not started | H28: Not started | I28: Not started | J28: Not started | K28: Not started | L28: Not started | M28: Not started | N28: Not started | O28: Not started | P28: Not started
A29: ='Add pupils'!A29 -> 0 | B29: ='Add pupils'!B29 -> 0 | C29: ='Add pupils'!C29 -> 0 | D29: ='Add pupils'!D29 ->  | E29: Not started | F29: Not started | G29: Not started | H29: Not started | I29: Not started | J29: Not started | K29: Not started | L29: Not started | M29: Not started | N29: Not started | O29: Not started | P29: Not started
A30: ='Add pupils'!A30 -> 0 | B30: ='Add pupils'!B30 -> 0 | C30: ='Add pupils'!C30 -> 0 | D30: ='Add pupils'!D30 ->  | E30: Not started | F30: Not started | G30: Not started | H30: Not started | I30: Not started | J30: Not started | K30: Not started | L30: Not started | M30: Not started | N30: Not started | O30: Not started | P30: Not started
A31: ='Add pupils'!A31 -> 0 | B31: ='Add pupils'!B31 -> 0 | C31: ='Add pupils'!C31 -> 0 | D31: ='Add pupils'!D31 ->  | E31: Not started | F31: Not started | G31: Not started | H31: Not started | I31: Not started | J31: Not started | K31: Not started | L31: Not started | M31: Not started | N31: Not started | O31: Not started | P31: Not started
A32: ='Add pupils'!A32 -> 0 | B32: ='Add pupils'!B32 -> 0 | C32: ='Add pupils'!C32 -> 0 | D32: ='Add pupils'!D32 ->  | E32: Not started | F32: Not started | G32: Not started | H32: Not started | I32: Not started | J32: Not started | K32: Not started | L32: Not started | M32: Not started | N32: Not started | O32: Not started | P32: Not started
A33: ='Add pupils'!A33 -> 0 | B33: ='Add pupils'!B33 -> 0 | C33: ='Add pupils'!C33 -> 0 | D33: ='Add pupils'!D33 ->  | E33: Not started | F33: Not started | G33: Not started | H33: Not started | I33: Not started | J33: Not started | K33: Not started | L33: Not started | M33: Not started | N33: Not started | O33: Not started | P33: Not started
A34: ='Add pupils'!A34 -> 0 | B34: ='Add pupils'!B34 -> 0 | C34: ='Add pupils'!C34 -> 0 | D34: ='Add pupils'!D34 ->  | E34: Not started | F34: Not started | G34: Not started | H34: Not started | I34: Not started | J34: Not started | K34: Not started | L34: Not started | M34: Not started | N34: Not started | O34: Not started | P34: Not started
A35: ='Add pupils'!A35 -> 0 | B35: ='Add pupils'!B35 -> 0 | C35: ='Add pupils'!C35 -> 0 | D35: ='Add pupils'!D35 ->  | E35: Not started | F35: Not started | G35: Not started | H35: Not started | I35: Not started | J35: Not started | K35: Not started | L35: Not started | M35: Not started | N35: Not started | O35: Not started | P35: Not started
A36: ='Add pupils'!A36 -> 0 | B36: ='Add pupils'!B36 -> 0 | C36: ='Add pupils'!C36 -> 0 | D36: ='Add pupils'!D36 ->  | E36: =INDEX(detailed_data,MATCH(E$3,det_data_unit,0)-1,MATCH($D36,det_data_name,0)) -> Not started | F36: Not started | G36: Not started | H36: Not started | I36: Not started | J36: Not started | K36: Not started | L36: Not started | M36: Not started | N36: Not started | O36: Not started | P36: Not started
A38: ='Add pupils'!A38 -> 0 | B38: ='Add pupils'!B38 -> 0 | C38: ='Add pupils'!C38 -> 0 | D38: ='Add pupils'!D38 ->  | E38: Not started | F38: Not started | G38: Not started | H38: Not started | I38: Not started | J38: Not started | K38: Not started | L38: Not started | M38: Not started | N38: Not started | O38: Not started | P38: Not started
A39: ='Add pupils'!A39 -> 0 | B39: ='Add pupils'!B39 -> 0 | C39: ='Add pupils'!C39 -> 0 | D39: ='Add pupils'!D39 ->  | E39: Not started | F39: Not started | G39: Not started | H39: Not started | I39: Not started | J39: Not started | K39: Not started | L39: Not started | M39: Not started | N39: Not started | O39: Not started | P39: Not started
A40: ='Add pupils'!A40 -> 0 | B40: ='Add pupils'!B40 -> 0 | C40: ='Add pupils'!C40 -> 0 | D40: ='Add pupils'!D40 ->  | E40: Not started | F40: Not started | G40: Not started | H40: Not started | I40: Not started | J40: Not started | K40: Not started | L40: Not started | M40: Not started | N40: Not started | O40: Not started | P40: Not started
A41: ='Add pupils'!A41 -> 0 | B41: ='Add pupils'!B41 -> 0 | C41: ='Add pupils'!C41 -> 0 | D41: ='Add pupils'!D41 ->  | E41: Not started | F41: Not started | G41: Not started | H41: Not started | I41: Not started | J41: Not started | K41: Not started | L41: Not started | M41: Not started | N41: Not started | O41: Not started | P41: Not started
A42: ='Add pupils'!A42 -> 0 | B42: ='Add pupils'!B42 -> 0 | C42: ='Add pupils'!C42 -> 0 | D42: ='Add pupils'!D42 ->  | E42: Not started | F42: Not started | G42: Not started | H42: Not started | I42: Not started | J42: Not started | K42: Not started | L42: Not started | M42: Not started | N42: Not started | O42: Not started | P42: Not started
A43: ='Add pupils'!A43 -> 0 | B43: ='Add pupils'!B43 -> 0 | C43: ='Add pupils'!C43 -> 0 | D43: ='Add pupils'!D43 ->  | E43: Not started | F43: Not started | G43: Not started | H43: Not started | I43: Not started | J43: Not started | K43: Not started | L43: Not started | M43: Not started | N43: Not started | O43: Not started | P43: Not started
A44: ='Add pupils'!A44 -> 0 | B44: ='Add pupils'!B44 -> 0 | C44: ='Add pupils'!C44 -> 0 | D44: ='Add pupils'!D44 ->  | E44: Not started | F44: Not started | G44: Not started | H44: Not started | I44: Not started | J44: Not started | K44: Not started | L44: Not started | M44: Not started | N44: Not started | O44: Not started | P44: Not started
A45: ='Add pupils'!A45 -> 0 | B45: ='Add pupils'!B45 -> 0 | C45: ='Add pupils'!C45 -> 0 | D45: ='Add pupils'!D45 ->  | E45: Not started | F45: Not started | G45: Not started | H45: Not started | I45: Not started | J45: Not started | K45: Not started | L45: Not started | M45: Not started | N45: Not started | O45: Not started | P45: Not started
A46: ='Add pupils'!A46 -> 0 | B46: ='Add pupils'!B46 -> 0 | C46: ='Add pupils'!C46 -> 0 | D46: ='Add pupils'!D46 ->  | E46: Not started | F46: Not started | G46: Not started | H46: Not started | I46: Not started | J46: Not started | K46: Not started | L46: Not started | M46: Not started | N46: Not started | O46: Not started | P46: Not started
A47: ='Add pupils'!A47 -> 0 | B47: ='Add pupils'!B47 -> 0 | C47: ='Add pupils'!C47 -> 0 | D47: ='Add pupils'!D47 ->  | E47: Not started | F47: Not started | G47: Not started | H47: Not started | I47: Not started | J47: Not started | K47: Not started | L47: Not started | M47: Not started | N47: Not started | O47: Not started | P47: Not started

Sheet Data page (hidden)
A1: Not started | B1: Not started
A2: Red | B2: Red
A3: Amber | B3: Amber
A4: Green | B4: Green
B7: Unit | C7: Title | D7: Sessions
B8: 1 | C8: Familiarization | D8: =COUNTIF('Numicon BI detailed tracking'!B:B,'Data page'!B8) -> 10
B9: 2 | C9: Number and place value | D9: =COUNTIF('Numicon BI detailed tracking'!B:B,'Data page'!B9) -> 11
B10: 3 | C10: Adding and subtracting | D10: =COUNTIF('Numicon BI detailed tracking'!B:B,'Data page'!B10) -> 9
B11: 4 | C11: Multiplying and dividing | D11: =COUNTIF('Numicon BI detailed tracking'!B:B,'Data page'!B11) -> 11
B12: 5 | C12: Fractions | D12: =COUNTIF('Numicon BI detailed tracking'!B:B,'Data page'!B12) -> 12
B13: 6 | C13: Working with fractions, decimals and percentages | D13: =COUNTIF('Numicon BI detailed tracking'!B:B,'Data page'!B13) -> 10
B14: 7 | C14: Number and place value | D14: =COUNTIF('Numicon BI detailed tracking'!B:B,'Data page'!B14) -> 9
B15: 8 | C15: Adding and subtracting | D15: =COUNTIF('Numicon BI detailed tracking'!B:B,'Data page'!B15) -> 9
B16: 9 | C16: Multiplying and dividing | D16: =COUNTIF('Numicon BI detailed tracking'!B:B,'Data page'!B16) -> 12
B17: 10 | C17: Fractions | D17: =COUNTIF('Numicon BI detailed tracking'!B:B,'Data page'!B17) -> 10
B18: 11 | C18: Working with fractions, decimals and percentages | D18: =COUNTIF('Numicon BI detailed tracking'!B:B,'Data page'!B18) -> 9
B19: 12 | C19: Securing the learning | D19: =COUNTIF('Numicon BI detailed tracking'!B:B,'Data page'!B19) -> 8

Sheet Raw Curriculum data (hidden)
B1: Raw curriculum data
A2: Index | B2: Big Idea | C2: Unit and Session | D2: Session Title | E2: Session Objective | F2: Curriculum Objective (from England 2014 POS)
C3: A | D3: Assessment A (fill in score)
E4: Unit 1 - Familiarization
A6: 1 | B6: Familiarization | C6: Unit 1 S1 | D6: Session 1: Becoming familiar with Numicon Shapes | E6: • To become sufficiently familiar with Numicon Shapes so they can be used as a concrete manipulative in the forthcoming sessions. | F6: (No curriculum objectives for this Unit, since it is about becoming familiar with the apparatus)
A7: =IF(D7="","",LARGE($A$5:A6,1)+1) -> 2 | B7: Familiarization | C7: Unit 1 S2 | D7: Session 2: Getting to know number rods | E7: • To be able to match number rods with numerals.
A8: =IF(D8="","",LARGE($A$5:A7,1)+1) -> 3 | B8: Familiarization | C8: Unit 1 S2 | D8: Session 2: Getting to know number rods | E8: • To count forwards and backwards in steps of ones, twos, threes and tens.
A9: =IF(D9="","",LARGE($A$5:A8,1)+1) -> 4 | B9: Familiarization | C9: Unit 1 S2 | D9: Session 2: Getting to know number rods | E9: • To become familiar with using number rods for whole numbers, doubles, halves and number bonds to 20, 60 and 100.
A10: =IF(D10="","",LARGE($A$5:A9,1)+1) -> 5 | B10: Familiarization | C10: Unit 1 S3 | D10: Session 3: Base ten | E10: • To use regrouping when crossing multiples of ten.
A11: =IF(D11="","",LARGE($A$5:A10,1)+1) -> 6 | B11: Familiarization | C11: Unit 1 S3 | D11: Session 3: Base ten | E11: • To represent numbers using base-ten apparatus and arrow cards.
A12: =IF(D12="","",LARGE($A$5:A11,1)+1) -> 7 | B12: Familiarization | C12: Unit 1 S4 | D12: Session 4: Properties of number | E12: • To introduce the term ‘commutative’ in context.
A13: =IF(D13="","",LARGE($A$5:A12,1)+1) -> 8 | B13: Familiarization | C13: Unit 1 S4 | D13: Session 4: Properties of number | E13: • To work systematically to produce number bonds of 8.
A14: =IF(D14="","",LARGE($A$5:A13,1)+1) -> 9 | B14: Familiarization | C14: Unit 1 S4 | D14: Session 4: Properties of number | E14: • To identify odd and even numbers and to use them in context.
A15: =IF(D15="","",LARGE($A$5:A14,1)+1) -> 10 | B15: Familiarization | C15: Unit 1 S4 | D15: Session 4: Properties of number | E15: • To look for patterns, predict answers and check them using manipulatives.
A16: =IF(D16="","",LARGE($A$5:A15,1)+1) ->  | B16: Number and place value
A17: =IF(D17="","",LARGE($A$5:A16,1)+1) -> 
A18: =IF(D18="","",LARGE($A$5:A17,1)+1) -> 11 | B18: Number and place value | C18: Unit 2 S1 | D18: Session 1: Whole numbers with four digits and zero as a place holder | E18: • To visualize, describe or draw 2-, 3- and 4-digit numbers | F18: (4N3a) recognise the place value of each digit in a four-digit number (thousands, hundreds, tens, and ones)
A19: =IF(D19="","",LARGE($A$5:A18,1)+1) -> 12 | B19: Number and place value | C19: Unit 2 S1 | D19: Session 1: Whole numbers with four digits and zero as a place holder | E19: • To understand and explain the role of 0 as a placeholder in 2-, 3- and 4-digit numbers. | F19: (4N5) count backwards through zero to include negative numbers
A20: =IF(D20="","",LARGE($A$5:A19,1)+1) -> 13 | B20: Number and place value | C20: Unit 2 S2 | D20: Session 2: Ordering and comparing numbers: 4-digit and 5-digit numbers | E20: • To understand the quantity and column value of digits in numbers between 1000 and 100 000 | F20: (4N2a)order and compare numbers beyond 1000
A21: =IF(D21="","",LARGE($A$5:A20,1)+1) -> 14 | B21: Number and place value | C21: Unit 2 S2 | D21: Session 2: Ordering and comparing numbers: 4-digit and 5-digit numbers | E21: • To recognize the place value of each digit in 5-digit numbers | F21: (5N2 & 5N3a) read, write, order and compare numbers to at least 1 000 000 and determine the value of each digit
A22: =IF(D22="","",LARGE($A$5:A21,1)+1) -> 15 | B22: Number and place value | C22: Unit 2 S2 | D22: Session 2: Ordering and comparing numbers: 4-digit and 5-digit numbers | E22: • To order and compare numbers up to 100 000 | F22: (4N2a) order and compare numbers beyond 1000
A23: =IF(D23="","",LARGE($A$5:A22,1)+1) -> 16 | B23: Number and place value | C23: Unit 2 S3 | D23: Session 3: Counting forwards and backwards, across boundaries, using multiples of ten | E23: • To order and compare numbers greater than 1000 | F23: (4N2a) order and compare numbers beyond 1001
A24: =IF(D24="","",LARGE($A$5:A23,1)+1) -> 17 | B24: Number and place value | C24: Unit 2 S3 | D24: Session 3: Counting forwards and backwards, across boundaries, using multiples of ten | E24: • To use place value for addition and subtraction (for up to 7-digit numbers) | F24: (4C2) add and subtract numbers with up to 4 digits using the formal written methods of columnar addition and subtraction where appropriate
A25: =IF(D25="","",LARGE($A$5:A24,1)+1) -> 18 | B25: Number and place value | C25: Unit 2 S3 | D25: Session 3: Counting forwards and backwards, across boundaries, using multiples of ten | E25: • To recognize the place value of each digit up to 7-digit numbers (millions, hundred thousands, ten thousands, thousands, hundreds, tens and ones) | F25: (5N2 & 5N3a) read, write, order and compare numbers to at least 1 000 000 and determine the value of each digit
A26: =IF(D26="","",LARGE($A$5:A25,1)+1) -> 19 | B26: Number and place value | C26: Unit 2 S4 | D26: Session 4: Rounding numbers to use in calculations | E26: • To round 5-digit numbers to the nearest 10, 100, 1000, 10 000, 100 000 | F26: (4N4b) round any number to the nearest 10, 100 or 1000
A27: =IF(D27="","",LARGE($A$5:A26,1)+1) -> 20 | B27: Number and place value | C27: Unit 2 S4 | D27: Session 4: Rounding numbers to use in calculations | E27: • To compare rounded numbers with unrounded numbers | F27: (5C3) use rounding to check answers to calculations and determine, in the context of a problem, levels of accuracy
A28: =IF(D28="","",LARGE($A$5:A27,1)+1) -> 21 | B28: Number and place value | C28: Unit 2 S4 | D28: Session 4: Rounding numbers to use in calculations | E28: • To check that calculations are of the correct magnitude using rounding | F28: (5C3) use rounding to check answers to calculations and determine, in the context of a problem, levels of accuracy
A29: =IF(D29="","",LARGE($A$5:A28,1)+1) ->  | B29: Adding and subtracting
A30: =IF(D30="","",LARGE($A$5:A29,1)+1) -> 
A31: =IF(D31="","",LARGE($A$5:A30,1)+1) -> 22 | B31: Adding and subtracting | C31: Unit 3 S1 | D31: Session 1: Estimating | E31: • To know estimates are not exact amounts and are often given as round multiples of 10, 100 or 1000 | F31: (4N4a) identify, represent and estimate numbers using different representations
A32: =IF(D32="","",LARGE($A$5:A31,1)+1) -> 23 | B32: Adding and subtracting | C32: Unit 3 S1 | D32: Session 1: Estimating | E32: • To use rounding to estimate answers in calculations involving numbers with up to 4 digits | F32: (4C3) estimate and use inverse operations to check answers to a calculation
A33: =IF(D33="","",LARGE($A$5:A32,1)+1) -> 24 | B33: Adding and subtracting | C33: Unit 3 S1 | D33: Session 1: Estimating | E33: • To estimate to check the reasonableness of an answer | F33: (4C3) estimate and use inverse operations to check answers to a calculation
A34: =IF(D34="","",LARGE($A$5:A33,1)+1) -> 25 | B34: Adding and subtracting | C34: Unit 3 S2 | D34: Session 2: Column adding | E34: • To add numbers with up to four digits using the formal written method of column adding | F34: (4C2) add and subtract numbers with up to 4 digits using the formal written methods of columnar addition and subtraction where appropriate
A35: =IF(D35="","",LARGE($A$5:A34,1)+1) -> 26 | B35: Adding and subtracting | C35: Unit 3 S2 | D35: Session 2: Column adding | E35: • To estimate the answer to an adding calculation before calculating and then to check answers | F35: (4C3) estimate and use inverse operations to check answers to a calculation
A36: =IF(D36="","",LARGE($A$5:A35,1)+1) -> 27 | B36: Adding and subtracting | C36: Unit 3 S3 | D36: Session 3: Column subtracting | E36: • To subtract numbers with up to four digits using the formal written method of column subtracting | F36: (4C2) add and subtract numbers with up to 4 digits using the formal written methods of columnar addition and subtraction where appropriate
A37: =IF(D37="","",LARGE($A$5:A36,1)+1) -> 28 | B37: Adding and subtracting | C37: Unit 3 S3 | D37: Session 3: Column subtracting | E37: • To estimate the answer to a subtracting calculation before calculating and then to check answers | F37: (4C3) estimate and use inverse operations to check answers to a calculation
A38: =IF(D38="","",LARGE($A$5:A37,1)+1) -> 29 | B38: Adding and subtracting | C38: Unit 3 S4 | D38: Session 4: Inverse relationships | E38: • To use the inverse relationship between adding and subtracting to solve a variety of problems | F38: (4C3) estimate and use inverse operations to check answers to a calculation
A39: =IF(D39="","",LARGE($A$5:A38,1)+1) -> 30 | B39: Adding and subtracting | C39: Unit 3 S4 | D39: Session 4: Inverse relationships | E39: • To know that using the inverse relationships can be useful to check calculations | F39: (4C3) estimate and use inverse operations to check answers to a calculation
A40: =IF(D40="","",LARGE($A$5:A39,1)+1) ->  | B40: Multiplying and dividing
A41: =IF(D41="","",LARGE($A$5:A40,1)+1) -> 
A42: =IF(D42="","",LARGE($A$5:A41,1)+1) -> 31 | B42: Multiplying and dividing | C42: Unit 4 S1 | D42: Session 1: Multiplying and dividing | E42: • To recognize that multiplying and dividing are inverse operations (e.g. 10 × 5 = 50 and 50 ÷ 5 = 10). | F42: (4C6c) recognise and use factor pairs and commutativity in mental calculations
A43: =IF(D43="","",LARGE($A$5:A42,1)+1) -> 32 | B43: Multiplying and dividing | C43: Unit 4 S1 | D43: Session 1: Multiplying and dividing | E43: • To recognize that multiplying is repeated adding of the same number. | F43: (4C6b) use place value, known and derived facts to multiply and divide mentally, including: multiplying by 0 and 1; dividing by 1; multiplying together three numbers
A44: =IF(D44="","",LARGE($A$5:A43,1)+1) -> 33 | B44: Multiplying and dividing | C44: Unit 4 S1 | D44: Session 1: Multiplying and dividing | E44: • To recognize that dividing is repeated subtracting of the same number. | F44: (4C6b) use place value, known and derived facts to multiply and divide mentally, including: multiplying by 0 and 1; dividing by 1; multiplying together three numbers
A45: =IF(D45="","",LARGE($A$5:A44,1)+1) -> 34 | B45: Multiplying and dividing | C45: Unit 4 S1 | D45: Session 1: Multiplying and dividing | E45: • To understand the role of zeros in multiplying. | F45: (4C6b) use place value, known and derived facts to multiply and divide mentally, including: multiplying by 0 and 1; dividing by 1; multiplying together three numbers
A46: =IF(D46="","",LARGE($A$5:A45,1)+1) -> 35 | B46: Multiplying and dividing | C46: Unit 4 S2 | D46: Session 2: Multiplying and dividing by 10, 100, 1000 | E46: • To multiply a single-digit number by 10, 100 or 1000. | F46: (4C6b) use place value, known and derived facts to multiply and divide mentally, including: multiplying by 0 and 1; dividing by 1; multiplying together three numbers
A47: =IF(D47="","",LARGE($A$5:A46,1)+1) -> 36 | B47: Multiplying and dividing | C47: Unit 4 S2 | D47: Session 2: Multiplying and dividing by 10, 100, 1001 | E47: • To divide a thousands, hundreds or tens number by 10, 100 or 1000 leaving a whole number. | F47: (4C6b) use place value, known and derived facts to multiply and divide mentally, including: multiplying by 0 and 1; dividing by 1; multiplying together three numbers
A48: =IF(D48="","",LARGE($A$5:A47,1)+1) -> 37 | B48: Multiplying and dividing | C48: Unit 4 S3 | D48: Session 3: Multiplying: HTO × O | E48: • To be able to multiply a 3-digit number by a 1-digit number. | F48: (4C7) multiply two-digit and three-digit numbers by a one-digit number using formal written layout
A49: =IF(D49="","",LARGE($A$5:A48,1)+1) -> 38 | B49: Multiplying and dividing | C49: Unit 4 S3 | D49: Session 3: Multiplying: HTO × O | E49: • To be able to use the long and short written methods of multiplying. | F49: (4C7) multiply two-digit and three-digit numbers by a one-digit number using formal written layout
A50: =IF(D50="","",LARGE($A$5:A49,1)+1) -> 39 | B50: Multiplying and dividing | C50: Unit 4 S4 | D50: Session 4: Dividing with informal methods | E50: • To reinforce the understanding that dividing is the inverse of multiplying. | F50: (4C6b) use place value, known and derived facts to multiply and divide mentally, including: multiplying by 0 and 1; dividing by 1; multiplying together three numbers
A51: =IF(D51="","",LARGE($A$5:A50,1)+1) -> 40 | B51: Multiplying and dividing | C51: Unit 4 S4 | D51: Session 4: Dividing with informal methods | E51: • To understand that dividing is repeated subtracting (of the same number). | F51: (4C6b) use place value, known and derived facts to multiply and divide mentally, including: multiplying by 0 and 1; dividing by 1; multiplying together three numbers
A52: =IF(D52="","",LARGE($A$5:A51,1)+1) -> 41 | B52: Multiplying and dividing | C52: Unit 4 S4 | D52: Session 4: Dividing with informal methods | E52: • To recognize that dividing results in equal parts. | F52: (4C6b) use place value, known and derived facts to multiply and divide mentally, including: multiplying by 0 and 1; dividing by 1; multiplying together three numbers
A53: =IF(D53="","",LARGE($A$5:A52,1)+1) ->  | B53: Fractions
A54: =IF(D54="","",LARGE($A$5:A53,1)+1) -> 
A55: =IF(D55="","",LARGE($A$5:A54,1)+1) -> 42 | B55: Fractions | C55: Unit 5 S1 | D55: Session 1: Unit fractions | E55: • To be able to show basic fractions on a number line. | F55: (4F1) count up and down in hundredths; recognise that hundredths arise when dividing an object by one hundred and dividing tenths by ten.
A56: =IF(D56="","",LARGE($A$5:A55,1)+1) -> 43 | B56: Fractions | C56: Unit 5 S1 | D56: Session 1: Unit fractions | E56: • To understand that fractions involve dividing. | F56: (4F9) find the effect of dividing a one- or two-digit number by 10 and 100, identifying the value of the digits in the answer as ones, tenths and hundredths
A57: =IF(D57="","",LARGE($A$5:A56,1)+1) -> 44 | B57: Fractions | C57: Unit 5 S1 | D57: Session 1: Unit fractions | E57: • To know that in unit fractions of the type 1/d as d gets bigger the fraction gets smaller. | F57: (4F9) find the effect of dividing a one- or two-digit number by 10 and 100, identifying the value of the digits in the answer as ones, tenths and hundredths
A58: =IF(D58="","",LARGE($A$5:A57,1)+1) -> 45 | B58: Fractions | C58: Unit 5 S2 | D58: Session 2: Non-unit fractions | E58: • To be able to show basic non-unit fractions on a number line. | F58: (4F1) count up and down in hundredths; recognise that hundredths arise when dividing an object by one hundred and dividing tenths by ten.
A59: =IF(D59="","",LARGE($A$5:A58,1)+1) -> 46 | B59: Fractions | C59: Unit 5 S2 | D59: Session 2: Non-unit fractions | E59: • To understand that non-unit fractions involve dividing and multiplying. | F59: (4F10a) solve problems involving increasingly harder fractions to calculate quantities, and fractions to divide quantities, including non-unit fractions where the answer is a whole number
A60: =IF(D60="","",LARGE($A$5:A59,1)+1) -> 47 | B60: Fractions | C60: Unit 5 S2 | D60: Session 2: Non-unit fractions | E60: • To know that fractions of the type n/d are n times bigger than the unit fraction 1/d | F60: (4F10a) solve problems involving increasingly harder fractions to calculate quantities, and fractions to divide quantities, including non-unit fractions where the answer is a whole number
A61: =IF(D61="","",LARGE($A$5:A60,1)+1) -> 48 | B61: Fractions | C61: Unit 5 S3 | D61: Session 3: Fractions of amounts | E61: • To be able to calculate a non-unit fraction of an amount, e.g. 4/5 of 20. | F61: (4F10a) solve problems involving increasingly harder fractions to calculate quantities, and fractions to divide quantities, including non-unit fractions where the answer is a whole number
A62: =IF(D62="","",LARGE($A$5:A61,1)+1) -> 49 | B62: Fractions | C62: Unit 5 S3 | D62: Session 3: Fractions of amounts | E62: • To use a number line for tenths accurately. | F62: (4F6b) recognise and write decimal equivalents of any number of tenths or hundredths
A63: =IF(D63="","",LARGE($A$5:A62,1)+1) -> 50 | B63: Fractions | C63: Unit 5 S4 | D63: Session 4: Equivalent fractions | E63: • To recognize equivalent fractions. | F63: (4F2) recognise and show, using diagrams, families of common equivalent fractions
A64: =IF(D64="","",LARGE($A$5:A63,1)+1) -> 51 | B64: Fractions | C64: Unit 5 S4 | D64: Session 4: Equivalent fractions | E64: • To understand that equivalent fractions have the same value. | F64: (4F2) recognise and show, using diagrams, families of common equivalent fractions
A65: =IF(D65="","",LARGE($A$5:A64,1)+1) -> 52 | B65: Fractions | C65: Unit 5 S4 | D65: Session 4: Equivalent fractions | E65: • To be able to generate equivalent fractions. | F65: (4F2) recognise and show, using diagrams, families of common equivalent fractions
A66: =IF(D66="","",LARGE($A$5:A65,1)+1) -> 53 | B66: Fractions | C66: Unit 5 S4 | D66: Session 4: Equivalent fractions | E66: • To recognize and use b/b as the equivalent fraction convertor. | F66: (5F2b) identify, name and write equivalent fractions of a given fraction, represented visually, including tenths and hundredths
A67: =IF(D67="","",LARGE($A$5:A66,1)+1) ->  | B67: Working with fractions, decimals and percentages
A68: =IF(D68="","",LARGE($A$5:A67,1)+1) -> 
A69: =IF(D69="","",LARGE($A$5:A68,1)+1) -> 54 | B69: Working with fractions, decimals and percentages | C69: Unit 6 S1 | D69: Session 1: Adding and subtracting fractions (same denominator) | E69: • To be able to add and subtract two (or more) fractions with the same denominator. | F69: (4F4) add and subtract fractions with the same denominator
A70: =IF(D70="","",LARGE($A$5:A69,1)+1) -> 55 | B70: Working with fractions, decimals and percentages | C70: Unit 6 S1 | D70: Session 1: Adding and subtracting fractions (same denominator) | E70: • To understand how denominators and numerators are manipulated in these calculations. | F70: (5F4) add and subtract fractions with the same denominator and denominators that are multiples of the same number
A71: =IF(D71="","",LARGE($A$5:A70,1)+1) -> 56 | B71: Working with fractions, decimals and percentages | C71: Unit 6 S2 | D71: Session 2: Fractions and decimal equivalents | E71: • To recognize common fractions and their decimal fractions equivalents (e.g. 1/2 = 0·5, 1/4 = 0·25, 4/10 = 0·4). | F71: (4F6a) recognise and write decimal equivalents to 1/4, 1/2, 3/4
A72: =IF(D72="","",LARGE($A$5:A71,1)+1) -> 57 | B72: Working with fractions, decimals and percentages | C72: Unit 6 S2 | D72: Session 2: Fractions and decimal equivalents | E72: • To compare and order decimal fractions (e.g. 0·1 is 10 times bigger than 0·01). | F72: (4F8) compare numbers with the same number of decimal places up to two decimal places
A73: =IF(D73="","",LARGE($A$5:A72,1)+1) -> 58 | B73: Working with fractions, decimals and percentages | C73: Unit 6 S3 | D73: Session 3: Percentages | E73: • To know that percentages are a way of expressing hundredths. | F73: (5F11) recognise the per cent symbol (%) and understand that per cent relates to ‘number of parts per hundred’, and write percentages as a fraction with denominator 100, and as a decimal
A74: =IF(D74="","",LARGE($A$5:A73,1)+1) -> 59 | B74: Working with fractions, decimals and percentages | C74: Unit 6 S3 | D74: Session 3: Percentages | E74: • To be able to work out simple percentages of amounts (e.g. 25% of 200, 1% of 400). | F74: (5F11) recognise the per cent symbol (%) and understand that per cent relates to ‘number of parts per hundred’, and write percentages as a fraction with denominator 100, and as a decimal
A75: =IF(D75="","",LARGE($A$5:A74,1)+1) -> 60 | B75: Working with fractions, decimals and percentages | C75: Unit 6 S3 | D75: Session 3: Percentages | E75: • To know the fraction equivalents of 1%, 50% and 10%. | F75: (5F12) solve problems which require knowing percentage and decimal equivalents of 1/2, 1/4, 1/5, 2/5, 4/5 and those fractions with a denominator of a multiple of 10 or 25.
A76: =IF(D76="","",LARGE($A$5:A75,1)+1) -> 61 | B76: Working with fractions, decimals and percentages | C76: Unit 6 S3 | D76: Session 3: Percentages | E76: • To understand that, e.g. 5% is half of 10% when the total amount is the same. | F76: (5F12) solve problems which require knowing percentage and decimal equivalents of 1/2, 1/4, 1/5, 2/5, 4/5 and those fractions with a denominator of a multiple of 10 or 25.
A77: =IF(D77="","",LARGE($A$5:A76,1)+1) -> 62 | B77: Working with fractions, decimals and percentages | C77: Unit 6 S4 | D77: Session 4: Multiplying a fraction by a whole number | E77: • To multiply a whole number by unit and non-unit fractions (e.g. 1/5 × 200 and 3/5 × 200). | F77: (5F5) multiply proper fractions and mixed numbers by whole numbers, supported by materials and diagrams
A78: =IF(D78="","",LARGE($A$5:A77,1)+1) -> 63 | B78: Working with fractions, decimals and percentages | C78: Unit 6 S4 | D78: Session 4: Multiplying a fraction by a whole number | E78: • To represent fraction calculations on a number line. | F78: (4F9) find the effect of dividing a one- or two-digit number by 10 and 100, identifying the value of the digits in the answer as ones, tenths and hundredths
A79: =IF(D79="","",LARGE($A$5:A78,1)+1) ->  | B79: Number and place value
A80: =IF(D80="","",LARGE($A$5:A79,1)+1) -> 
A81: =IF(D81="","",LARGE($A$5:A80,1)+1) -> 64 | B81: Number and place value | C81: Unit 7 S1 | D81: Session 1: Place value extended to tenths and hundredths | E81: • To link decimals with tenths and hundredths fluently and understand their position in the base-ten system. | F81: (5F6a) read and write decimal numbers as fractions [for example, 0.71 = 71/100]
A82: =IF(D82="","",LARGE($A$5:A81,1)+1) -> 65 | B82: Number and place value | C82: Unit 7 S1 | D82: Session 1: Place value extended to tenths and hundredths | E82: • To order decimals with two decimal places. | F82: (4F8) compare numbers with the same number of decimal places up to two decimal places
A83: =IF(D83="","",LARGE($A$5:A82,1)+1) -> 66 | B83: Number and place value | C83: Unit 7 S2 | D83: Session 2: Money, money, money | E83: • To compare and order decimals to two decimal places in the context of money. | F83: (4F10b) solve simple measure and money problems involving fractions and decimals to two decimal places.
A84: =IF(D84="","",LARGE($A$5:A83,1)+1) -> 67 | B84: Number and place value | C84: Unit 7 S2 | D84: Session 2: Money, money, money | E84: • To understand the use of zero as a place holder in the context of money. | F84: (4F8) compare numbers with the same number of decimal places up to two decimal places
A85: =IF(D85="","",LARGE($A$5:A84,1)+1) -> 68 | B85: Number and place value | C85: Unit 7 S3 | D85: Session 3: Numbers to three decimal places | E85: • To read, write, order and compare numbers with up to three decimal places. | F85: (5F8) read, write, order and compare numbers with up to three decimal places
A86: =IF(D86="","",LARGE($A$5:A85,1)+1) -> 69 | B86: Number and place value | C86: Unit 7 S3 | D86: Session 3: Numbers to three decimal places | E86: • To use a number line to represent numbers with up to three decimal places. | F86: (5F8) read, write, order and compare numbers with up to three decimal places
A87: =IF(D87="","",LARGE($A$5:A86,1)+1) -> 70 | B87: Number and place value | C87: Unit 7 S4 | D87: Session 4: Ordering and rounding decimals | E87: • To compare numbers with the same number of decimal places (with three decimal places). | F87: (5F8) read, write, order and compare numbers with up to three decimal places
A88: =IF(D88="","",LARGE($A$5:A87,1)+1) -> 71 | B88: Number and place value | C88: Unit 7 S4 | D88: Session 4: Ordering and rounding decimals | E88: • To round numbers with up to two decimal places to the nearest whole number. | F88: (5F7) round decimals with two decimal places to the nearest whole number and to one decimal place
A89: =IF(D89="","",LARGE($A$5:A88,1)+1) -> 72 | B89: Number and place value | C89: Unit 7 S4 | D89: Session 4: Ordering and rounding decimals | E89: • To round numbers with two decimal places to the nearest tenth. | F89: (5F7) round decimals with two decimal places to the nearest whole number and to one decimal place
A90: =IF(D90="","",LARGE($A$5:A89,1)+1) ->  | B90: Adding and subtracting
A91: =IF(D91="","",LARGE($A$5:A90,1)+1) -> 
A92: =IF(D92="","",LARGE($A$5:A91,1)+1) -> 73 | B92: Adding and subtracting | C92: Unit 8 S1 | D92: Session 1: Using the column method with larger numbers | E92: • To use the written column method for adding and subtracting (up to 5-digit numbers). | F92: (4C2) add and subtract numbers with up to 4 digits using the formal written methods of columnar addition and subtraction where appropriate
A93: =IF(D93="","",LARGE($A$5:A92,1)+1) -> 74 | B93: Adding and subtracting | C93: Unit 8 S1 | D93: Session 1: Using the column method with larger numbers | E93: • To use estimation and the inverse relationship between adding and subtracting to check answers. | F93: (4C3)estimate and use inverse operations to check answers to a calculation
A94: =IF(D94="","",LARGE($A$5:A93,1)+1) -> 75 | B94: Adding and subtracting | C94: Unit 8 S2 | D94: Session 2: Adding and subtracting money | E94: • To know that the decimal point separates the whole and fractional parts in decimal notation. | F94: (4F9) find the effect of dividing a one- or two-digit number by 10 and 100, identifying the value of the digits in the answer as ones, tenths and hundredths
A95: =IF(D95="","",LARGE($A$5:A94,1)+1) -> 76 | B95: Adding and subtracting | C95: Unit 8 S2 | D95: Session 2: Adding and subtracting money | E95: • To add and subtract numbers up to two decimal places using the column method. | F95: (4C2) add and subtract numbers with up to 4 digits using the formal written methods of columnar addition and subtraction where appropriate
A96: =IF(D96="","",LARGE($A$5:A95,1)+1) -> 77 | B96: Adding and subtracting | C96: Unit 8 S2 | D96: Session 2: Adding and subtracting money | E96: • To solve simple money problems involving numbers to two decimal places. | F96: (4F10b) solve simple measure and money problems involving fractions and decimals to two decimal places.
A97: =IF(D97="","",LARGE($A$5:A96,1)+1) -> 78 | B97: Adding and subtracting | C97: Unit 8 S3 | D97: Session 3: Column methods for adding and subtracting decimals | E97: • To know that the decimal point separates the whole and fractional parts in decimal notation. | F97: (4F9) find the effect of dividing a one- or two-digit number by 10 and 100, identifying the value of the digits in the answer as ones, tenths and hundredths
A98: =IF(D98="","",LARGE($A$5:A97,1)+1) -> 79 | B98: Adding and subtracting | C98: Unit 8 S3 | D98: Session 3: Column methods for adding and subtracting decimals | E98: • To add and subtract numbers with up to three decimal places using the column method. | F98: (4C2) add and subtract numbers with up to 4 digits using the formal written methods of columnar addition and subtraction where appropriate
A99: =IF(D99="","",LARGE($A$5:A98,1)+1) -> 80 | B99: Adding and subtracting | C99: Unit 8 S4 | D99: Session 4: Using inverse relationships when adding and subtracting decimals | E99: • To use the inverse relationship between adding and subtracting to solve a variety of problems. | F99: (4C4/ 5C4) solve addition and subtraction two-step problems in contexts, deciding which operations and methods to use and why.
A100: =IF(D100="","",LARGE($A$5:A99,1)+1) -> 81 | B100: Adding and subtracting | C100: Unit 8 S4 | D100: Session 4: Using inverse relationships when adding and subtracting decimals | E100: • To add and subtract decimals up to two decimal places. | F100: (4F10b) solve simple measure and money problems involving fractions and decimals to two decimal places.
A101: =IF(D101="","",LARGE($A$5:A100,1)+1) ->  | B101: Multiplying and dividing
A102: =IF(D102="","",LARGE($A$5:A101,1)+1) -> 
A103: =IF(D103="","",LARGE($A$5:A102,1)+1) -> 82 | B103: Multiplying and dividing | C103: Unit 9 S1 | D103: Session 1: Multiplying and dividing by 10, 100 and 1000 including decimals | E103: • To multiply and divide numbers, including decimals, by 10, 100 and 1000. | F103: (5C6b) multiply and divide whole numbers and those involving decimals by 10, 100 and 1000
A104: =IF(D104="","",LARGE($A$5:A103,1)+1) -> 83 | B104: Multiplying and dividing | C104: Unit 9 S1 | D104: Session 1: Multiplying and dividing by 10, 100 and 1000 including decimals | E104: • To understand and demonstrate the new place values of digits resulting from these operations. | F104: (5N1) count forwards or backwards in steps of powers of 10 for any given number up to 1 000 000
A105: =IF(D105="","",LARGE($A$5:A104,1)+1) -> 84 | B105: Multiplying and dividing | C105: Unit 9 S1 | D105: Session 1: Multiplying and dividing by 10, 100 and 1000 including decimals | E105: • To understand the role of zero as a place holder in decimal numbers. | F105: (4F6b) recognise and write decimal equivalents of any number of tenths or hundredths
A106: =IF(D106="","",LARGE($A$5:A105,1)+1) -> 85 | B106: Multiplying and dividing | C106: Unit 9 S2 | D106: Session 2: Multiplying 2- and 3-digit numbers | E106: • To develop an understanding of multiplying TO × TO and HTO × TO. | F106: (5C7a) multiply numbers up to 4 digits by a one- or two-digit number using a formal written method, including long multiplication for two-digit numbers
A107: =IF(D107="","",LARGE($A$5:A106,1)+1) -> 86 | B107: Multiplying and dividing | C107: Unit 9 S2 | D107: Session 2: Multiplying 2- and 3-digit numbers | E107: • To understand that multiplying can be done as repeated adding of parts. | F107: (4C6b) use place value, known and derived facts to multiply and divide mentally, including: multiplying by 0 and 1; dividing by 1; multiplying together three numbers
A108: =IF(D108="","",LARGE($A$5:A107,1)+1) -> 87 | B108: Multiplying and dividing | C108: Unit 9 S3 | D108: Session 3: The short written method of dividing: ThHTO ÷ O | E108: • To link dividing to multiplying as the inverse operation. | F108: (4C6b) use place value, known and derived facts to multiply and divide mentally, including: multiplying by 0 and 1; dividing by 1; multiplying together three numbers
A109: =IF(D109="","",LARGE($A$5:A108,1)+1) -> 88 | B109: Multiplying and dividing | C109: Unit 9 S3 | D109: Session 3: The short written method of dividing: ThHTO ÷ O | E109: • To be able to estimate an answer. | F109: (4C3) estimate and use inverse operations to check answers to a calculation
A110: =IF(D110="","",LARGE($A$5:A109,1)+1) -> 89 | B110: Multiplying and dividing | C110: Unit 9 S3 | D110: Session 3: The short written method of dividing: ThHTO ÷ O | E110: • To understand that dividing involves repeated subtracting of parts. | F110: (5C7b) divide numbers up to 4 digits by a one-digit number using the formal written method of short division and interpret remainders appropriately for the context
A111: =IF(D111="","",LARGE($A$5:A110,1)+1) -> 90 | B111: Multiplying and dividing | C111: Unit 9 S4 | D111: Session 4: Interpreting remainders | E111: • To recognize a remainder. | F111: (5C7b) divide numbers up to 4 digits by a one-digit number using the formal written method of short division and interpret remainders appropriately for the context
A112: =IF(D112="","",LARGE($A$5:A111,1)+1) -> 91 | B112: Multiplying and dividing | C112: Unit 9 S4 | D112: Session 4: Interpreting remainders | E112: • To convert remainders to fractions and decimals. | F112: (5C7b) divide numbers up to 4 digits by a one-digit number using the formal written method of short division and interpret remainders appropriately for the context
A113: =IF(D113="","",LARGE($A$5:A112,1)+1) -> 92 | B113: Multiplying and dividing | C113: Unit 9 S4 | D113: Session 4: Interpreting remainders | E113: • To write a remainder as a number, fraction or decimal. | F113: (5C7b) divide numbers up to 4 digits by a one-digit number using the formal written method of short division and interpret remainders appropriately for the context
A114: =IF(D114="","",LARGE($A$5:A113,1)+1) -> 93 | B114: Multiplying and dividing | C114: Unit 9 S4 | D114: Session 4: Interpreting remainders | E114: • To write the quotient as a mixed number. | F114: (5F2a) recognise mixed numbers and improper fractions and convert from one form to the other and write mathematical statements > 1 as a mixed number [for example, 2/5 + 4/5 = 6/5 = 1 1/5]
A115: =IF(D115="","",LARGE($A$5:A114,1)+1) ->  | B115: Fractions
A116: =IF(D116="","",LARGE($A$5:A115,1)+1) -> 
A117: =IF(D117="","",LARGE($A$5:A116,1)+1) -> 94 | B117: Fractions | C117: Unit 10 S1 | D117: Session 1: Mixed numbers | E117: • To identify proper and improper fractions. | F117: (5F2a) recognise mixed numbers and improper fractions and convert from one form to the other and write mathematical statements > 1 as a mixed number [for example, 2/5 + 4/5 = 6/5 = 1 1/5 ]
A118: =IF(D118="","",LARGE($A$5:A117,1)+1) -> 95 | B118: Fractions | C118: Unit 10 S1 | D118: Session 1: Mixed numbers | E118: • To understand how mixed numbers are written. | F118: (5F2a) recognise mixed numbers and improper fractions and convert from one form to the other and write mathematical statements > 1 as a mixed number [for example, 2/5 + 4/5 = 6/5 = 1 1/5 ]
A119: =IF(D119="","",LARGE($A$5:A118,1)+1) -> 96 | B119: Fractions | C119: Unit 10 S2 | D119: Session 2: Mixed numbers and the number line | E119: • To locate a mixed number on a fraction number line. | F119: (5F2a) recognise mixed numbers and improper fractions and convert from one form to the other and write mathematical statements > 1 as a mixed number [for example, 2/5 + 4/5 = 6/5 = 1 1/5 ]
A120: =IF(D120="","",LARGE($A$5:A119,1)+1) -> 97 | B120: Fractions | C120: Unit 10 S2 | D120: Session 2: Mixed numbers and the number line | E120: • To count on and back with mixed numbers. | F120: (5F2a) recognise mixed numbers and improper fractions and convert from one form to the other and write mathematical statements > 1 as a mixed number [for example, 2/5 + 4/5 = 6/5 = 1 1/5 ]
A121: =IF(D121="","",LARGE($A$5:A120,1)+1) -> 98 | B121: Fractions | C121: Unit 10 S3 | D121: Session 3: Finding equivalent fractions | E121: • To recognize and calculate equivalent fractions. | F121: (5F2b) identify, name and write equivalent fractions of a given fraction, represented visually, including tenths and hundredths
A122: =IF(D122="","",LARGE($A$5:A121,1)+1) -> 99 | B122: Fractions | C122: Unit 10 S3 | D122: Session 3: Finding equivalent fractions | E122: • To recognize that 1 can be represented as 2/2 or 7/7 or b/b. | F122: (4N4a) identify, represent and estimate numbers using different representations
A123: =IF(D123="","",LARGE($A$5:A122,1)+1) -> 100 | B123: Fractions | C123: Unit 10 S3 | D123: Session 3: Finding equivalent fractions | E123: • To understand the effect of multiplying a fraction by 1. | F123: (4C6b) use place value, known and derived facts to multiply and divide mentally, including: multiplying by 0 and 1; dividing by 1; multiplying together three numbers
A124: =IF(D124="","",LARGE($A$5:A123,1)+1) -> 101 | B124: Fractions | C124: Unit 10 S3 | D124: Session 3: Finding equivalent fractions | E124: • To know that an equivalent fraction will result from multiplying the numerator and the denominator by the same number. | F124: (4F2) recognise and show, using diagrams, families of common equivalent fractions
A125: =IF(D125="","",LARGE($A$5:A124,1)+1) -> 102 | B125: Fractions | C125: Unit 10 S4 | D125: Session 4: Comparing and ordering fractions | E125: • To compare and order fractions with the same denominator and different numerators. | F125: (5F3) compare and order fractions whose denominators are all multiples of the same number
A126: =IF(D126="","",LARGE($A$5:A125,1)+1) -> 103 | B126: Fractions | C126: Unit 10 S4 | D126: Session 4: Comparing and ordering fractions | E126: • To compare and order fractions with the same numerator and different denominators. | F126: (5F3) compare and order fractions whose denominators are all multiples of the same number
A127: =IF(D127="","",LARGE($A$5:A126,1)+1) ->  | B127: Working with fractions, decimals and percentages
A128: =IF(D128="","",LARGE($A$5:A127,1)+1) -> 
A129: =IF(D129="","",LARGE($A$5:A128,1)+1) -> 104 | B129: Working with fractions, decimals and percentages | C129: Unit 11 S1 | D129: Session 1: Adding and subtracting fractions with different denominators | E129: • To add and subtract fractions with different denominators (e.g. 11/12 − 1/4). | F129: (5F4) add and subtract fractions with the same denominator and denominators that are multiples of the same number
A130: =IF(D130="","",LARGE($A$5:A129,1)+1) -> 105 | B130: Working with fractions, decimals and percentages | C130: Unit 11 S1 | D130: Session 1: Adding and subtracting fractions with different denominators | E130: • To add and subtract fractions to 1 (e.g. 10/10 − 7/10). | F130: (4C6b) use place value, known and derived facts to multiply and divide mentally, including: multiplying by 0 and 1; dividing by 1; multiplying together three numbers
A131: =IF(D131="","",LARGE($A$5:A130,1)+1) -> 106 | B131: Working with fractions, decimals and percentages | C131: Unit 11 S2 | D131: Session 2: Calculating with fractions and mixed numbers | E131: • To add and subtract mixed numbers (e.g. 5 1/2 + 4 3/10 ). | F131: (5F4) add and subtract fractions with the same denominator and denominators that are multiples of the same number
A132: =IF(D132="","",LARGE($A$5:A131,1)+1) -> 107 | B132: Working with fractions, decimals and percentages | C132: Unit 11 S2 | D132: Session 2: Calculating with fractions and mixed numbers | E132: • To multiply a mixed number (e.g. 1 3/4 × 4). | F132: (5F5) multiply proper fractions and mixed numbers by whole numbers, supported by materials and diagrams
A133: =IF(D133="","",LARGE($A$5:A132,1)+1) -> 108 | B133: Working with fractions, decimals and percentages | C133: Unit 11 S2 | D133: Session 2: Calculating with fractions and mixed numbers | E133: • To recognize improper fractions (e.g. 12/4 as 12 quarters, equal to 3). | F133: (5F2a) recognise mixed numbers and improper fractions and convert from one form to the other and write mathematical statements > 1 as a mixed number [for example, 2/5 + 4/5 = 6/5 = 1 1/5 ]
A134: =IF(D134="","",LARGE($A$5:A133,1)+1) -> 109 | B134: Working with fractions, decimals and percentages | C134: Unit 11 S3 | D134: Session 3: Fraction, percentage and decimal equivalents | E134: • To recognize the percentage and decimal equivalents of 1/2, 1/4, 1/5 and 1/10. | F134: (5F12) solve problems which require knowing percentage and decimal equivalents of 1/2, 1/4, 1/5, 2/5, 4/5 and those fractions with a denominator of a multiple of 10 or 25.
A135: =IF(D135="","",LARGE($A$5:A134,1)+1) -> 110 | B135: Working with fractions, decimals and percentages | C135: Unit 11 S4 | D135: Session 4: Multiplying fractions, decimals and percentages | E135: • To calculate percentage/fraction/decimal × whole number (e.g. 40%, 4 10, 0·4 × 80). | F135: (5F12) solve problems which require knowing percentage and decimal equivalents of 1/2, 1/4, 1/5, 2/5, 4/5 and those fractions with a denominator of a multiple of 10 or 25.
A136: =IF(D136="","",LARGE($A$5:A135,1)+1) -> 111 | B136: Working with fractions, decimals and percentages | C136: Unit 11 S4 | D136: Session 4: Multiplying fractions, decimals and percentages | E136: • To understand and compare the similarities and differences of the three procedures. | F136: (5F12) solve problems which require knowing percentage and decimal equivalents of 1/2, 1/4, 1/5, 2/5, 4/5 and those fractions with a denominator of a multiple of 10 or 25.
A137: =IF(D137="","",LARGE($A$5:A136,1)+1) -> 112 | B137: Working with fractions, decimals and percentages | C137: Unit 11 S4 | D137: Session 4: Multiplying fractions, decimals and percentages | E137: • To be able to appraise answers for accuracy (e.g. 40% should be less than half). | F137: (5C3) use rounding to check answers to calculations and determine, in the context of a problem, levels of accuracy
A138: =IF(D138="","",LARGE($A$5:A137,1)+1) ->  | B138: Securing the learning
A139: =IF(D139="","",LARGE($A$5:A138,1)+1) -> 
A140: =IF(D140="","",LARGE($A$5:A139,1)+1) -> 113 | B140: Securing the learning | C140: Unit 12 S1 | D140: Session 1: Using place value | E140: • To review understanding of place value from thousands to thousandths. | F140: (5N1) count forwards or backwards in steps of powers of 10 for any given number up to 1 000 000
A141: =IF(D141="","",LARGE($A$5:A140,1)+1) -> 114 | B141: Securing the learning | C141: Unit 12 S1 | D141: Session 1: Using place value | E141: • To multiply and divide numbers by 10, 100, 100. | F141: (5C6b) multiply and divide whole numbers and those involving decimals by 10, 100 and 1000
A142: =IF(D142="","",LARGE($A$5:A141,1)+1) -> 115 | B142: Securing the learning | C142: Unit 12 S2 | D142: Session 2: Adding and subtracting | E142: • To review understanding and accuracy in adding and subtracting problems, with both whole numbers and decimal numbers. | F142: (5C3) use rounding to check answers to calculations and determine, in the context of a problem, levels of accuracy
A143: =IF(D143="","",LARGE($A$5:A142,1)+1) -> 116 | B143: Securing the learning | C143: Unit 12 S2 | D143: Session 2: Adding and subtracting | E143: • To use and understand the procedure for exchanging in both adding and subtracting. | F143: (5C2) add and subtract whole numbers with more than 4 digits, including using formal written methods (columnar addition and subtraction)
A144: =IF(D144="","",LARGE($A$5:A143,1)+1) -> 117 | B144: Securing the learning | C144: Unit 12 S3 | D144: Session 3: Multiplying and dividing | E144: • To calculate the answer to problems, including 2-digit × 1-digit, 3-digit × 1-digit, 3-digit × 2-digit (including decimals), 3-digit ÷ 1-digit, 3-digit ÷ 1-digit and 4-digit ÷ 1-digit. | F144: (5C2) add and subtract whole numbers with more than 4 digits, including using formal written methods (columnar addition and subtraction)
A145: =IF(D145="","",LARGE($A$5:A144,1)+1) -> 118 | B145: Securing the learning | C145: Unit 12 S4 | D145: Session 4: Fractions, decimals, percentages | E145: • To secure an understanding of the equivalence of fractions, decimals and percentages. | F145: (5F8) read, write, order and compare numbers with up to three decimal places
A146: =IF(D146="","",LARGE($A$5:A145,1)+1) -> 119 | B146: Securing the learning | C146: Unit 12 S4 | D146: Session 4: Fractions, decimals, percentages | E146: • To be able to convert between the three ways of writing numbers that are less than one (and equal to and more than one.) | F146: (5F10) solve problems involving number up to three decimal places
A147: =IF(D147="","",LARGE($A$5:A146,1)+1) -> 120 | B147: Securing the learning | C147: Unit 12 S4 | D147: Session 4: Fractions, decimals, percentages | E147: • To work out: percentage of a quantity, decimal × quantity and fraction × quantity. | F147: (5F10) solve problems involving number up to three decimal places
